{"text_format":"1","workbook":"xlsx","n_sheets":14,"sheets":["_SurveyPartMetadata","Tenant_Satisfaction_Measures_Re","Sect 1a - Background","Sect 1b - Background","Sect 2 - Published TSMs","Sect 3 - TSMs reported by all","Sect 4 - TSMs reported for LCRA","Sect 5 - TSMs reported for LCHO","Sect 6 - TSMs reported Combined","Validations","Lists","DimensionalMembers","PriorValues","OtherSurveyValues"],"not_rendered":{"charts":0,"images":0,"macros":1,"external_links":0,"defined_names":478,"comments":0,"pivot_tables":0},"unopened":[],"bounds":{"document_bytes":16777216,"sheet_cells":100000,"rows_first":2000,"rows_last":500,"rows_between":2000,"halvings":0,"cell_chars":16384,"cell_head_chars":4096},"cells_cut":0,"cells_raw":0,"read":"whole","date_system":"1900"}

{"sheet":"_SurveyPartMetadata","index":0,"n_rows":7,"n_cols":2,"rows_kept":7,"cut":false,"hidden":true,"merged":[]}
["Survey Name:","Tenant Satisfaction Measures Return (TSMs)"]
["Survey ID:",31]
["Survey Part Name:","Tenant Satisfaction Measures Return"]
["Survey Part ID:",52]
["Submission Part ID:",63909]
["Provider ID:",9749]
["Time Period ID:",15]

{"sheet":"Tenant_Satisfaction_Measures_Re","index":1,"n_rows":48,"n_cols":5,"rows_kept":48,"cut":false,"hidden":false,"merged":[[24,3,24,4],[19,3,19,4],[20,3,20,4],[21,3,21,4],[22,3,22,4],[23,3,23,4],[45,4,45,5],[47,4,47,5],[31,3,31,5],[1,1,1,3],[3,1,3,4],[11,1,11,3],[15,3,15,4],[16,3,16,4],[29,3,29,5],[30,3,30,5],[32,3,32,5],[37,3,37,5],[38,3,38,5],[39,3,39,5],[17,3,17,4],[18,3,18,4]]}
[]
[null,"NROSH+ 2024"]
[]
[null,"Spreadsheet Import Template"]
[]
[null,null,null,"Version:"]
[null,null,null,"Latest Issue Date:"]
[]
[null,null,null,"Provider:","Habitare Homes Limited"]
[null,null,null,"Time Period:","2024"]
[]
[null,"Instructions"]
[]
[null,null,null,"Description"]
[]
[null,null,null,"Worksheet Information:"]
[null,null,null,"1) Worksheet One: Cover Sheet"]
[null,null,null,"2) Worksheet Two: Sect 1a - Background"]
[null,null,null,"3) Worksheet Three: Sect 1b - Background"]
[null,null,null,"4) Worksheet Four: Sect 2 - Published TSMs"]
[null,null,null,"5) Worksheet Five: Sect 3 - TSMs reported by all"]
[null,null,null,"6) Worksheet Six: Sect 4 - TSMs reported for LCRA"]
[null,null,null,"7) Worksheet Seven: Sect 5 - TSMs reported for LCHO"]
[null,null,null,"8) Worksheet Eight: Sect 6 - TSMs reported Combined"]
[]
[]
[]
[]
[]
[null,null,null,"Workbooks are locked.  Formatting and structure should not be altered"]
[null,null,null,"If data is being pasted from another location, please ensure only cell values are copied across (using paste special)"]
[null,null,null,"When you save this file to your own computer system, you can rename it. However, you must not change the name of any of the worksheets within it (Cover Sheet, Validations etc…)"]
[null,null,null,"This document, and only this document, should be used as the source for data import"]
[]
[]
[]
[]
[null,null,null,"Any pre-existing data contained within the relevant part of this survey will be overridden by the data contained within this sheet on import"]
[null,null,null,"If the question is highlighted in red, enter negative values into all cells in that line"]
[null,null,null,"If any part of the import process fails, the entire transaction will be rolled back  – i.e. the import will work in full or not at all"]
[]
[]
[]
[]
[]
[null,null,null,null,"Enter your data in cells with this colour"]
[null,null,null,null,"Automatically totalling cells"]
[null,null,null,null,"Pre-populated data"]

{"sheet":"Sect 1a - Background","index":2,"n_rows":76,"n_cols":6,"rows_kept":76,"cut":false,"hidden":false,"merged":[[69,1,69,9],[40,4,40,5],[10,2,12,2],[63,2,63,3],[27,2,27,3],[28,2,28,3],[25,4,25,5],[10,5,12,9],[18,1,18,9],[13,2,16,2],[21,2,21,3],[23,2,23,3],[25,2,25,3],[75,2,75,3],[75,4,78,5],[30,2,30,3],[31,2,31,3],[33,2,33,3],[73,2,73,3],[34,2,34,3],[34,4,37,5],[39,2,39,3],[40,2,40,3],[47,2,47,3],[49,2,49,3],[51,2,51,3],[53,2,53,3],[71,2,71,5],[45,1,45,9],[2,1,2,9],[31,4,31,5],[3,2,3,5],[63,4,66,5],[7,1,7,9],[4,1,4,9],[5,1,5,9],[9,2,9,3]]}
[]
[]
[null,"Section 1a - Background"]
[]
[null,"This section allows for the collection of information relating to the tenant perception survey approach, sampling and methodology behind the collection and production of the tenant perception survey TSMs. "]
[null,"Note: If you are reporting tenant perception measures for both LCRA in section 4 and LCHO in section 5 independently you will need to complete this section and section 1b."]
[]
[null,"Survey completion"]
[]
[null,"Q1","Please confirm how you are reporting the TSMs relating to Complaints and Tenant Perception Measures."]
[null,null,"Note: this question asks you to confirm how you are reporting TSMs relating to complaints (CH01 and CH02) and your Tenant Perception Measures (TP01, TP05-TP12).","Reported for LCRA stock","Yes",{"$f":"IF(AND(DP_TSML001=\"Yes\",DP_TSML002=\"No\",DP_TSML003=\"No\"),\"If the response to Sect 1a Q1L1 is 'Yes' and Sect 1a Q1L2 is 'No' then please complete this section and leave section 1b blank.\",IF(AND(DP_TSML001=\"No\",DP_TSML002=\"Yes\",DP_TSML003=\"No\"),\"If the response to Sect 1a Q1L1 is 'No' and Sect 1a Q1L2 is 'Yes' then please complete this section and leave section 1b blank.\",IF(AND(DP_TSML001=\"Yes\",DP_TSML002=\"Yes\",DP_TSML003=\"No\"),\"If Sect 1a Q1L1 is 'Yes' and Sect 1a Q1L2 is 'Yes' please complete this section, selecting the stock type for which you are reporting (e.g. LCRA or LCHO) and then complete Section 1b, selecting the other stock type for which you are reporting.\",IF(OR(AND(DP_TSML001=\"Yes\",DP_TSML002=\"No\",DP_TSML003=\"Yes\"),AND(DP_TSML001=\"No\",DP_TSML002=\"Yes\",DP_TSML003=\"Yes\"),AND(DP_TSML001=\"Yes\",DP_TSML002=\"Yes\",DP_TSML003=\"Yes\")),\"If the response to Sect 1a Q1L3 is 'Yes' and either Q1L1 or Q1L2 is 'Yes' then please check the way in which you are reporting TSMs meet requirements. We would not anticipate you reporting these TSMs for both a single stock type and the combined stock.\",\"\"))))","v":"If Sect 1a Q1L1 is 'Yes' and Sect 1a Q1L2 is 'Yes' please complete this section, selecting the stock type for which you are reporting (e.g. LCRA or LCHO) and then complete Section 1b, selecting the other stock type for which you are reporting."}]
[null,null,null,"Reported for LCHO stock","Yes"]
[null,null,null,"Reported for LCRA and LCHO stock combined","No"]
[]
[]
[]
[]
[]
[null,"Background information"]
[]
[]
[null,"Q2","Please select which section this background information relates to:",null,"LCRA - section 4"]
[]
[null,"Q3","Please select your survey approach used to generate reported perception TSMs (for the stock basis listed above).",null,"Phased approach"]
[]
[null,"Q4","We also ask that you upload a summary of your approach AND a copy of the questionnaire used to collect the perception TSMs as supporting document(s) to this survey. Please confirm here that you have done so.",null,"Yes - I have uploaded the supporting documentation"]
[]
[null,"Q5","Collection date of earliest survey response used in reported TSMs​.",null,"2024-04-02"]
[null,"Q6","Collection date of latest survey response used in reported TSMs​.",null,"2024-06-11"]
[]
[null,"Q7","Have any external contractors been used in the collection and/or analysis of the survey​?",null,"Yes"]
[null,"Q7a","If yes, please name the contract organisation(s)​",null,"Qa Research"]
[]
[null,"Q8","Did you use any incentives for tenants to complete the survey​?",null,"Yes"]
[null,"Q8a","If yes, what was the incentive?​",null,"£100 prize draw offered following completion of the survey."]
[]
[]
[]
[]
[null,"Q9","Have you been able to achieve all of the requirements set out in the TSM tenant survey requirements?​",null,"Yes"]
[null,"Q9a","If you have been unable to achieve all the requirements set out in the TSM tenant survey requirements, we ask you to upload a supporting document to this survey providing more information as to what you have been unable to achieve. Please confirm in this question that you have done so."]
[]
[]
[]
[]
[null,"Sample size information"]
[]
[null,"Q10","Confirm the size of your relevant tenant population for the purposes of the tenant perception measures.",null,90]
[]
[null,"Q11","How many tenants did you not include in the sample frame due to the exceptional circumstances outlined in paragraph 63 of TSM tenant survey requirements?​",null,0]
[]
[null,"Q12","Did you use a census or a sample to collect survey responses​?",null,"Census"]
[]
[null,"Q13","Please confirm the total number of responses to your survey for each of the following survey methods:"]
[]
[null,null,null,"Telephone",16]
[null,null,null,"Internet​",6]
[null,null,null,"Face to face",0]
[null,null,null,"Postal​",0]
[null,null,null,"SMS​",0]
[null,null,null,"All other methods ​",0]
[null,null,null,"Total sample size achieved​.",{"$f":"DP_TSML018+DP_TSML019+DP_TSML020+DP_TSML021+DP_TSML022+DP_TSML023","v":22}]
[]
[null,"Q13a","If you used any ‘other methods’, please provide more details on the ones used."]
[]
[]
[]
[]
[]
[null,"Weighting approach"]
[]
[null,null,"Note: if you have not weighted your survey responses you should answer ‘no’ to the first question and then leave the remaining questions in the section blank"]
[]
[null,"Q14","Did you use weighted responses to calculate your tenant perception measures?",null,"No"]
[]
[null,"Q14a","Please provide brief details of any weighting used."]

{"sheet":"Sect 1b - Background","index":3,"n_rows":76,"n_cols":5,"rows_kept":76,"cut":false,"hidden":false,"merged":[[9,2,9,3],[21,2,21,3],[23,2,23,3],[25,2,25,3],[27,2,27,3],[53,2,53,3],[51,2,51,3],[30,2,30,3],[31,2,31,3],[47,2,47,3],[49,2,49,3],[2,1,2,9],[7,1,7,9],[18,1,18,9],[45,1,45,9],[25,4,25,5],[40,2,40,3],[31,4,31,5],[33,2,33,3],[34,2,34,3],[34,4,37,5],[39,2,39,3],[40,4,40,5],[4,1,4,9],[5,1,5,9],[28,2,28,3],[3,2,3,5],[63,2,63,3],[63,4,66,5],[69,1,69,9],[75,2,75,3],[75,4,78,5],[73,2,73,3],[71,2,71,5]]}
[]
[]
[null,"Section 1b - Background"]
[]
[null,"This section allows for the collection of information relating to the tenant perception survey approach, sampling and methodology behind the collection and production of the tenant perception survey TSMs. "]
[null,"Note: You should only complete this section (section 1b) if you are reporting tenant perception measures for both LCRA in section 4 and LCHO in section 5 independently. Please see guidance for more information."]
[]
[null,"Survey completion (taken from Sect 1a - Background)"]
[]
[null,"Q1","Please confirm how you are reporting the TSMs relating to Complaints and Tenant Perception Measures."]
[null,null,null,"Reported for LCRA stock",{"$f":"'Sect 1a - Background'!DP_TSML001","v":"Yes"}]
[null,null,"The values here will be drawn from Section 1a","Reported for LCHO stock",{"$f":"'Sect 1a - Background'!DP_TSML002","v":"Yes"}]
[null,null,null,"Reported for LCRA and LCHO stock combined",{"$f":"'Sect 1a - Background'!DP_TSML003","v":"No"}]
[]
[]
[]
[]
[]
[null,"Background information"]
[]
[]
[null,"Q2","Please select which section this background information relates to:",null,"LCHO - section 5"]
[]
[null,"Q3","Please select your survey approach used to generate reported perception TSMs (for the stock basis listed above).",null,"Phased approach"]
[]
[null,"Q4","We also ask that you upload a summary of your approach AND a copy of the questionnaire used to collect the perception TSMs as supporting document(s) to this survey. Please confirm here that you have done so.",null,"Yes - I have uploaded the supporting documentation"]
[]
[null,"Q5","Collection date of earliest survey response used in reported TSMs​.",null,"2024-04-02"]
[null,"Q6","Collection date of latest survey response used in reported TSMs​.",null,"2024-06-11"]
[]
[null,"Q7","Have any external contractors been used in the collection and/or analysis of the survey​?",null,"Yes"]
[null,"Q7a","If yes, please name the contract organisation(s)​",null,"Qa Research"]
[]
[null,"Q8","Did you use any incentives for tenants to complete the survey​?",null,"Yes"]
[null,"Q8a","If yes, what was the incentive?​",null,"£100 prize draw offered following completion of the survey."]
[]
[]
[]
[]
[null,"Q9","Have you been able to achieve all of the requirements set out in the TSM tenant survey requirements?​",null,"Yes"]
[null,"Q9a","If you have been unable to achieve all the requirements set out in the TSM tenant survey requirements, we ask you to upload a supporting document to this survey providing more information as to what you have been unable to achieve. Please confirm in this question that you have done so."]
[]
[]
[]
[]
[null,"Sample size information"]
[]
[null,"Q10","Confirm the size of your relevant tenant population for the purposes of the tenant perception measures.",null,120]
[]
[null,"Q11","How many tenants did you not include in the sample frame due to the exceptional circumstances outlined in paragraph 63 of TSM tenant survey requirements?​",null,0]
[]
[null,"Q12","Did you use a census or a sample to collect survey responses​?",null,"Census"]
[]
[null,"Q13","Please confirm the total number of responses to your survey for each of the following survey methods:"]
[]
[null,null,null,"Telephone",27]
[null,null,null,"Internet​",27]
[null,null,null,"Face to face",0]
[null,null,null,"Postal​",0]
[null,null,null,"SMS​",0]
[null,null,null,"All other methods ​",0]
[null,null,null,"Total sample size achieved​.",{"$f":"DP_TSML061+DP_TSML062+DP_TSML063+DP_TSML064+DP_TSML065+DP_TSML066","v":54}]
[]
[null,"Q13a","If you used any ‘other methods’, please provide more details on the ones used."]
[]
[]
[]
[]
[]
[null,"Weighting approach"]
[]
[null,null,"Note: if you have not weighted your survey responses you should answer ‘no’ to the first question and then leave the remaining questions in the section blank"]
[]
[null,"Q14","Did you use weighted responses to calculate your tenant perception measures?",null,"No"]
[]
[null,"Q14b","Please provide brief details of any weighting used."]

{"sheet":"Sect 2 - Published TSMs","index":4,"n_rows":84,"n_cols":7,"rows_kept":84,"cut":false,"hidden":false,"merged":[[11,2,11,3],[9,3,9,5],[11,6,11,7],[3,1,3,9],[4,1,4,9],[2,1,2,9],[73,6,75,6],[48,1,48,2],[31,1,31,2],[42,1,42,2],[5,1,5,5],[14,1,14,5],[18,3,18,5],[19,3,19,5],[29,3,29,5],[20,3,20,5],[22,1,22,5],[26,3,26,5],[33,1,33,5],[27,3,27,5],[28,3,28,5],[50,1,50,5],[69,1,69,5],[59,1,59,5],[57,1,57,2],[67,1,67,2]]}
[]
[]
[null,"Section 2 - Published TSMs"]
[null,"The TSMs reported in this table should match your published performance against the tenant satisfaction measures."]
[null,"You must complete the table below, filling in the correct columns based on the relevant social housing stock basis for which you have published your TSMs."]
[null,"Q1 Publication information"]
[]
[null,"Q1a","Have you published your performance against the TSMs?",null,null,"No"]
[]
[null,"Q1b","If there are any TSMs where it was not possible (or will not be possible) to publish the results, please provide a brief explanation as to why this was the case.","Website will be updated by external 3rd party week commencing 01/07/2024."]
[]
[null,"Q1c","Please confirm the end date of the reporting year to which your reported TSMs relate",null,null,"2023-12-31","This date should represent the end date of the 12 month period to which the TSMs reported in this return relate."]
[]
[]
[null,"Q2 If you have published your performance against the TSMs"]
[]
[null,"Q2a","Please confirm the date on which you published your performance against the TSMs"]
[null,"Q2b","Did you publish your performance against the TSMs online?"]
[null,"Q2bi","If yes, please provide the permanent URL you have used to publish your TSM results. \n\nThis could be the performance information or TSM section of your website rather than a direct link to the results.","https://habitarehomes.co.uk/report/"]
[null,"Q2c","If you have not published your performance against the TSMs online, please briefly outline your approach to publication."]
[null,"Q2ci","If you have not published your performance against the TSMs online, please upload a copy of your publication as a supporting document. Please confirm that you have done so here."]
[]
[null,"Q3 If you have NOT yet published your performance against the TSMs"]
[]
[null,"Q3a","Please confirm the date on which you INTEND to publish your performance against the TSMs",null,null,"2024-07-05"]
[null,"Q3b","Do you intend to publish your performance against the TSMs online?",null,null,"Yes"]
[null,"Q3bi","If yes, please provide the permanent URL you intend to use to publish your TSM results (if available). \n\nThis could be the performance information or TSM section of your website rather than a direct link to the results."]
[null,"Q3bii","Please upload any documents you have to support your online publication approach, such as a final draft of your planned online publication as a supporting document. Please confirm that you have done so here.","Yes - I have uploaded a supporting document"]
[null,"Q3c","If you do not intend to publish your performance against the TSMs online, please briefly outline your intended approach to publication."]
[null,"Q3ci","If you do not intend to publish your performance online, please upload any documents you have to support your publication approach, such as a final draft of your planned publication as a supporting document. Please confirm that you have done so here."]
[]
[null,"Q4a Building safety"]
[]
[null,"Note: All proportions should be reported to one decimal place (with 99.5% recorded as 99.5 and not 0.995)"]
[]
[null,null,null,"LCRA","LCHO","Combined"]
[null,"BS01","Proportion of homes for which all required gas safety checks have been carried out.",null,null,100]
[null,"BS02","Proportion of homes for which all required fire risk assessments have been carried out.",null,null,100]
[null,"BS03","Proportion of homes for which all required asbestos management surveys or re-inspections have been carried out.",null,null,100]
[null,"BS04","Proportion of homes for which all required legionella risk assessments have been carried out.",null,null,33.1]
[null,"BS05","Proportion of homes for which all required communal passenger lift safety checks have been carried out.",null,null,100]
[]
[null,"Q4b Anti-social behaviour"]
[]
[null,null,null,"LCRA","LCHO","Combined"]
[null,"NM01 (1)","Number of anti-social behaviour cases, opened per 1,000 homes.",null,null,0]
[null,"NM01 (2)","Number of anti-social behaviour cases that involve hate incidents opened per 1,000 homes",null,null,0]
[]
[null,"Q4c DHS and repairs"]
[]
[null,"Note: All proportions should be reported to one decimal place (with 99.5% recorded as 99.5 and not 0.995)"]
[]
[null,null,null,"LCRA","LCHO","Combined"]
[null,"RP01","Proportion of homes that do not meet the Decent Homes Standard.",0]
[null,"RP02 (1)","Proportion of non-emergency responsive repairs completed within the landlord’s target timescale.",90]
[null,"RP02 (2)","Proportion of emergency responsive repairs completed within the landlord’s target timescale.",93.3]
[]
[null,"Q4d Complaints"]
[]
[null,"Note: All proportions should be reported to one decimal place (with 99.5% recorded as 99.5 and not 0.995)"]
[]
[null,null,null,"LCRA","LCHO","Combined"]
[null,"CH01 (1)","Number of stage one complaints received per 1,000 homes.",33.299999999999997,100,71.400000000000006]
[null,"CH01 (2)","Number of stage two complaints received per 1,000 homes.",0,58.3,33.299999999999997]
[null,"CH02 (1)","Proportion of stage one complaints responded to within the Housing Ombudsman’s Complaint Handling Code timescales.",100,83.3,86.7]
[null,"CH02 (2)","Proportion of stage two complaints responded to within the Housing Ombudsman’s Complaint Handling Code timescales.",0,71.400000000000006,71.400000000000006]
[]
[null,"Q4e Tenant perception measures"]
[]
[null,"Note: All proportions should be reported to one decimal place (with 99.5% recorded as 99.5 and not 0.995)"]
[]
[null,null,null,"LCRA","LCHO","Combined"]
[null,"TP01","Proportion of respondents who report that they are satisfied with the overall service from their landlord.",59.1,35.200000000000003,42.1]
[null,"TP02","Proportion of respondents who have received a repair in the last 12 months who report that they are satisfied with the overall repairs service.",83.3,null,83.3,"For TP02 to TP04 - please ensure that proportions reported relate only to responses from tenants in LCRA stock as per the guidance."]
[null,"TP03","Proportion of respondents who have received a repair in the last 12 months who report that they are satisfied with the time taken to complete their most recent repair.",66.7,null,66.7]
[null,"TP04","Proportion of respondents who report that they are satisfied that their home is well maintained.",63.6,null,63.6]
[null,"TP05","Proportion of respondents who report that they are satisfied that their home is safe.",90.9,53.7,64.5]
[null,"TP06","Proportion of respondents who report that they are satisfied that their landlord listens to tenant views and acts upon them.",47.4,26.9,32.4]
[null,"TP07","Proportion of respondents who report that they are satisfied that their landlord keeps them informed about things that matter to them.",61.9,29.4,38.9]
[null,"TP08","Proportion of respondents who report that they agree their landlord treats them fairly and with respect.",77.3,33.299999999999997,46.6]
[null,"TP09","Proportion of respondents who report making a complaint in the last 12 months who are satisfied with their landlord’s approach to complaints handling.",33.299999999999997,12.5,17.100000000000001]
[null,"TP10","Proportion of respondents with communal areas who report that they are satisfied that their landlord keeps communal areas clean and well maintained.",85.7,21.4,42.9]
[null,"TP11","Proportion of respondents who report that they are satisfied that their landlord makes a positive contribution to the neighbourhood.",65,18.2,32.799999999999997]
[null,"TP12","Proportion of respondents who report that they are satisfied with their landlord’s approach to handling anti-social behaviour.",73.3,18.8,36.200000000000003]

{"sheet":"Sect 3 - TSMs reported by all","index":5,"n_rows":55,"n_cols":7,"rows_kept":55,"cut":false,"hidden":false,"merged":[[54,4,54,5],[52,4,52,5],[24,1,24,5],[25,1,25,5],[26,1,26,5],[29,2,29,5],[36,1,36,9],[28,2,28,6],[38,1,38,5],[42,2,42,5],[43,2,43,5],[40,2,40,5],[50,1,50,5],[2,1,2,9],[10,1,10,9],[12,2,12,9],[22,1,22,9],[3,1,3,4],[4,1,4,5],[13,2,13,5],[5,1,5,5],[7,2,7,4],[8,2,8,4],[8,5,8,8]]}
[]
[]
[null,"Section 3 - TSMs reported by all providers"]
[]
[null,"This section must be completed by all providers."]
[null,"Achieving the requirements for TSMs calculated for management information"]
[]
[null,"Q1a","Have you been able to achieve all of the requirements set out in the TSM technical requirements for TSMs calculated from management information?",null,null,"Yes"]
[null,"Q1b","If you have been unable to achieve all the requirements set out in the TSM technical requirements, we ask you to upload a supporting document to this survey providing more information as to what you have been unable to achieve. Please confirm in this question that you have done so."]
[]
[null,"Building safety TSMs"]
[]
[null,"Q2","For each of the five Building Safety TSMs please report the numerator and the denominator used to calculate the TSM. The calculation in each line will update once these data have been entered."]
[null,null,"Please refer to the guidance document for more details on the correct way to report the numerator and denominator."]
[]
[null,null,null,"Calculation (sum numerator/ denominator)","Numerator used in the calculation of the TSM as defined in the TSM requirements","Denominator used in the calculation of the TSM as defined in the TSM technical requirements"]
[null,"BS01","Proportion of homes for which all required gas safety checks have been carried out.",{"$f":"IF(ISERROR((DP_TSML143/DP_TSML144)*100),0,(DP_TSML143/DP_TSML144)*100)","v":100},11,11]
[null,"BS02","Proportion of homes for which all required fire risk assessments have been carried out.",{"$f":"IF(ISERROR((DP_TSML146/DP_TSML147)*100),0,(DP_TSML146/DP_TSML147)*100)","v":100},118,118]
[null,"BS03","Proportion of homes for which all required asbestos management surveys or re-inspections have been carried out.",{"$f":"IF(ISERROR((DP_TSML149/DP_TSML150)*100),0,(DP_TSML149/DP_TSML150)*100)","v":100},210,210]
[null,"BS04","Proportion of homes for which all required legionella risk assessments have been carried out.",{"$f":"IF(ISERROR((DP_TSML152/DP_TSML153)*100),0,(DP_TSML152/DP_TSML153)*100)","v":33.050847457627121},39,118]
[null,"BS05","Proportion of homes for which all required communal passenger lift safety checks have been carried out.",{"$f":"IF(ISERROR((DP_TSML155/DP_TSML156)*100),0,(DP_TSML155/DP_TSML156)*100)","v":100},118,118]
[]
[null,"Anti-social behaviour TSMs"]
[]
[null,"This TSM has two parts"]
[null,"1 – the number of anti-social behaviour cases opened per 1,000 homes and "]
[null,"2 – the number of anti-social behaviour cases (as reported in the first part) that involve hate incidents opened per 1,000 homes."]
[]
[null,"Q3","For each of the ASB TSMs please report the numerator and the denominator used to calculate the TSM. The calculation in each line will update once these data have been entered."]
[null,null,"Please refer to the guidance document for more details on the correct way to report the numerator and denominator."]
[]
[null,null,null,"Calculation (sum (numerator/ denominator) * 1000)","Numerator \nTotal number of anti-social behaviour cases opened by or on behalf of the provider during the reporting year (including any ASB cases that involve hate incidents)","Denominator \nNumber of dwelling units owned of the relevant social housing stock at year end"]
[null,"NM01 (pt1)","Number of anti-social behaviour cases opened per 1,000 homes.",{"$f":"IF(ISERROR((DP_TSML158/DP_TSML159)*1000),0,(DP_TSML158/DP_TSML159)*1000)","v":0},0,210]
[null,null,null,"Calculation (sum (numerator/ denominator) * 1000)","Numerator \nNumber of anti-social behaviour cases (as reported in part 1) that involve hate incidents opened by or on behalf of the provider during the reporting year","Denominator \nNumber of dwelling units owned of the relevant social housing stock at year end"]
[null,"NM01 (pt2)","Number of anti-social behaviour cases that involve hate incidents opened per 1,000 homes.",{"$f":"IF(ISERROR((DP_TSML161/DP_TSML162)*1000),0,(DP_TSML161/DP_TSML162)*1000)","v":0},0,210]
[]
[null,"DHS and repairs TSMs"]
[]
[null,"DHS and repairs TSMs must be reported by all providers but on the basis of their LCRA stock only. "]
[]
[null,null,"If you do not own any LCRA stock you should leave this section blank"]
[]
[null,"Q4","For each of the DHS and repairs TSMs please report the numerator and the denominator used to calculate the TSM. The calculation in each line will update once these data have been entered."]
[null,null,"Please refer to the guidance document for more details on the correct way to report the numerator and denominator."]
[]
[null,null,null,"Calculation (sum numerator/ denominator)","Numerator used in the calculation of the TSM as defined in the TSM requirements","Denominator used in the calculation of the TSM as defined in the TSM technical requirements"]
[null,"RP01","Proportion of homes that do not meet the Decent Homes Standard.",{"$f":"IF(ISERROR((DP_TSML164/DP_TSML165)*100),0,(DP_TSML164/DP_TSML165)*100)","v":0},0,210]
[null,"RP02 (pt1)","Proportion of non-emergency responsive repairs completed within the landlord’s target timescale.",{"$f":"IF(ISERROR((DP_TSML167/DP_TSML168)*100),0,(DP_TSML167/DP_TSML168)*100)","v":90},27,30]
[null,"RP02 (pt2)","Proportion of emergency responsive repairs completed within the landlord’s target timescale.",{"$f":"IF(ISERROR((DP_TSML170/DP_TSML171)*100),0,(DP_TSML170/DP_TSML171)*100)","v":93.333333333333329},14,15]
[]
[null,"Questions Q5a and Q5b are optional"]
[null,"Q"]
[null,"Q5a","What is your (maximum) target timescale for non-emergency repairs used to calculate RP02?​","30 days ","Please give your response in working days.",null,"This question is optional."]
[]
[null,"Q5b","What is your (maximum) target timescale for emergency repairs used to calculate RP02?","24 hours ","Please give your response in hours.",null,"This question is optional."]

{"sheet":"Sect 4 - TSMs reported for LCRA","index":6,"n_rows":86,"n_cols":9,"rows_kept":86,"cut":false,"hidden":false,"merged":[[44,6,44,7],[46,8,49,9],[38,6,39,7],[10,2,10,7],[3,1,3,4],[6,1,6,6],[8,1,8,4],[4,1,4,9],[9,2,9,7],[13,2,13,4],[15,2,15,4],[18,2,18,4],[18,5,19,5],[19,2,19,4],[18,6,19,7],[38,5,39,5],[36,2,36,4],[21,2,21,4],[35,5,36,5],[26,2,26,7],[27,2,27,7],[21,6,22,7],[35,6,36,7],[21,5,22,5],[22,2,22,4],[25,1,25,4],[30,2,30,4],[32,2,32,4],[2,1,2,9],[72,2,73,2],[85,2,85,8],[46,2,46,4],[46,5,49,7],[51,1,51,6],[53,1,53,5],[54,2,54,8],[55,2,55,8],[39,2,39,4],[42,1,42,4],[57,2,58,2],[70,2,70,8],[44,2,44,4],[38,2,38,4],[35,2,35,4]]}
[]
[]
[null,"Section 4 - TSMs reported for low cost rental accommodation (LCRA) stock"]
[]
[null,"This section allows for the collection of the TSMs relating to LCRA dwelling stock and the information providing the context for these measures."]
[]
[null,"Complaints TSMs"]
[]
[null,"Stage one complaints"]
[null,"Q1","Please report the number of stage one complaints and the proportion of these you responded to within the Housing Ombudsman’s Complaint Handling Code timescales as defined in the TSM technical requirements"]
[null,null,"Please refer to the guidance document for more details on the correct way to report the numerator and denominator."]
[]
[null,null,null,null,null,"Calculation (sum (numerator/ denominator) * 1000)","Numerator \nNumber of stage one complaints made by tenants in the relevant stock type during the reporting year","Denominator Number of dwelling units owned of the relevant stock type at year end"]
[null,"CH01","Number of stage one complaints made by tenants in the relevant stock type during the reporting year per 1,000 homes.",null,null,{"$f":"IF(ISERROR((DP_TSML178/DP_TSML179)*1000),0,(DP_TSML178/DP_TSML179)*1000)","v":33.333333333333336},3,90]
[null,null,null,null,null,"Calculation (sum (numerator/ denominator) * 100)","Numerator \nNumber of stage one complaints made by tenants during the reporting year for the relevant stock type that were responded to within the Housing Ombudsman’s Complaint Handling Code timescale","Denominator Number of stage one complaints made by tenants in the relevant stock type during the reporting year"]
[null,"CH02","Proportion of stage one complaints responded to within the Housing Ombudsman’s Complaint Handling Code timescales.",null,null,{"$f":"IF(ISERROR((DP_TSML181/DP_TSML182)*100),0,(DP_TSML181/DP_TSML182)*100)","v":100},3,3]
[]
[]
[null,"Q2a","Out of the number of stage one complaints made by tenants during the reporting year, what number were responded to within Complaint Handling Code timescales – ",null,null,null,"This question is optional."]
[null,null,"without the use of extensions permitted in the Code."]
[]
[null,"Q2b","Out of the number of stage one complaints made by tenants during the reporting year, what number were responded to within Complaint Handling Code timescales  – ",null,null,null,"This question is optional."]
[null,null,"with the use of extensions permitted in the Code."]
[]
[]
[null,"Stage two complaints"]
[null,"Q3","Please report the number of stage two complaints and the proportion of these you responded to within the Housing Ombudsman’s Complaint Handling Code timescales as defined in TSM technical requirements."]
[null,null,"Please refer to the guidance document for more details on the correct way to report the numerator and denominator."]
[]
[null,null,null,null,null,"Calculation (sum (numerator/ denominator) * 1000)","Numerator \nNumber of stage two complaints made by tenants in the relevant stock type during the reporting year","Denominator Number of dwelling units owned of the relevant stock type at year end"]
[null,"CH01","Number of stage two complaints made by tenants in the relevant stock type during the reporting year per 1,000 homes.",null,null,{"$f":"IF(ISERROR((DP_TSML186/DP_TSML187)*1000),0,(DP_TSML186/DP_TSML187)*1000)","v":0},0,90]
[null,null,null,null,null,"Calculation (sum (numerator/ denominator) * 100)","Numerator \nNumber of stage two complaints made by tenants during the reporting year for the relevant stock type that were responded to within the Housing Ombudsman’s Complaint Handling Code timescale","Denominator used in the calculation of the TSM as defined in TSM technical requirements"]
[null,"CH02","Proportion of stage two complaints responded to within the Housing Ombudsman’s Complaint Handling Code timescales.",null,null,{"$f":"IF(ISERROR((DP_TSML189/DP_TSML190)*100),0,(DP_TSML189/DP_TSML190)*100)","v":0},0,0]
[]
[]
[null,"Q4a","Out of the number of stage two complaints made by tenants during the reporting year, what number were responded to within Complaint Handling Code timescales – ","Number","This question is optional.",null,"This question is optional."]
[null,null,"without the use of extensions permitted in the Code."]
[]
[null,"Q4b","Out of the number of stage two complaints made by tenants during the reporting year, what number were responded to within Complaint Handling Code timescales  – ","Number","This question is optional.",null,"This question is optional."]
[null,null,"with the use of extensions permitted in the Code."]
[]
[]
[null,"CH02 Information"]
[]
[null,"Q5a","Has CH02 been calculated using the standard maximum timescales as set out in the Complaint Handling Code for each response stage?",null,null,"Yes","This question is optional."]
[]
[null,"Q5b","If ‘No’ what were the maximum timescales used?",null,null,null,null,null,"This question is optional"]
[]
[]
[]
[]
[null,"Tenant perception measures"]
[]
[]
[null,"Q6","For each tenant perception measure (TP01-TP12) you must report the number of survey responses used to calculate it as defined in TSM technical requirements."]
[null,null,"For TP02, TP03, TP09 and TP10 providers must report the number of respondents who responded ‘Yes’ and the number of respondents who responded ‘No’ to the filter question relevant to that perception measure . "]
[]
[null,null,null,"TP01","TP02","TP03","TP04","TP05","TP06"]
[null,null,null," Taking everything into account, how satisfied or dissatisfied are you with the service provided by [your landlord]?","How satisfied or dissatisfied are you with the overall repairs service from [your landlord] over the last 12 months?","How satisfied or dissatisfied are you with the time taken to complete your most recent repair after you reported it?","How satisfied or dissatisfied are you that [your landlord] provides a home that is well maintained?","Thinking about the condition of the property or building you live in, how satisfied or dissatisfied are you that [your landlord] provides a home that is safe?","How satisfied or dissatisfied are you that [your landlord] listens to your views and acts upon them?"]
[null,null,"Number of respondents who responded ‘Yes’ to the filter question relevant to the perception measure.",null,6,6]
[null,null,"Number of respondents who responded ‘No’ to the filter question relevant to the perception measure.",null,15,15]
[]
[null,null,"Very satisfied​",6,2,2,7,10,4]
[null,null,"Fairly satisfied​",7,3,2,7,10,5]
[null,null,"Neither satisfied nor dissatisfied",5,1,0,5,2,4]
[null,null,"Fairly dissatisfied​",3,0,0,1,0,4]
[null,null,"Very dissatisfied​",1,0,2,2,0,2]
[null,null,"Not applicable/ don’t know*",null,null,null,null,0,3]
[null,null,"Calculated TSM: Proportion of respondents who report that they are satisfied ",{"$f":"IF(ISERROR((DP_TSML195+DP_TSML196)/(DP_TSML195+DP_TSML196+DP_TSML197+DP_TSML198+DP_TSML199)*100),0,(DP_TSML195+DP_TSML196)/(DP_TSML195+DP_TSML196+DP_TSML197+DP_TSML198+DP_TSML199)*100)","v":59.090909090909093},{"$f":"IF(ISERROR((DP_TSML204+DP_TSML205)/(DP_TSML204+DP_TSML205+DP_TSML206+DP_TSML207+DP_TSML208)*100),0,(DP_TSML204+DP_TSML205)/(DP_TSML204+DP_TSML205+DP_TSML206+DP_TSML207+DP_TSML208)*100)","v":83.333333333333343},{"$f":"IF(ISERROR((DP_TSML213+DP_TSML214)/(DP_TSML213+DP_TSML214+DP_TSML215+DP_TSML216+DP_TSML217)*100),0,(DP_TSML213+DP_TSML214)/(DP_TSML213+DP_TSML214+DP_TSML215+DP_TSML216+DP_TSML217)*100)","v":66.666666666666657},{"$f":"IF(ISERROR((DP_TSML220+DP_TSML221)/(DP_TSML220+DP_TSML221+DP_TSML222+DP_TSML223+DP_TSML224)*100),0,(DP_TSML220+DP_TSML221)/(DP_TSML220+DP_TSML221+DP_TSML222+DP_TSML223+DP_TSML224)*100)","v":63.636363636363633},{"$f":"IF(ISERROR((DP_TSML227+DP_TSML228)/(DP_TSML227+DP_TSML228+DP_TSML229+DP_TSML230+DP_TSML231)*100),0,(DP_TSML227+DP_TSML228)/(DP_TSML227+DP_TSML228+DP_TSML229+DP_TSML230+DP_TSML231)*100)","v":90.909090909090907},{"$f":"IF(ISERROR((DP_TSML234+DP_TSML235)/(DP_TSML234+DP_TSML235+DP_TSML236+DP_TSML237+DP_TSML238)*100),0,(DP_TSML234+DP_TSML235)/(DP_TSML234+DP_TSML235+DP_TSML236+DP_TSML237+DP_TSML238)*100)","v":47.368421052631575}]
[]
[null,null,"* The option ‘Not applicable/ don’t know’ is only a specified response to TP05, TP06, TP07, TP08, TP11 and TP12. "]
[]
[null,null,null,"TP07","TP08","TP09","TP10","TP11","TP12"]
[null,null,null,"How satisfied or dissatisfied are you that [your landlord] keeps you informed about things that matter to you?","To what extent do you agree or disagree with the following “[my landlord] treats me fairly and with respect”?","How satisfied or dissatisfied are you with [your landlord]’s approach to complaints handling?","How satisfied or dissatisfied are you that [your landlord]\nkeeps these communal areas clean and well maintained?","How satisfied or dissatisfied are you that [your landlord] makes a positive contribution to your neighbourhood?","How satisfied or dissatisfied are you with [your landlord]’s approach to handling anti-social behaviour?"]
[null,null,"Number of respondents who responded ‘Yes’ to the filter question relevant to the perception measure.",null,null,9,15]
[null,null,"Number of respondents who responded ‘No’ to the filter question relevant to the perception measure.",null,null,13,6]
[]
[null,null,"Very satisfied​ (or Strongly agree for TP08)",5,11,2,3,3,2]
[null,null,"Fairly satisfied​ (or Agree for TP08)",8,6,1,9,10,9]
[null,null,"Neither satisfied nor dissatisfied (or Neither agree nor disagree for TP08)",2,3,2,0,3,3]
[null,null,"Fairly dissatisfied​ (or Disagree for TP08)",3,1,2,1,2,0]
[null,null,"Very dissatisfied​ (or Strongly disagree for TP08)",3,1,2,1,2,1]
[null,null,"Not applicable/ don’t know*",1,0,null,null,2,7]
[null,null,"Calculated TSM: Proportion of respondents who report that they are satisfied (or that they agree TP08)",{"$f":"IF(ISERROR((DP_TSML241+DP_TSML242)/(DP_TSML241+DP_TSML242+DP_TSML243+DP_TSML244+DP_TSML245)*100),0,(DP_TSML241+DP_TSML242)/(DP_TSML241+DP_TSML242+DP_TSML243+DP_TSML244+DP_TSML245)*100)","v":61.904761904761905},{"$f":"IF(ISERROR((DP_TSML248+DP_TSML249)/(DP_TSML248+DP_TSML249+DP_TSML250+DP_TSML251+DP_TSML252)*100),0,(DP_TSML248+DP_TSML249)/(DP_TSML248+DP_TSML249+DP_TSML250+DP_TSML251+DP_TSML252)*100)","v":77.272727272727266},{"$f":"IF(ISERROR((DP_TSML257+DP_TSML258)/(DP_TSML257+DP_TSML258+DP_TSML259+DP_TSML260+DP_TSML261)*100),0,(DP_TSML257+DP_TSML258)/(DP_TSML257+DP_TSML258+DP_TSML259+DP_TSML260+DP_TSML261)*100)","v":33.333333333333329},{"$f":"IF(ISERROR((DP_TSML266+DP_TSML267)/(DP_TSML266+DP_TSML267+DP_TSML268+DP_TSML269+DP_TSML270)*100),0,(DP_TSML266+DP_TSML267)/(DP_TSML266+DP_TSML267+DP_TSML268+DP_TSML269+DP_TSML270)*100)","v":85.714285714285708},{"$f":"IF(ISERROR((DP_TSML273+DP_TSML274)/(DP_TSML273+DP_TSML274+DP_TSML275+DP_TSML276+DP_TSML277)*100),0,(DP_TSML273+DP_TSML274)/(DP_TSML273+DP_TSML274+DP_TSML275+DP_TSML276+DP_TSML277)*100)","v":65},{"$f":"IF(ISERROR((DP_TSML280+DP_TSML281)/(DP_TSML280+DP_TSML281+DP_TSML282+DP_TSML283+DP_TSML284)*100),0,(DP_TSML280+DP_TSML281)/(DP_TSML280+DP_TSML281+DP_TSML282+DP_TSML283+DP_TSML284)*100)","v":73.333333333333329}]
[]
[null,null,"* The option ‘Not applicable/ don’t know’ is only a specified response to TP05, TP06, TP07, TP08, TP11 and TP12."]

{"sheet":"Sect 5 - TSMs reported for LCHO","index":7,"n_rows":86,"n_cols":9,"rows_kept":86,"cut":false,"hidden":false,"merged":[[44,6,44,7],[46,8,49,9],[38,6,39,7],[10,2,10,7],[3,1,3,4],[4,1,4,9],[6,1,6,6],[8,1,8,4],[9,2,9,7],[13,2,13,4],[15,2,15,4],[18,2,18,4],[18,5,19,5],[19,2,19,4],[18,6,19,7],[38,5,39,5],[36,2,36,4],[21,2,21,4],[35,5,36,5],[26,2,26,7],[27,2,27,7],[21,6,22,7],[35,6,36,7],[21,5,22,5],[22,2,22,4],[25,1,25,4],[30,2,30,4],[32,2,32,4],[2,1,2,9],[72,2,73,2],[85,2,85,8],[46,2,46,4],[46,5,49,7],[51,1,51,6],[53,1,53,5],[54,2,54,8],[55,2,55,8],[39,2,39,4],[42,1,42,4],[57,2,58,2],[70,2,70,8],[44,2,44,4],[38,2,38,4],[35,2,35,4]]}
[]
[]
[null,"Section 5 - TSMs reported for low cost home ownership (LCHO) stock"]
[]
[null,"This section allows for the collection of the TSMs relating to LCHO dwelling stock and the information providing the context for these measures."]
[]
[null,"Complaints TSMs"]
[]
[null,"Stage one complaints"]
[null,"Q1","Please report the number of stage one complaints and the proportion of these you responded to within the Housing Ombudsman’s Complaint Handling Code timescales as defined in the TSM technical requirements"]
[null,null,"Please refer to the guidance document for more details on the correct way to report the numerator and denominator."]
[]
[null,null,null,null,null,"Calculation (sum (numerator/ denominator) * 1000)","Numerator \nNumber of stage one complaints made by tenants in the relevant stock type during the reporting year","Denominator Number of dwelling units owned of the relevant stock type at year end"]
[null,"CH01","Number of stage one complaints made by tenants in the relevant stock type during the reporting year per 1,000 homes.",null,null,{"$f":"IF(ISERROR((DP_TSML288/DP_TSML289)*1000),0,(DP_TSML288/DP_TSML289)*1000)","v":100},12,120]
[null,null,null,null,null,"Calculation (sum (numerator/ denominator) * 100)","Numerator \nNumber of stage one complaints made by tenants during the reporting year for the relevant stock type that were responded to within the Housing Ombudsman’s Complaint Handling Code timescale","Denominator Number of stage one complaints made by tenants in the relevant stock type during the reporting year"]
[null,"CH02","Proportion of stage one complaints responded to within the Housing Ombudsman’s Complaint Handling Code timescales.",null,null,{"$f":"IF(ISERROR((DP_TSML291/DP_TSML292)*100),0,(DP_TSML291/DP_TSML292)*100)","v":83.333333333333343},10,12]
[]
[]
[null,"Q2a","Out of the number of stage one complaints made by tenants during the reporting year, what number were responded to within Complaint Handling Code timescales – ",null,null,null,"This question is optional."]
[null,null,"without the use of extensions permitted in the Code."]
[]
[null,"Q2b","Out of the number of stage one complaints made by tenants during the reporting year, what number were responded to within Complaint Handling Code timescales  – ",null,null,null,"This question is optional."]
[null,null,"with the use of extensions permitted in the Code."]
[]
[]
[null,"Stage two complaints"]
[null,"Q3","Please report the number of stage two complaints and the proportion of these you responded to within the Housing Ombudsman’s Complaint Handling Code timescales as defined in TSM technical requirements"]
[null,null,"Please refer to the guidance document for more details on the correct way to report the numerator and denominator."]
[]
[null,null,null,null,null,"Calculation (sum (numerator/ denominator) * 1000)","Numerator \nNumber of stage two complaints made by tenants in the relevant stock type during the reporting year","Denominator Number of dwelling units owned of the relevant stock type at year end"]
[null,"CH01","Number of stage two complaints made by tenants in the relevant stock type during the reporting year per 1,000 homes.",null,null,{"$f":"IF(ISERROR((DP_TSML296/DP_TSML297)*1000),0,(DP_TSML296/DP_TSML297)*1000)","v":58.333333333333336},7,120]
[null,null,null,null,null,"Calculation (sum (numerator/ denominator) * 100)","Numerator \nNumber of stage two complaints made by tenants during the reporting year for the relevant stock type that were responded to within the Housing Ombudsman’s Complaint Handling Code timescale","Denominator Number of stage two complaints made by tenants in the relevant stock type during the reporting year"]
[null,"CH02","Proportion of stage two complaints responded to within the Housing Ombudsman’s Complaint Handling Code timescales.",null,null,{"$f":"IF(ISERROR((DP_TSML299/DP_TSML300)*100),0,(DP_TSML299/DP_TSML300)*100)","v":71.428571428571431},5,7]
[]
[]
[null,"Q4a","Out of the number of stage two complaints made by tenants during the reporting year, what number were responded to within Complaint Handling Code timescales – ","Number","This question is optional.",null,"This question is optional."]
[null,null,"without the use of extensions permitted in the Code."]
[]
[null,"Q4b","Out of the number of stage two complaints made by tenants during the reporting year, what number were responded to within Complaint Handling Code timescales  – ","Number","This question is optional.",null,"This question is optional."]
[null,null,"with the use of extensions permitted in the Code."]
[]
[]
[null,"CH02 Information"]
[]
[null,"Q5a","Has CH02 been calculated using the standard maximum timescales as set out in the Complaint Handling Code for each response stage?",null,null,"Yes","This question is optional."]
[]
[null,"Q5b","If ‘No’ what were the maximum timescales used?",null,null,null,null,null,"This question is optional"]
[]
[]
[]
[]
[null,"Tenant perception measures"]
[]
[]
[null,"Q6","For each tenant perception measure (TP01 and TP05 - TP12) you must report the number of survey responses used to calculate it as defined in TSM technical requirements."]
[null,null,"For TP09 and TP10 providers must report the number of respondents who responded ‘Yes’ and the number of respondents who responded ‘No’ to the filter question relevant to that perception measure. "]
[]
[null,null,null,"TP01","TP02","TP03","TP04","TP05","TP06"]
[null,null,null," Taking everything into account, how satisfied or dissatisfied are you with the service provided by [your landlord]?","Not applicable to LCHO stock","Not applicable to LCHO stock","Not applicable to LCHO stock","Thinking about the condition of the property or building you live in, how satisfied or dissatisfied are you that [your landlord] provides a home that is safe?","How satisfied or dissatisfied are you that [your landlord] listens to your views and acts upon them?"]
[null,null,"Number of respondents who responded ‘Yes’ to the filter question relevant to the perception measure."]
[null,null,"Number of respondents who responded ‘No’ to the filter question relevant to the perception measure."]
[]
[null,null,"Very satisfied​",8,null,null,null,16,8]
[null,null,"Fairly satisfied​",11,null,null,null,13,6]
[null,null,"Neither satisfied nor dissatisfied",8,null,null,null,8,8]
[null,null,"Fairly dissatisfied​",8,null,null,null,7,14]
[null,null,"Very dissatisfied​",19,null,null,null,10,16]
[null,null,"Not applicable/ don’t know*",null,null,null,null,0,2]
[null,null,"Calculated TSM: Proportion of respondents who report that they are satisfied ",{"$f":"IF(ISERROR((DP_TSML305+DP_TSML306)/(DP_TSML305+DP_TSML306+DP_TSML307+DP_TSML308+DP_TSML309)*100),0,(DP_TSML305+DP_TSML306)/(DP_TSML305+DP_TSML306+DP_TSML307+DP_TSML308+DP_TSML309)*100)","v":35.185185185185183},null,null,null,{"$f":"IF(ISERROR((DP_TSML312+DP_TSML313)/(DP_TSML312+DP_TSML313+DP_TSML314+DP_TSML315+DP_TSML316)*100),0,(DP_TSML312+DP_TSML313)/(DP_TSML312+DP_TSML313+DP_TSML314+DP_TSML315+DP_TSML316)*100)","v":53.703703703703709},{"$f":"IF(ISERROR((DP_TSML319+DP_TSML320)/(DP_TSML319+DP_TSML320+DP_TSML321+DP_TSML322+DP_TSML323)*100),0,(DP_TSML319+DP_TSML320)/(DP_TSML319+DP_TSML320+DP_TSML321+DP_TSML322+DP_TSML323)*100)","v":26.923076923076923}]
[]
[null,null,"* The option ‘Not applicable/ don’t know’ is only a specified response to TP05, TP06, TP07, TP08, TP11 and TP12. However, for other tenant perception measures you may have unprompted ‘not known’ or ‘not applicable’ responses  (e.g. where a respondent does not respond to any of the accepted responses) and you should record these here. "]
[]
[null,null,null,"TP07","TP08","TP09","TP10","TP11","TP12"]
[null,null,null,"How satisfied or dissatisfied are you that [your landlord] keeps you informed about things that matter to you?","To what extent do you agree or disagree with the following “[my landlord] treats me fairly and with respect”?","How satisfied or dissatisfied are you with [your landlord]’s approach to complaints handling?","How satisfied or dissatisfied are you that [your landlord]\nkeeps these communal areas clean and well maintained?","How satisfied or dissatisfied are you that [your landlord] makes a positive contribution to your neighbourhood?","How satisfied or dissatisfied are you with [your landlord]’s approach to handling anti-social behaviour?"]
[null,null,"Number of respondents who responded ‘Yes’ to the filter question relevant to the perception measure.",null,null,32,28]
[null,null,"Number of respondents who responded ‘No’ to the filter question relevant to the perception measure.",null,null,22,22]
[]
[null,null,"Very satisfied​ (or Strongly agree for TP08)",6,10,0,2,3,2]
[null,null,"Fairly satisfied​ (or Agree for TP08)",9,7,4,4,5,4]
[null,null,"Neither satisfied nor dissatisfied (or Neither agree nor disagree for TP08)",9,18,5,5,17,13]
[null,null,"Fairly dissatisfied​ (or Disagree for TP08)",10,6,6,4,6,5]
[null,null,"Very dissatisfied​ (or Strongly disagree for TP08)",17,10,17,13,13,8]
[null,null,"Not applicable/ don’t know*",3,3,null,null,10,22]
[null,null,"Calculated TSM: Proportion of respondents who report that they are satisfied (or that they agree TP08)",{"$f":"IF(ISERROR((DP_TSML326+DP_TSML327)/(DP_TSML326+DP_TSML327+DP_TSML328+DP_TSML329+DP_TSML330)*100),0,(DP_TSML326+DP_TSML327)/(DP_TSML326+DP_TSML327+DP_TSML328+DP_TSML329+DP_TSML330)*100)","v":29.411764705882355},{"$f":"IF(ISERROR((DP_TSML333+DP_TSML334)/(DP_TSML333+DP_TSML334+DP_TSML335+DP_TSML336+DP_TSML337)*100),0,(DP_TSML333+DP_TSML334)/(DP_TSML333+DP_TSML334+DP_TSML335+DP_TSML336+DP_TSML337)*100)","v":33.333333333333329},{"$f":"IF(ISERROR((DP_TSML342+DP_TSML343)/(DP_TSML342+DP_TSML343+DP_TSML344+DP_TSML345+DP_TSML346)*100),0,(DP_TSML342+DP_TSML343)/(DP_TSML342+DP_TSML343+DP_TSML344+DP_TSML345+DP_TSML346)*100)","v":12.5},{"$f":"IF(ISERROR((DP_TSML351+DP_TSML352)/(DP_TSML351+DP_TSML352+DP_TSML353+DP_TSML354+DP_TSML355)*100),0,(DP_TSML351+DP_TSML352)/(DP_TSML351+DP_TSML352+DP_TSML353+DP_TSML354+DP_TSML355)*100)","v":21.428571428571427},{"$f":"IF(ISERROR((DP_TSML358+DP_TSML359)/(DP_TSML358+DP_TSML359+DP_TSML360+DP_TSML361+DP_TSML362)*100),0,(DP_TSML358+DP_TSML359)/(DP_TSML358+DP_TSML359+DP_TSML360+DP_TSML361+DP_TSML362)*100)","v":18.181818181818183},{"$f":"IF(ISERROR((DP_TSML365+DP_TSML366)/(DP_TSML365+DP_TSML366+DP_TSML367+DP_TSML368+DP_TSML369)*100),0,(DP_TSML365+DP_TSML366)/(DP_TSML365+DP_TSML366+DP_TSML367+DP_TSML368+DP_TSML369)*100)","v":18.75}]
[]
[null,null,"* The option ‘Not applicable/ don’t know’ is only a specified response to TP05, TP06, TP07, TP08, TP11 and TP12."]

{"sheet":"Sect 6 - TSMs reported Combined","index":8,"n_rows":87,"n_cols":9,"rows_kept":87,"cut":false,"hidden":false,"merged":[[27,2,27,7],[19,2,19,4],[3,1,3,4],[6,1,6,6],[8,1,8,4],[9,2,9,7],[10,2,10,7],[13,2,13,4],[15,2,15,4],[18,2,18,4],[18,5,19,5],[26,2,26,7],[18,6,19,7],[4,1,4,9],[86,2,86,8],[55,2,55,8],[38,2,38,4],[38,5,39,5],[39,2,39,4],[42,1,42,4],[44,2,44,4],[46,2,46,4],[46,5,49,7],[51,1,51,6],[53,1,53,5],[54,2,54,8],[38,6,39,7],[44,6,44,7],[46,8,49,9],[2,1,2,9],[56,2,56,8],[58,2,59,2],[71,2,71,8],[73,2,74,2],[36,2,36,4],[21,2,21,4],[21,5,22,5],[22,2,22,4],[25,1,25,4],[30,2,30,4],[32,2,32,4],[35,2,35,4],[35,5,36,5],[21,6,22,7],[35,6,36,7]]}
[]
[]
[null,"Section 6 - TSMs reported on a combined stock basis (LCRA and LCHO combined)"]
[]
[null,"This section allows for the collection of the TSMs relating to a combined LCRA and LCHO dwelling stock basis and the information providing the context for these measures."]
[]
[null,"Complaints TSMs"]
[]
[null,"Stage one complaints"]
[null,"Q1","Please report the number of stage one complaints and the proportion of these you responded to within the Housing Ombudsman’s Complaint Handling Code timescales as defined in the TSM technical requirements"]
[null,null,"Please refer to the guidance document for more details on the correct way to report the numerator and denominator."]
[]
[null,null,null,null,null,"Calculation (sum (numerator/ denominator) * 1000)","Numerator \nNumber of stage one complaints made by tenants in the relevant stock type during the reporting year","Denominator Number of dwelling units owned of the relevant stock type at year end"]
[null,"CH01","Number of stage one complaints made by tenants in the relevant stock type during the reporting year per 1,000 homes.",null,null,{"$f":"IF(ISERROR((DP_TSML373/DP_TSML374)*1000),0,(DP_TSML373/DP_TSML374)*1000)","v":0}]
[null,null,null,null,null,"Calculation (sum (numerator/ denominator) * 100)","Numerator \nNumber of stage one complaints made by tenants during the reporting year for the relevant stock type that were responded to within the Housing Ombudsman’s Complaint Handling Code timescale","Denominator Number of stage one complaints made by tenants in the relevant stock type during the reporting year"]
[null,"CH02","Proportion of stage one complaints responded to within the Housing Ombudsman’s Complaint Handling Code timescales.",null,null,{"$f":"IF(ISERROR((DP_TSML376/DP_TSML377)*100),0,(DP_TSML376/DP_TSML377)*100)","v":0}]
[]
[]
[null,"Q2a","Out of the number of stage one complaints made by tenants during the reporting year, what number were responded to within Complaint Handling Code timescales – ",null,null,null,"This question is optional."]
[null,null,"without the use of extensions permitted in the Code."]
[]
[null,"Q2b","Out of the number of stage one complaints made by tenants during the reporting year, what number were responded to within Complaint Handling Code timescales  – ",null,null,null,"This question is optional."]
[null,null,"with the use of extensions permitted in the Code."]
[]
[]
[null,"Stage two complaints"]
[null,"Q3","Please report the number of stage two complaints and the proportion of these you responded to within the Housing Ombudsman’s Complaint Handling Code timescales as defined in TSM technical requirements"]
[null,null,"Please refer to the guidance document for more details on the correct way to report the numerator and denominator."]
[]
[null,null,null,null,null,"Calculation (sum (numerator/ denominator) * 1000)","Numerator \nNumber of stage two complaints made by tenants in the relevant stock type during the reporting year","Denominator Number of dwelling units owned of the relevant stock type at year end"]
[null,"CH01","Number of stage two complaints made by tenants in the relevant stock type during the reporting year per 1,000 homes.",null,null,{"$f":"IF(ISERROR((DP_TSML381/DP_TSML382)*1000),0,(DP_TSML381/DP_TSML382)*1000)","v":0}]
[null,null,null,null,null,"Calculation (sum (numerator/ denominator) * 100)","Numerator \nNumber of stage two complaints made by tenants during the reporting year for the relevant stock type that were responded to within the Housing Ombudsman’s Complaint Handling Code timescale","Denominator Number of stage two complaints made by tenants in the relevant stock type during the reporting year"]
[null,"CH02","Proportion of stage two complaints responded to within the Housing Ombudsman’s Complaint Handling Code timescales.",null,null,{"$f":"IF(ISERROR((DP_TSML384/DP_TSML385)*100),0,(DP_TSML384/DP_TSML385)*100)","v":0}]
[]
[]
[null,"Q4a","Out of the number of stage two complaints made by tenants during the reporting year, what number were responded to within Complaint Handling Code timescales – ","Number","This question is optional.",null,"This question is optional."]
[null,null,"without the use of extensions permitted in the Code."]
[]
[null,"Q4b","Out of the number of stage two complaints made by tenants during the reporting year, what number were responded to within Complaint Handling Code timescales  – ","Number","This question is optional.",null,"This question is optional."]
[null,null,"with the use of extensions permitted in the Code."]
[]
[]
[null,"CH02 Information"]
[]
[null,"Q5a","Has CH02 been calculated using the standard maximum timescales as set out in the Complaint Handling Code for each response stage?",null,null,null,"This question is optional."]
[]
[null,"Q5b","If ‘No’ what were the maximum timescales used?",null,null,null,null,null,"This question is optional"]
[]
[]
[]
[]
[null,"Tenant perception measures"]
[]
[]
[null,"Q6","For each tenant perception measure (TP01-TP12) you must report the number of survey responses used to calculate it as defined in TSM technical requirements."]
[null,null,"For TP02, TP03, TP09 and TP10 providers must report the number of respondents who responded ‘Yes’ and the number of respondents who responded ‘No’ to the filter question relevant to that perception measure. "]
[null,null,"Providers must report TP02 to TP04 on the basis of LCRA stock only and all other tenant perception measures on a combined stock basis."]
[null,null,null,null,"      LCRA ONLY","      LCRA ONLY","      LCRA ONLY"]
[null,null,null,"TP01","TP02","TP03","TP04","TP05","TP06"]
[null,null,null," Taking everything into account, how satisfied or dissatisfied are you with the service provided by [your landlord]?","How satisfied or dissatisfied are you with the overall repairs service from [your landlord] over the last 12 months?","How satisfied or dissatisfied are you with the time taken to complete your most recent repair after you reported it?","How satisfied or dissatisfied are you that [your landlord] provides a home that is well maintained?","Thinking about the condition of the property or building you live in, how satisfied or dissatisfied are you that [your landlord] provides a home that is safe?","How satisfied or dissatisfied are you that [your landlord] listens to your views and acts upon them?"]
[null,null,"Number of respondents who responded ‘Yes’ to the filter question relevant to the perception measure."]
[null,null,"Number of respondents who responded ‘No’ to the filter question relevant to the perception measure."]
[]
[null,null,"Very satisfied​"]
[null,null,"Fairly satisfied​"]
[null,null,"Neither satisfied nor dissatisfied"]
[null,null,"Fairly dissatisfied​"]
[null,null,"Very dissatisfied​"]
[null,null,"Not applicable/ don’t know*"]
[null,null,"Calculated TSM: Proportion of respondents who report that they are satisfied ",{"$f":"IF(ISERROR((DP_TSML390+DP_TSML391)/(DP_TSML390+DP_TSML391+DP_TSML392+DP_TSML393+DP_TSML394)*100),0,(DP_TSML390+DP_TSML391)/(DP_TSML390+DP_TSML391+DP_TSML392+DP_TSML393+DP_TSML394)*100)","v":0},{"$f":"IF(ISERROR((DP_TSML399+DP_TSML400)/(DP_TSML399+DP_TSML400+DP_TSML401+DP_TSML402+DP_TSML403)*100),0,(DP_TSML399+DP_TSML400)/(DP_TSML399+DP_TSML400+DP_TSML401+DP_TSML402+DP_TSML403)*100)","v":0},{"$f":"IF(ISERROR((DP_TSML408+DP_TSML409)/(DP_TSML408+DP_TSML409+DP_TSML410+DP_TSML411+DP_TSML412)*100),0,(DP_TSML408+DP_TSML409)/(DP_TSML408+DP_TSML409+DP_TSML410+DP_TSML411+DP_TSML412)*100)","v":0},{"$f":"IF(ISERROR((DP_TSML415+DP_TSML416)/(DP_TSML415+DP_TSML416+DP_TSML417+DP_TSML418+DP_TSML419)*100),0,(DP_TSML415+DP_TSML416)/(DP_TSML415+DP_TSML416+DP_TSML417+DP_TSML418+DP_TSML419)*100)","v":0},{"$f":"IF(ISERROR((DP_TSML422+DP_TSML423)/(DP_TSML422+DP_TSML423+DP_TSML424+DP_TSML425+DP_TSML426)*100),0,(DP_TSML422+DP_TSML423)/(DP_TSML422+DP_TSML423+DP_TSML424+DP_TSML425+DP_TSML426)*100)","v":0},{"$f":"IF(ISERROR((DP_TSML429+DP_TSML430)/(DP_TSML429+DP_TSML430+DP_TSML431+DP_TSML432+DP_TSML433)*100),0,(DP_TSML429+DP_TSML430)/(DP_TSML429+DP_TSML430+DP_TSML431+DP_TSML432+DP_TSML433)*100)","v":0}]
[]
[null,null,"* The option ‘Not applicable/ don’t know’ is only a specified response to TP05, TP06, TP07, TP08, TP11 and TP12. "]
[]
[null,null,null,"TP07","TP08","TP09","TP10","TP11","TP12"]
[null,null,null,"How satisfied or dissatisfied are you that [your landlord] keeps you informed about things that matter to you?","To what extent do you agree or disagree with the following “[my landlord] treats me fairly and with respect”?","How satisfied or dissatisfied are you with [your landlord]’s approach to complaints handling?","How satisfied or dissatisfied are you that [your landlord]\nkeeps these communal areas clean and well maintained?","How satisfied or dissatisfied are you that [your landlord] makes a positive contribution to your neighbourhood?","How satisfied or dissatisfied are you with [your landlord]’s approach to handling anti-social behaviour?"]
[null,null,"Number of respondents who responded ‘Yes’ to the filter question relevant to the perception measure."]
[null,null,"Number of respondents who responded ‘No’ to the filter question relevant to the perception measure."]
[]
[null,null,"Very satisfied​ (or Strongly agree for TP08)"]
[null,null,"Fairly satisfied​ (or Agree for TP08)"]
[null,null,"Neither satisfied nor dissatisfied (or Neither agree nor disagree for TP08)"]
[null,null,"Fairly dissatisfied​ (or Disagree for TP08)"]
[null,null,"Very dissatisfied​ (or Strongly disagree for TP08)"]
[null,null,"Not applicable/ don’t know*"]
[null,null,"Calculated TSM: Proportion of respondents who report that they are satisfied (or that they agree TP08)",{"$f":"IF(ISERROR((DP_TSML436+DP_TSML437)/(DP_TSML436+DP_TSML437+DP_TSML438+DP_TSML439+DP_TSML440)*100),0,(DP_TSML436+DP_TSML437)/(DP_TSML436+DP_TSML437+DP_TSML438+DP_TSML439+DP_TSML440)*100)","v":0},{"$f":"IF(ISERROR((DP_TSML443+DP_TSML444)/(DP_TSML443+DP_TSML444+DP_TSML445+DP_TSML446+DP_TSML447)*100),0,(DP_TSML443+DP_TSML444)/(DP_TSML443+DP_TSML444+DP_TSML445+DP_TSML446+DP_TSML447)*100)","v":0},{"$f":"IF(ISERROR((DP_TSML452+DP_TSML453)/(DP_TSML452+DP_TSML453+DP_TSML454+DP_TSML455+DP_TSML456)*100),0,(DP_TSML452+DP_TSML453)/(DP_TSML452+DP_TSML453+DP_TSML454+DP_TSML455+DP_TSML456)*100)","v":0},{"$f":"IF(ISERROR((DP_TSML461+DP_TSML462)/(DP_TSML461+DP_TSML462+DP_TSML463+DP_TSML464+DP_TSML465)*100),0,(DP_TSML461+DP_TSML462)/(DP_TSML461+DP_TSML462+DP_TSML463+DP_TSML464+DP_TSML465)*100)","v":0},{"$f":"IF(ISERROR((DP_TSML468+DP_TSML469)/(DP_TSML468+DP_TSML469+DP_TSML470+DP_TSML471+DP_TSML472)*100),0,(DP_TSML468+DP_TSML469)/(DP_TSML468+DP_TSML469+DP_TSML470+DP_TSML471+DP_TSML472)*100)","v":0},{"$f":"IF(ISERROR((DP_TSML475+DP_TSML476)/(DP_TSML475+DP_TSML476+DP_TSML477+DP_TSML478+DP_TSML479)*100),0,(DP_TSML475+DP_TSML476)/(DP_TSML475+DP_TSML476+DP_TSML477+DP_TSML478+DP_TSML479)*100)","v":0}]
[]
[null,null,"* The option ‘Not applicable/ don’t know’ is only a specified response to TP05, TP06, TP07, TP08, TP11 and TP12."]

{"sheet":"Validations","index":9,"n_rows":436,"n_cols":8,"rows_kept":436,"cut":false,"hidden":false,"merged":[[0,0,0,3],[1,0,1,3],[2,0,2,3]]}
["Workbook Validations"]
["These are the validations which are active for the current workbook, and their current states. Some validations may not execute until the workbook is uploaded to NROSH+"]
["Required fields are marked with * - all other fields are optional. Click on the column header for more information"]
[]
[null,"Validation Reference*","Short text","Description","Help Text","Type*","Category","Formula*"]
[null,"V_TSM0014","Sect 1b Q7 Contract organisations","If Q7 is \"Yes\", then please complete Sect 1b Q7a. If the response to Q7 is \"No\", then leave Q7a blank.",null,"Hard",null,{"$f":"OR(AND(ISBLANK('Sect 1b - Background'!DP_TSML047)=TRUE,ISBLANK('Sect 1b - Background'!DP_TSML052)=TRUE,ISBLANK('Sect 1b - Background'!DP_TSML053)=TRUE),AND(ISBLANK('Sect 1b - Background'!DP_TSML047)=FALSE,'Sect 1b - Background'!DP_TSML052=\"No\",ISBLANK('Sect 1b - Background'!DP_TSML053)=TRUE),AND(ISBLANK('Sect 1b - Background'!DP_TSML047)=FALSE,'Sect 1b - Background'!DP_TSML052=\"Yes\",ISBLANK('Sect 1b - Background'!DP_TSML053)=FALSE))","v":true}]
[null,"V_TSM0015","Sect 1b Q8 Incentive","If Q8 is 'Yes', then please complete Sect 1b Q8a. If the response to Q8 is 'No', then leave Q8a blank.",null,"Hard",null,{"$f":"OR(AND(ISBLANK('Sect 1b - Background'!DP_TSML047)=TRUE,ISBLANK('Sect 1b - Background'!DP_TSML054)=TRUE,ISBLANK('Sect 1b - Background'!DP_TSML055)=TRUE),AND(ISBLANK('Sect 1b - Background'!DP_TSML047)=FALSE,'Sect 1b - Background'!DP_TSML054=\"No\",ISBLANK('Sect 1b - Background'!DP_TSML055)=TRUE),AND(ISBLANK('Sect 1b - Background'!DP_TSML047)=FALSE,'Sect 1b - Background'!DP_TSML054=\"Yes\",ISBLANK('Sect 1b - Background'!DP_TSML055)=FALSE))","v":true}]
[null,"V_TSM0016","Sect 1b Q9 Confirm upload of supporting document","If the response to Sect 1b Q9 is 'No', then please complete Sect 1b Q9a. If the response to Q9 is 'Yes', then leave Q9a blank.",null,"Hard",null,{"$f":"OR(AND(ISBLANK('Sect 1b - Background'!DP_TSML047)=TRUE,ISBLANK('Sect 1b - Background'!DP_TSML056)=TRUE,ISBLANK('Sect 1b - Background'!DP_TSML057)=TRUE),AND(ISBLANK('Sect 1b - Background'!DP_TSML047)=FALSE,'Sect 1b - Background'!DP_TSML056=\"Yes\",ISBLANK('Sect 1b - Background'!DP_TSML057)=TRUE),AND(ISBLANK('Sect 1b - Background'!DP_TSML047)=FALSE,'Sect 1b - Background'!DP_TSML056=\"No\",ISBLANK('Sect 1b - Background'!DP_TSML057)=FALSE))","v":true}]
[null,"V_TSM0017","Sect 1b Q13 Details of other methods","If the response to Sect 1b Q13 for 'All other methods' is greater than zero, then please provide details in Sect 1b Q13a.",null,"Hard",null,{"$f":"OR(AND('Sect 1b - Background'!DP_TSML066>0,ISBLANK('Sect 1b - Background'!DP_TSML068)=FALSE),AND('Sect 1b - Background'!DP_TSML066=0,ISBLANK('Sect 1b - Background'!DP_TSML068)=TRUE))","v":true}]
[null,"V_TSM0020","Sect 1b Q10 and Q11","Q11 should not be greater than Q10",null,"Hard",null,{"$f":"OR(AND(ISBLANK('Sect 1b - Background'!DP_TSML047)=FALSE,'Sect 1b - Background'!DP_TSML059<='Sect 1b - Background'!DP_TSML058),ISBLANK('Sect 1b - Background'!DP_TSML047)=TRUE)","v":true}]
[null,"V_TSM0026","Sect 3 Q3 NM01 (1)","Please check that you have entered the numerator and denominator for this Q3 L1 correctly, and that the value for NM01(1) as reported in section 2 is correct.",null,"Soft",null,{"$f":"AND('Sect 3 - TSMs reported by all'!DP_TSML157>='Sect 2 - Published TSMs'!DP_TSML092-1,'Sect 3 - TSMs reported by all'!DP_TSML157<='Sect 2 - Published TSMs'!DP_TSML092+1)","v":true}]
[null,"V_TSM0027","Sect 3 Q3 NM01 (2)","Please check that you have entered the numerator and denominator for this Q3 L2 correctly, and that the value for NM01 (2) as reported in section 2 is correct.",null,"Soft",null,{"$f":"AND('Sect 3 - TSMs reported by all'!DP_TSML160>='Sect 2 - Published TSMs'!DP_TSML093-1,'Sect 3 - TSMs reported by all'!DP_TSML160<='Sect 2 - Published TSMs'!DP_TSML093+1)","v":true}]
[null,"V_TSM0028","Sect 3 Q4 RP01","Please check that you have entered the numerator and denominator for this Q4 L1 correctly, and that the value for RP01 as reported in section 2 is correct.",null,"Soft",null,{"$f":"AND('Sect 3 - TSMs reported by all'!DP_TSML163>='Sect 2 - Published TSMs'!DP_TSML094-1,'Sect 3 - TSMs reported by all'!DP_TSML163<='Sect 2 - Published TSMs'!DP_TSML094+1)","v":true}]
[null,"V_TSM0029","Sect 3 Q4 RP02 (pt1)","Please check that you have entered the numerator and denominator for this Q4 L2 correctly, and that the value for RP02(1) as reported in section 2 is correct.",null,"Soft",null,{"$f":"AND('Sect 3 - TSMs reported by all'!DP_TSML166>='Sect 2 - Published TSMs'!DP_TSML095-1,'Sect 3 - TSMs reported by all'!DP_TSML166<='Sect 2 - Published TSMs'!DP_TSML095+1)","v":true}]
[null,"V_TSM0030","Sect 3 Q4 RP02 (pt2)","Please check that you have entered the numerator and denominator for this Q4 L3 correctly, and that the value for RP02(2) as reported in section 2 is correct.",null,"Soft",null,{"$f":"AND('Sect 3 - TSMs reported by all'!DP_TSML169>='Sect 2 - Published TSMs'!DP_TSML096-1,'Sect 3 - TSMs reported by all'!DP_TSML169<='Sect 2 - Published TSMs'!DP_TSML096+1)","v":true}]
[null,"V_TSM0031","Sect 3 Q5a","Sect 3 Q5a Please check that you have responded to Q5a in working DAYS.",null,"Soft",null,{"$f":"'Sect 3 - TSMs reported by all'!DP_TSML172<=60","v":false}]
[null,"V_TSM0032","Sect 3 Q5b","Sect 3 Q5b Please check that you have reported the target timescale for emergency repairs in hours.",null,"Soft",null,{"$f":"OR(ISBLANK('Sect 3 - TSMs reported by all'!DP_TSML174)=TRUE,AND('Sect 3 - TSMs reported by all'!DP_TSML174>=2,'Sect 3 - TSMs reported by all'!DP_TSML174<=48))","v":false}]
[null,"V_TSM0033","Sect 4 Q1 CH01 (1)","Please check that you have entered the numerator and denominator for this Q1 L1 correctly, and that the value for CH01 (1) as reported in section 2 column 1 is correct.",null,"Soft",null,{"$f":"AND('Sect 4 - TSMs reported for LCRA'!DP_TSML177>='Sect 2 - Published TSMs'!DP_TSML097-1,'Sect 4 - TSMs reported for LCRA'!DP_TSML177<='Sect 2 - Published TSMs'!DP_TSML097+1)","v":true}]
[null,"V_TSM0034","Sect 4 Q1 CH02 (1)","Please check that you have entered the numerator and denominator for this Q1 L2 correctly, and that the value for CH02 (stg1) as reported in section 2 column 1 is correct.",null,"Soft",null,{"$f":"AND('Sect 4 - TSMs reported for LCRA'!DP_TSML180>='Sect 2 - Published TSMs'!DP_TSML103-1,'Sect 4 - TSMs reported for LCRA'!DP_TSML180<='Sect 2 - Published TSMs'!DP_TSML103+1)","v":true}]
[null,"V_TSM0037","Sect 4 Q3 CH01 (2)","Please check that you have entered the numerator and denominator for this Q3 L1 correctly, and that the value for CH01 (2) as reported in section 2 column 1 is correct.",null,"Soft",null,{"$f":"AND('Sect 4 - TSMs reported for LCRA'!DP_TSML185>='Sect 2 - Published TSMs'!DP_TSML100-1,'Sect 4 - TSMs reported for LCRA'!DP_TSML185<='Sect 2 - Published TSMs'!DP_TSML100+1)","v":true}]
[null,"V_TSM0038","Sect 4 Q3 CH02 (2)","Please check that you have entered the numerator and denominator for this Q3 L2 correctly, and that the value for CH02 (stg1) as reported in section 2 column 1 is correct.",null,"Soft",null,{"$f":"AND('Sect 4 - TSMs reported for LCRA'!DP_TSML188>='Sect 2 - Published TSMs'!DP_TSML106-1,'Sect 4 - TSMs reported for LCRA'!DP_TSML188<='Sect 2 - Published TSMs'!DP_TSML106+1)","v":true}]
[null,"V_TSM0112","Sect 3 Q2 BS01","Please check that you have entered the numerator and denominator for this Q2 L1 correctly.",null,"Hard",null,{"$f":"'Sect 3 - TSMs reported by all'!DP_TSML143<='Sect 3 - TSMs reported by all'!DP_TSML144","v":true}]
[null,"V_TSM0113","Sect 3 Q2 BS02","Please check that you have entered the numerator and denominator for this Q2 L2 correctly.",null,"Hard",null,{"$f":"'Sect 3 - TSMs reported by all'!DP_TSML146<='Sect 3 - TSMs reported by all'!DP_TSML147","v":true}]
[null,"V_TSM0114","Sect 3 Q2 BS03","Please check that you have entered the numerator and denominator for this Q2 L3 correctly.",null,"Hard",null,{"$f":"'Sect 3 - TSMs reported by all'!DP_TSML149<='Sect 3 - TSMs reported by all'!DP_TSML150","v":true}]
[null,"V_TSM0115","Sect 3 Q2 BS04","Please check that you have entered the numerator and denominator for this Q2 L4 correctly.",null,"Hard",null,{"$f":"'Sect 3 - TSMs reported by all'!DP_TSML152<='Sect 3 - TSMs reported by all'!DP_TSML153","v":true}]
[null,"V_TSM0116","Sect 3 Q2 BS05","Please check that you have entered the numerator and denominator for this Q2 L5 correctly.",null,"Hard",null,{"$f":"'Sect 3 - TSMs reported by all'!DP_TSML155<='Sect 3 - TSMs reported by all'!DP_TSML156","v":true}]
[null,"V_TSM0117","Sect 3 Q3 NM01 (1)","Please check that you have entered the numerator and denominator for this Q3 L1 correctly.",null,"Hard",null,{"$f":"'Sect 3 - TSMs reported by all'!DP_TSML158<='Sect 3 - TSMs reported by all'!DP_TSML159","v":true}]
[null,"V_TSM0118","Sect 3 Q2 NM01 (2)","Please check that you have entered the numerator and denominator for this Q3 L2 correctly.",null,"Hard",null,{"$f":"'Sect 3 - TSMs reported by all'!DP_TSML161<='Sect 3 - TSMs reported by all'!DP_TSML162","v":true}]
[null,"V_TSM0119","Sect 3 Q3 NM01 (2)","Please check that you have entered the numerators in Q3 L1 and Q3 L2 correctly. We would anticipate the numerator in Q3 L2 to be less than or equal to the numerator in Q3 L1.",null,"Soft",null,{"$f":"'Sect 3 - TSMs reported by all'!DP_TSML161<='Sect 3 - TSMs reported by all'!DP_TSML158","v":true}]
[null,"V_TSM0120","Sect 3 Q4 RP01","Please check that you have entered the numerator and denominator for this Q4 L1 correctly. The numerator cannot be greater than the denominator.",null,"Hard",null,{"$f":"'Sect 3 - TSMs reported by all'!DP_TSML164<='Sect 3 - TSMs reported by all'!DP_TSML165","v":true}]
[null,"V_TSM0121","Sect 3 Q4 RP02(1)","Please check that you have entered the numerator and denominator for this Q4 L2 correctly. The numerator cannot be greater than the denominator.",null,"Hard",null,{"$f":"'Sect 3 - TSMs reported by all'!DP_TSML167<='Sect 3 - TSMs reported by all'!DP_TSML168","v":true}]
[null,"V_TSM0122","Sect 3 Q4 RP02(2)","Please check that you have entered the numerator and denominator for this Q4 L3 correctly. The numerator cannot be greater than the denominator.",null,"Hard",null,{"$f":"'Sect 3 - TSMs reported by all'!DP_TSML170<='Sect 3 - TSMs reported by all'!DP_TSML171","v":true}]
[null,"V_TSM0123","Sect 3 Q4 RP01","Please check the denominator reported for RP01. We would expect the RP01 denominator to be less than or equal to the number of dwellings owned (as reported in NM01(1)).",null,"Soft",null,{"$f":"'Sect 3 - TSMs reported by all'!DP_TSML165<='Sect 3 - TSMs reported by all'!DP_TSML159","v":true}]
[null,"V_TSM0020a","Sect 3 Q2 BS01","Please check that you have entered the numerator and denominator for this Q2 L1 correctly, and that the value for BS01 as reported in section 2 is correct. Calculation should be within 1% of that reported for BS01 in section 2.",null,"Soft",null,{"$f":"AND('Sect 3 - TSMs reported by all'!DP_TSML142>='Sect 2 - Published TSMs'!DP_TSML087-1,'Sect 3 - TSMs reported by all'!DP_TSML142<='Sect 2 - Published TSMs'!DP_TSML087+1)","v":true}]
[null,"V_TSM0021a","Sect 3 Q2 BS02","Please check that you have entered the numerator and denominator for this Q2 L2 correctly, and that the value for BS02 as reported in section 2 is correct. Calculation should be within 1% of that reported for BS02 in section 2.",null,"Soft",null,{"$f":"AND('Sect 3 - TSMs reported by all'!DP_TSML145>='Sect 2 - Published TSMs'!DP_TSML088-1,'Sect 3 - TSMs reported by all'!DP_TSML145<='Sect 2 - Published TSMs'!DP_TSML088+1)","v":true}]
[null,"V_TSM0022a","Sect 3 Q2 BS03","Please check that you have entered the numerator and denominator for this Q2 L3 correctly, and that the value for BS03 as reported in section 2 is correct. Calculation should be within 1% of that reported for BS03 in section 2.",null,"Soft",null,{"$f":"AND('Sect 3 - TSMs reported by all'!DP_TSML148>='Sect 2 - Published TSMs'!DP_TSML089-1,'Sect 3 - TSMs reported by all'!DP_TSML148<='Sect 2 - Published TSMs'!DP_TSML089+1)","v":true}]
[null,"V_TSM0023a","Sect 3 Q2 BS04","Please check that you have entered the numerator and denominator for this Q2 L4 correctly, and that the value for BS04 as reported in section 2 is correct. Calculation should be within 1% of that reported for BS04 in section 2.",null,"Soft",null,{"$f":"AND('Sect 3 - TSMs reported by all'!DP_TSML151>='Sect 2 - Published TSMs'!DP_TSML090-1,'Sect 3 - TSMs reported by all'!DP_TSML151<='Sect 2 - Published TSMs'!DP_TSML090+1)","v":true}]
[null,"V_TSM0024a","Sect 3 Q2 BS05","Please check that you have entered the numerator and denominator for this Q2 L5 correctly, and that the value for BS05 as reported in section 2 is correct. Calculation should be within 1% of that reported for BS05 in section 2.",null,"Soft",null,{"$f":"AND('Sect 3 - TSMs reported by all'!DP_TSML154>='Sect 2 - Published TSMs'!DP_TSML091-1,'Sect 3 - TSMs reported by all'!DP_TSML154<='Sect 2 - Published TSMs'!DP_TSML091+1)","v":true}]
[null,"V_TSM0129","Sect 1a Q1L1 and Q1L3","If your response to Q1L1 is \"Yes\", then the response to Q1L3 cannot also be \"Yes\"",null,"Hard",null,{"$f":"OR(AND('Sect 1a - Background'!DP_TSML001=\"No\",'Sect 1a - Background'!DP_TSML003=\"No\"),AND('Sect 1a - Background'!DP_TSML001=\"Yes\",'Sect 1a - Background'!DP_TSML003=\"No\"),AND('Sect 1a - Background'!DP_TSML001=\"No\",'Sect 1a - Background'!DP_TSML003=\"Yes\"),AND(ISBLANK('Sect 1a - Background'!DP_TSML001)=FALSE,ISBLANK('Sect 1a - Background'!DP_TSML003)=TRUE))","v":true}]
[null,"V_TSM0130","Sect 1a Q1L2 and Q1L3","If your response to Q1L2 is \"Yes\", then the response to Q1L3 cannot also be \"Yes\"",null,"Hard",null,{"$f":"OR(AND('Sect 1a - Background'!DP_TSML002=\"No\",'Sect 1a - Background'!DP_TSML003=\"No\"),AND('Sect 1a - Background'!DP_TSML002=\"Yes\",'Sect 1a - Background'!DP_TSML003=\"No\"),AND('Sect 1a - Background'!DP_TSML002=\"No\",'Sect 1a - Background'!DP_TSML003=\"Yes\"),AND(ISBLANK('Sect 1a - Background'!DP_TSML002)=FALSE,ISBLANK('Sect 1a - Background'!DP_TSML003)=TRUE))","v":true}]
[null,"V_TSM0132","Sect 1a Q1L1 and Q2 (Sect 1a + Sect 1b)","There is a mismatch between your answers in Section 1a Q1 and Q2 in Sections 1a and 1b. The responses to Q2 should only be \"LCRA - section 4\" if your response to Section 1a Q1L1 is \"Yes\".  If your response to Section 1a Q1L1 is \"No\", then the responses to Q2 cannot be \"LCRA - section 4\".",null,"Hard",null,{"$f":"OR(AND('Sect 1a - Background'!DP_TSML001=\"Yes\",OR('Sect 1a - Background'!DP_TSML004=\"LCRA - section 4\",'Sect 1b - Background'!DP_TSML047=\"LCRA - section 4\")),AND('Sect 1a - Background'!DP_TSML001=\"No\",'Sect 1a - Background'!DP_TSML002=\"Yes\",'Sect 1a - Background'!DP_TSML004=\"LCHO - section 5\"),AND('Sect 1a - Background'!DP_TSML001=\"No\",'Sect 1a - Background'!DP_TSML002=\"No\",'Sect 1a - Background'!DP_TSML003=\"Yes\",'Sect 1a - Background'!DP_TSML004=\"Combined - section 6\"))","v":true}]
[null,"V_TSM0133","Sect 1a Q1L2 and Q2 (Sect 1a + Sect 1b)","There is a mismatch between your answers in Section 1a Q1 and Q2 in Sections 1a and 1b. The responses to Q2 should only be \"LCHO - section 5\" if your response to Section 1a Q1L2 is \"Yes\".  If your response to Section 1a Q1L2 is \"No\", then the responses to Q2 cannot be \"LCHO - section 5\".",null,"Hard",null,{"$f":"OR(AND('Sect 1a - Background'!DP_TSML002=\"Yes\",OR('Sect 1a - Background'!DP_TSML004=\"LCHO - section 5\",'Sect 1b - Background'!DP_TSML047=\"LCHO - section 5\")),AND('Sect 1a - Background'!DP_TSML001=\"Yes\",'Sect 1a - Background'!DP_TSML002=\"No\",'Sect 1a - Background'!DP_TSML004=\"LCRA - section 4\"),AND('Sect 1a - Background'!DP_TSML001=\"No\",'Sect 1a - Background'!DP_TSML002=\"No\",'Sect 1a - Background'!DP_TSML003=\"Yes\",'Sect 1a - Background'!DP_TSML004=\"Combined - section 6\"))","v":true}]
[null,"V_TSM0134","Sect 1a Q1L3 and Q2","There is a mismatch between your answers in Q1 and Q2. The response to Q2 should only be \"Combined - section 6\" if your response to Q1L3 is \"Yes\".  If your response to Q1L3 is \"No\", then the response to Q2 cannot be \"Combined - section 6\".",null,"Hard",null,{"$f":"OR(AND('Sect 1a - Background'!DP_TSML004=\"Combined - section 6\",'Sect 1a - Background'!DP_TSML003=\"Yes\"),AND('Sect 1a - Background'!DP_TSML004<>\"Combined - section 6\",'Sect 1a - Background'!DP_TSML003=\"No\"))","v":true}]
[null,"V_TSM0135","Sect 1a Q5 and Q6","The date in Q5 cannot be later than the date in Q6",null,"Hard",null,{"$f":"OR(YEAR('Sect 1a - Background'!DP_TSML008)>YEAR('Sect 1a - Background'!DP_TSML007),AND(YEAR('Sect 1a - Background'!DP_TSML008)=YEAR('Sect 1a - Background'!DP_TSML007),MONTH('Sect 1a - Background'!DP_TSML008)>MONTH('Sect 1a - Background'!DP_TSML007)),AND(YEAR('Sect 1a - Background'!DP_TSML008)=YEAR('Sect 1a - Background'!DP_TSML007),MONTH('Sect 1a - Background'!DP_TSML008)=MONTH('Sect 1a - Background'!DP_TSML007),DAY('Sect 1a - Background'!DP_TSML008)>=DAY('Sect 1a - Background'!DP_TSML007)))","v":true}]
[null,"V_TSM0136","Sect 1a Q7 and Q7a","If your response to Q7 is \"Yes\" then Q7a must be completed.  If Q7 is \"No\", please leave Q7a blank.",null,"Hard",null,{"$f":"OR(AND('Sect 1a - Background'!DP_TSML009=\"Yes\",ISBLANK('Sect 1a - Background'!DP_TSML010)=FALSE),AND('Sect 1a - Background'!DP_TSML009=\"No\",ISBLANK('Sect 1a - Background'!DP_TSML010)=TRUE))","v":true}]
[null,"V_TSM0137","Sect 1a Q8 and Q8a","If your response to Q8 is \"Yes\" then Q8a must be completed.  If Q8 is \"No\", please leave Q8a blank.",null,"Hard",null,{"$f":"OR(AND('Sect 1a - Background'!DP_TSML011=\"Yes\",ISBLANK('Sect 1a - Background'!DP_TSML012)=FALSE),AND('Sect 1a - Background'!DP_TSML011=\"No\",ISBLANK('Sect 1a - Background'!DP_TSML012)=TRUE))","v":true}]
[null,"V_TSM0138","Sect 1a Q9 and Q9a","If your response to Q9 is \"No\" then Q9a must have one option selected.  If Q9 is \"Yes\", please leave Q9a blank.",null,"Hard",null,{"$f":"OR(AND('Sect 1a - Background'!DP_TSML013=\"No\",ISBLANK('Sect 1a - Background'!DP_TSML014)=FALSE),AND('Sect 1a - Background'!DP_TSML013=\"Yes\",ISBLANK('Sect 1a - Background'!DP_TSML014)=TRUE))","v":true}]
[null,"V_TSM0139","Sect 1a Q10 and Q11","Your response to Q11 must be less than or equal to Q10",null,"Hard",null,{"$f":"'Sect 1a - Background'!DP_TSML016<='Sect 1a - Background'!DP_TSML015","v":true}]
[null,"V_TSM0140","Sect 1a Q13L7","Q13L7 Total sample size achieved must be greater than 0.",null,"Hard",null,{"$f":"'Sect 1a - Background'!DP_TSML024>0","v":true}]
[null,"V_TSM0141","Sect 1a Q13L6 and Q13a","If you have recorded the use of other methods in Q13L6, please provide details in Q13a. You should also upload a supporting document if necessary. Otherwise, Q13a should be left blank.",null,"Hard",null,{"$f":"OR(AND('Sect 1a - Background'!DP_TSML023>0,ISBLANK('Sect 1a - Background'!DP_TSML025)=FALSE),AND('Sect 1a - Background'!DP_TSML023=0,ISBLANK('Sect 1a - Background'!DP_TSML025)=TRUE))","v":true}]
[null,"V_TSM0164","Sect 1a Q10","The response to Q10 is expected to be less than 1,000.",null,"Hard",null,{"$f":"'Sect 1a - Background'!DP_TSML015<1000","v":true}]
[null,"V_TSM0165","Sect 1a Q10 and Q11","Please check your response to Q11 and confirm this is the number of tenants who were NOT included in the sample frame due to exceptional circumstances.",null,"Soft",null,{"$f":"IF(ISERROR(('Sect 1a - Background'!DP_TSML016/'Sect 1a - Background'!DP_TSML015)<=0.05),TRUE,(('Sect 1a - Background'!DP_TSML016/'Sect 1a - Background'!DP_TSML015)<=0.05))","v":true}]
[null,"V_TSM0166","Sect 1a Q10, Q11 and Q13L7","The total in Q13L7 should not be greater than Q10 minus Q11.",null,"Hard",null,{"$f":"('Sect 1a - Background'!DP_TSML024<='Sect 1a - Background'!DP_TSML015-'Sect 1a - Background'!DP_TSML016)","v":true}]
[null,"V_TSM0174","Sect 1b Q2 and Q10","Q10 should be less than 1,000.",null,"Hard",null,{"$f":"OR(ISBLANK('Sect 1b - Background'!DP_TSML047)=TRUE,AND(ISBLANK('Sect 1b - Background'!DP_TSML047)=FALSE,'Sect 1b - Background'!DP_TSML058<1000))","v":true}]
[null,"V_TSM0175","Sect 1b Q11","Please check your response to Q11 and confirm this is the number of tenants who were NOT included in the sample frame due to exceptional circumstances.  We would not expect more than 10% to be excluded.",null,"Soft",null,{"$f":"IF(ISERROR(OR(ISBLANK('Sect 1b - Background'!DP_TSML047)=TRUE,AND(ISBLANK('Sect 1b - Background'!DP_TSML047)=FALSE,('Sect 1b - Background'!DP_TSML059/'Sect 1b - Background'!DP_TSML058<=0.1)))),TRUE,(OR(ISBLANK('Sect 1b - Background'!DP_TSML047)=TRUE,AND(ISBLANK('Sect 1b - Background'!DP_TSML047)=FALSE,('Sect 1b - Background'!DP_TSML059/'Sect 1b - Background'!DP_TSML058<=0.1)))))","v":true}]
[null,"V_TSM0176","Sect 1b Q13","Q13L7 must be less than or equal to Q10 - Q11.",null,"Hard",null,{"$f":"OR(AND(ISBLANK('Sect 1b - Background'!DP_TSML047)=FALSE,'Sect 1b - Background'!DP_TSML067<='Sect 1b - Background'!DP_TSML058-'Sect 1b - Background'!DP_TSML059),ISBLANK('Sect 1b - Background'!DP_TSML047)=TRUE)","v":true}]
[null,"V_TSM0187","Sect 1b Q2","Q2 should be completed if both LCRA and LCHO details are being reported. Please leave this question blank if only one stock type or a combined response is being provided.",null,"Hard",null,{"$f":"OR(AND('Sect 1b - Background'!DP_TSML044=\"Yes\",'Sect 1b - Background'!DP_TSML045=\"Yes\",ISBLANK('Sect 1b - Background'!DP_TSML047)=FALSE),AND('Sect 1b - Background'!DP_TSML044=\"No\",'Sect 1b - Background'!DP_TSML045=\"Yes\",ISBLANK('Sect 1b - Background'!DP_TSML047)=TRUE),AND('Sect 1b - Background'!DP_TSML044=\"Yes\",'Sect 1b - Background'!DP_TSML045=\"No\",ISBLANK('Sect 1b - Background'!DP_TSML047)=TRUE),AND('Sect 1b - Background'!DP_TSML044=\"No\",'Sect 1b - Background'!DP_TSML045=\"No\",'Sect 1b - Background'!DP_TSML046=\"Yes\",ISBLANK('Sect 1b - Background'!DP_TSML047)=TRUE))","v":true}]
[null,"V_TSM0188","Sect 1b Q3","Q3 should be completed if both LCRA and LCHO details are being reported. Please leave this question blank if only one stock type or a combined response is being provided.",null,"Hard",null,{"$f":"OR(AND('Sect 1b - Background'!DP_TSML044=\"Yes\",'Sect 1b - Background'!DP_TSML045=\"Yes\",ISBLANK('Sect 1b - Background'!DP_TSML048)=FALSE),AND('Sect 1b - Background'!DP_TSML044=\"No\",'Sect 1b - Background'!DP_TSML045=\"Yes\",ISBLANK('Sect 1b - Background'!DP_TSML048)=TRUE),AND('Sect 1b - Background'!DP_TSML044=\"Yes\",'Sect 1b - Background'!DP_TSML045=\"No\",ISBLANK('Sect 1b - Background'!DP_TSML048)=TRUE),AND('Sect 1b - Background'!DP_TSML044=\"No\",'Sect 1b - Background'!DP_TSML045=\"No\",'Sect 1b - Background'!DP_TSML046=\"Yes\",ISBLANK('Sect 1b - Background'!DP_TSML048)=TRUE))","v":true}]
[null,"V_TSM0189","Sect 1b Q4","Q4 should be completed if both LCRA and LCHO details are being reported. Please leave this question blank if only one stock type or a combined response is being provided.",null,"Hard",null,{"$f":"OR(AND('Sect 1b - Background'!DP_TSML044=\"Yes\",'Sect 1b - Background'!DP_TSML045=\"Yes\",ISBLANK('Sect 1b - Background'!DP_TSML049)=FALSE),AND('Sect 1b - Background'!DP_TSML044=\"No\",'Sect 1b - Background'!DP_TSML045=\"Yes\",ISBLANK('Sect 1b - Background'!DP_TSML049)=TRUE),AND('Sect 1b - Background'!DP_TSML044=\"Yes\",'Sect 1b - Background'!DP_TSML045=\"No\",ISBLANK('Sect 1b - Background'!DP_TSML049)=TRUE),AND('Sect 1b - Background'!DP_TSML044=\"No\",'Sect 1b - Background'!DP_TSML045=\"No\",'Sect 1b - Background'!DP_TSML046=\"Yes\",ISBLANK('Sect 1b - Background'!DP_TSML049)=TRUE))","v":true}]
[null,"V_TSM0190","Sect 1b Q5","Q5 should be completed if both LCRA and LCHO details are being reported. Please leave this question blank if only one stock type or a combined response is being provided.",null,"Hard",null,{"$f":"OR(AND('Sect 1b - Background'!DP_TSML044=\"Yes\",'Sect 1b - Background'!DP_TSML045=\"Yes\",ISBLANK('Sect 1b - Background'!DP_TSML050)=FALSE),AND('Sect 1b - Background'!DP_TSML044=\"No\",'Sect 1b - Background'!DP_TSML045=\"Yes\",ISBLANK('Sect 1b - Background'!DP_TSML050)=TRUE),AND('Sect 1b - Background'!DP_TSML044=\"Yes\",'Sect 1b - Background'!DP_TSML045=\"No\",ISBLANK('Sect 1b - Background'!DP_TSML050)=TRUE),AND('Sect 1b - Background'!DP_TSML044=\"No\",'Sect 1b - Background'!DP_TSML045=\"No\",'Sect 1b - Background'!DP_TSML046=\"Yes\",ISBLANK('Sect 1b - Background'!DP_TSML050)=TRUE))","v":true}]
[null,"V_TSM0191","Sect 1b Q6","Q6 should be completed if both LCRA and LCHO details are being reported. Please leave this question blank if only one stock type or a combined response is being provided.",null,"Hard",null,{"$f":"OR(AND('Sect 1b - Background'!DP_TSML044=\"Yes\",'Sect 1b - Background'!DP_TSML045=\"Yes\",ISBLANK('Sect 1b - Background'!DP_TSML051)=FALSE),AND('Sect 1b - Background'!DP_TSML044=\"No\",'Sect 1b - Background'!DP_TSML045=\"Yes\",ISBLANK('Sect 1b - Background'!DP_TSML051)=TRUE),AND('Sect 1b - Background'!DP_TSML044=\"Yes\",'Sect 1b - Background'!DP_TSML045=\"No\",ISBLANK('Sect 1b - Background'!DP_TSML051)=TRUE),AND('Sect 1b - Background'!DP_TSML044=\"No\",'Sect 1b - Background'!DP_TSML045=\"No\",'Sect 1b - Background'!DP_TSML046=\"Yes\",ISBLANK('Sect 1b - Background'!DP_TSML051)=TRUE))","v":true}]
[null,"V_TSM0192","Sect 1b Q7","Q7 should be completed if both LCRA and LCHO details are being reported. Please leave this question blank if only one stock type or a combined response is being provided.",null,"Hard",null,{"$f":"OR(AND('Sect 1b - Background'!DP_TSML044=\"Yes\",'Sect 1b - Background'!DP_TSML045=\"Yes\",ISBLANK('Sect 1b - Background'!DP_TSML052)=FALSE),AND('Sect 1b - Background'!DP_TSML044=\"No\",'Sect 1b - Background'!DP_TSML045=\"Yes\",ISBLANK('Sect 1b - Background'!DP_TSML052)=TRUE),AND('Sect 1b - Background'!DP_TSML044=\"Yes\",'Sect 1b - Background'!DP_TSML045=\"No\",ISBLANK('Sect 1b - Background'!DP_TSML052)=TRUE),AND('Sect 1b - Background'!DP_TSML044=\"No\",'Sect 1b - Background'!DP_TSML045=\"No\",'Sect 1b - Background'!DP_TSML046=\"Yes\",ISBLANK('Sect 1b - Background'!DP_TSML052)=TRUE))","v":true}]
[null,"V_TSM0193","Sect 1b Q8","Q8 should be completed if both LCRA and LCHO details are being reported. Please leave this question blank if only one stock type or a combined response is being provided.",null,"Hard",null,{"$f":"OR(AND('Sect 1b - Background'!DP_TSML044=\"Yes\",'Sect 1b - Background'!DP_TSML045=\"Yes\",ISBLANK('Sect 1b - Background'!DP_TSML054)=FALSE),AND('Sect 1b - Background'!DP_TSML044=\"No\",'Sect 1b - Background'!DP_TSML045=\"Yes\",ISBLANK('Sect 1b - Background'!DP_TSML054)=TRUE),AND('Sect 1b - Background'!DP_TSML044=\"Yes\",'Sect 1b - Background'!DP_TSML045=\"No\",ISBLANK('Sect 1b - Background'!DP_TSML054)=TRUE),AND('Sect 1b - Background'!DP_TSML044=\"No\",'Sect 1b - Background'!DP_TSML045=\"No\",'Sect 1b - Background'!DP_TSML046=\"Yes\",ISBLANK('Sect 1b - Background'!DP_TSML054)=TRUE))","v":true}]
[null,"V_TSM0194","Sect 1b Q12","Q12 should be completed if both LCRA and LCHO details are being reported. Please leave this question blank if only one stock type or a combined response is being provided.",null,"Hard",null,{"$f":"OR(AND('Sect 1b - Background'!DP_TSML044=\"Yes\",'Sect 1b - Background'!DP_TSML045=\"Yes\",ISBLANK('Sect 1b - Background'!DP_TSML060)=FALSE),AND('Sect 1b - Background'!DP_TSML044=\"No\",'Sect 1b - Background'!DP_TSML045=\"Yes\",ISBLANK('Sect 1b - Background'!DP_TSML060)=TRUE),AND('Sect 1b - Background'!DP_TSML044=\"Yes\",'Sect 1b - Background'!DP_TSML045=\"No\",ISBLANK('Sect 1b - Background'!DP_TSML060)=TRUE),AND('Sect 1b - Background'!DP_TSML044=\"No\",'Sect 1b - Background'!DP_TSML045=\"No\",'Sect 1b - Background'!DP_TSML046=\"Yes\",ISBLANK('Sect 1b - Background'!DP_TSML060)=TRUE))","v":true}]
[null,"V_TSM0195","Sect 1b Q2 and Q14","If Q2 is populated then Q14 cannot be blank",null,"Hard",null,{"$f":"OR(AND(ISBLANK('Sect 1b - Background'!DP_TSML047)=TRUE,ISBLANK('Sect 1b - Background'!DP_TSML075)=TRUE),AND(ISBLANK('Sect 1b - Background'!DP_TSML047)=FALSE,ISBLANK('Sect 1b - Background'!DP_TSML075)=FALSE))","v":true}]
[null,"V_TSM0025a","Sect 3 Q2 BS01 denominator","Please check the denominator reported for BS01. The denominator should be the number of dwellings owned.",null,"Soft",null,{"$f":"'Sect 3 - TSMs reported by all'!DP_TSML144<=200000","v":true}]
[null,"V_TSM0026a","Sect 3 Q2 BS02 denominator","Please check the denominator reported for BS02. The denominator should be the number of dwellings owned.",null,"Soft",null,{"$f":"'Sect 3 - TSMs reported by all'!DP_TSML147<=200000","v":true}]
[null,"V_TSM0027a","Sect 3 Q2 BS03 denominator","Please check the denominator reported for BS03. The denominator should be the number of dwellings owned.",null,"Soft",null,{"$f":"'Sect 3 - TSMs reported by all'!DP_TSML150<=200000","v":true}]
[null,"V_TSM0028a","Sect 3 Q2 BS04 denominator","Please check the denominator reported for BS04. The denominator should be the number of dwellings owned.",null,"Soft",null,{"$f":"'Sect 3 - TSMs reported by all'!DP_TSML153<=200000","v":true}]
[null,"V_TSM0029a","Sect 3 Q2 BS05 denominator","Please check the denominator reported for BS05. The denominator should be the number of dwellings owned.",null,"Soft",null,{"$f":"'Sect 3 - TSMs reported by all'!DP_TSML156<=200000","v":true}]
[null,"V_TSM0033a","Sect 4 Q1 CH01(1)","Please check that you have entered the numerator and denominator for Q1L1 correctly. The numerator cannot be greater than the denominator.",null,"Hard",null,{"$f":"'Sect 4 - TSMs reported for LCRA'!DP_TSML178<='Sect 4 - TSMs reported for LCRA'!DP_TSML179","v":true}]
[null,"V_TSM0033b","Sect 4 Q1 CH02(1)","Please check that you have entered the numerator and denominator for Q1L2 correctly. The numerator cannot be greater than the denominator.",null,"Hard",null,{"$f":"'Sect 4 - TSMs reported for LCRA'!DP_TSML181<='Sect 4 - TSMs reported for LCRA'!DP_TSML182","v":true}]
[null,"V_TSM0229","Sect 2 Q4a BS01","Please check the value entered in Q4a BS01 and ensure that this is the proportion of homes where all required gas safety checks have been carried out.",null,"Soft",null,{"$f":"OR('Sect 2 - Published TSMs'!DP_TSML087>=95,ISBLANK('Sect 2 - Published TSMs'!DP_TSML087)=TRUE)","v":true}]
[null,"V_TSM0230","Sect 2 Q4a BS02","Please check the value entered in Q4a BS02 and ensure that this is the proportion of homes where all required fire risk assessments have been carried out.",null,"Soft",null,{"$f":"OR('Sect 2 - Published TSMs'!DP_TSML088>=95,ISBLANK('Sect 2 - Published TSMs'!DP_TSML088)=TRUE)","v":true}]
[null,"V_TSM0231","Sect 2 Q4a BS03","Please check the value entered in Q4a BS03 and ensure that this is the proportion of homes where all required asbestos management surveys or re-inspections have been carried out.",null,"Soft",null,{"$f":"OR('Sect 2 - Published TSMs'!DP_TSML089>=95,ISBLANK('Sect 2 - Published TSMs'!DP_TSML089)=TRUE)","v":true}]
[null,"V_TSM0232","Sect 2 Q4a BS04","Please check the value entered in Q4a BS04 and ensure that this is the proportion of homes for which all required legionella risk assessments have been carried out.",null,"Soft",null,{"$f":"OR('Sect 2 - Published TSMs'!DP_TSML090>=95,ISBLANK('Sect 2 - Published TSMs'!DP_TSML090)=TRUE)","v":false}]
[null,"V_TSM0233","Sect 2 Q4a BS05","Please check the value entered in Q4a BS05 and ensure that this is the proportion of homes where all required communal passenger lift safety checks have been carried out.",null,"Soft",null,{"$f":"OR('Sect 2 - Published TSMs'!DP_TSML091>=95,ISBLANK('Sect 2 - Published TSMs'!DP_TSML091)=TRUE)","v":true}]
[null,"V_TSM0234","Sect 2 Q4b NM01 (1)","Please check the value entered in Q4b NM01 (1) and ensure it is entered per 1,000 homes.",null,"Soft",null,{"$f":"OR('Sect 2 - Published TSMs'!DP_TSML092<=500,ISBLANK('Sect 2 - Published TSMs'!DP_TSML092)=TRUE)","v":true}]
[null,"V_TSM0235","Sect 2 Q4b NM01 (2)","Please check the value entered in Q4b NM01 (2) and ensure it is entered per 1,000 homes.",null,"Soft",null,{"$f":"OR('Sect 2 - Published TSMs'!DP_TSML093<=500,ISBLANK('Sect 2 - Published TSMs'!DP_TSML093)=TRUE)","v":true}]
[null,"V_TSM0236","Sect 2 Q4b NM01 (2)","We would expect the value reported for NM01(2) to be less than or equal to the value reported for NM01(1).",null,"Soft",null,{"$f":"OR('Sect 2 - Published TSMs'!DP_TSML093<='Sect 2 - Published TSMs'!DP_TSML092,ISBLANK('Sect 2 - Published TSMs'!DP_TSML093)=TRUE)","v":true}]
[null,"V_TSM0237","Sect 2 Q4c RP01","Please check the value entered in Q4c RP01. This should be the proportion of homes which do not meet the Decent Homes Standard.",null,"Soft",null,{"$f":"OR('Sect 2 - Published TSMs'!DP_TSML094<=80,ISBLANK('Sect 2 - Published TSMs'!DP_TSML094)=TRUE)","v":true}]
[null,"V_TSM0238","Sect 2 Q4c RP02 (1)","Please check the value entered in Q4c RP02 (1). Please ensure this is the proportion of non-emergency repairs completed within the landlord's target timescale.",null,"Soft",null,{"$f":"OR('Sect 2 - Published TSMs'!DP_TSML095>=50,ISBLANK('Sect 2 - Published TSMs'!DP_TSML095)=TRUE)","v":true}]
[null,"V_TSM0239","Sect 2 Q4c RP02 (2)","Please check the value entered in Q4c RP02 (2). Please ensure this is the proportion of emergency repairs completed within the landlord's target timescale.",null,"Soft",null,{"$f":"OR('Sect 2 - Published TSMs'!DP_TSML096>=50,ISBLANK('Sect 2 - Published TSMs'!DP_TSML096)=TRUE)","v":true}]
[null,"V_TSM0240","Sect 2 Q4d CH01 (1) LCRA","Please check the value entered in Q4d CH01 (1) LCRA and ensure it is entered per 1,000 homes.",null,"Soft",null,{"$f":"OR('Sect 2 - Published TSMs'!DP_TSML097<=800,ISBLANK('Sect 2 - Published TSMs'!DP_TSML097)=TRUE)","v":true}]
[null,"V_TSM0241","Sect 2 Q4d CH01 (1) LCHO","Please check the value entered in Q4d CH01 (1) LCHO and ensure it is entered per 1,000 homes.",null,"Soft",null,{"$f":"OR('Sect 2 - Published TSMs'!DP_TSML098<=800,ISBLANK('Sect 2 - Published TSMs'!DP_TSML098)=TRUE)","v":true}]
[null,"V_TSM0242","Sect 2 Q4d CH01 (1) Combined","Please check the value entered in Q4d CH01 (1) Combined and ensure it is entered per 1,000 homes.",null,"Soft",null,{"$f":"OR('Sect 2 - Published TSMs'!DP_TSML099<=800,ISBLANK('Sect 2 - Published TSMs'!DP_TSML099)=TRUE)","v":true}]
[null,"V_TSM0243","Sect 2 Q4d CH01 (2) LCRA","Please check the value entered in Q4d CH01 (2) LCRA and ensure it is entered per 1,000 homes.",null,"Soft",null,{"$f":"OR('Sect 2 - Published TSMs'!DP_TSML100<=600,ISBLANK('Sect 2 - Published TSMs'!DP_TSML100)=TRUE)","v":true}]
[null,"V_TSM0244","Sect 2 Q4d CH01 (2) LCHO","Please check the value entered in Q4d CH01 (2) LCHO and ensure it is entered per 1,000 homes.",null,"Soft",null,{"$f":"OR('Sect 2 - Published TSMs'!DP_TSML101<=600,ISBLANK('Sect 2 - Published TSMs'!DP_TSML101)=TRUE)","v":true}]
[null,"V_TSM0245","Sect 2 Q4d CH01 (2) Combined","Please check the value entered in Q4d CH01 (2) Combined and ensure it is entered per 1,000 homes.",null,"Soft",null,{"$f":"OR('Sect 2 - Published TSMs'!DP_TSML102<=600,ISBLANK('Sect 2 - Published TSMs'!DP_TSML102)=TRUE)","v":true}]
[null,"V_TSM0246","Sect 2 Q4d CH02 (1) LCRA","Please check the value entered in Q4d CH02 (1) LCRA. Please ensure this is the proportion of stage one complaints responded to within the Housing Ombudsman's Complaint Handling Code timescales.",null,"Soft",null,{"$f":"OR('Sect 2 - Published TSMs'!DP_TSML103>=50,ISBLANK('Sect 2 - Published TSMs'!DP_TSML103)=TRUE)","v":true}]
[null,"V_TSM0247","Sect 2 Q4d CH02 (1) LCHO","Please check the value entered in Q4d CH02 (1) LCHO. Please ensure this is the proportion of stage one complaints responded to within the Housing Ombudsman's Complaint Handling Code timescales.",null,"Soft",null,{"$f":"OR('Sect 2 - Published TSMs'!DP_TSML104>=30,ISBLANK('Sect 2 - Published TSMs'!DP_TSML104)=TRUE)","v":true}]
[null,"V_TSM0248","Sect 2 Q4d CH02 (1) Combined","Please check the value entered in Q4d CH02 (1) Combined. Please ensure this is the proportion of stage one complaints responded to within the Housing Ombudsman's Complaint Handling Code timescales.",null,"Soft",null,{"$f":"OR('Sect 2 - Published TSMs'!DP_TSML105>=30,ISBLANK('Sect 2 - Published TSMs'!DP_TSML105)=TRUE)","v":true}]
[null,"V_TSM0249","Sect 2 Q4d CH02 (2) LCRA","Please check the value entered in Q4d CH02 (2) LCRA. Please ensure this is the proportion of stage two complaints responded to within the Housing Ombudsman's Complaint Handling Code timescales.",null,"Soft",null,{"$f":"OR('Sect 2 - Published TSMs'!DP_TSML106>=50,ISBLANK('Sect 2 - Published TSMs'!DP_TSML106)=TRUE)","v":false}]
[null,"V_TSM0250","Sect 2 Q4d CH02 (2) LCHO","Please check the value entered in Q4d CH02 (2) LCHO. Please ensure this is the proportion of stage two complaints responded to within the Housing Ombudsman's Complaint Handling Code timescales.",null,"Soft",null,{"$f":"OR('Sect 2 - Published TSMs'!DP_TSML107>=30,ISBLANK('Sect 2 - Published TSMs'!DP_TSML107)=TRUE)","v":true}]
[null,"V_TSM0251","Sect 2 Q4d CH02 (2) Combined","Please check the value entered in Q4d CH02 (2) Combined. Please ensure this is the proportion of stage two complaints responded to within the Housing Ombudsman's Complaint Handling Code timescales.",null,"Soft",null,{"$f":"OR('Sect 2 - Published TSMs'!DP_TSML108>=30,ISBLANK('Sect 2 - Published TSMs'!DP_TSML108)=TRUE)","v":true}]
[null,"V_TSM0252","Sect 2 Q4e TP01 LCRA","Please check the value entered in Q4e TP01 LCRA and ensure that you have reported the TSM as per the requirements. The value entered is less than 20%.",null,"Soft",null,{"$f":"OR('Sect 2 - Published TSMs'!DP_TSML109>=20,ISBLANK('Sect 2 - Published TSMs'!DP_TSML109)=TRUE)","v":true}]
[null,"V_TSM0253","Sect 2 Q4e TP01 LCHO","Please check the value entered in Q4e TP01 LCHO and ensure that you have reported the TSM as per the requirements. The value entered is less than 20%.",null,"Soft",null,{"$f":"OR('Sect 2 - Published TSMs'!DP_TSML110>=20,ISBLANK('Sect 2 - Published TSMs'!DP_TSML110)=TRUE)","v":true}]
[null,"V_TSM0254","Sect 2 Q4e TP01 Combined","Please check the value entered in Q4e TP01 Combined and ensure that you have reported the TSM as per the requirements. The value entered is less than 20%.",null,"Soft",null,{"$f":"OR('Sect 2 - Published TSMs'!DP_TSML111>=20,ISBLANK('Sect 2 - Published TSMs'!DP_TSML111)=TRUE)","v":true}]
[null,"V_TSM0255","Sect 2 Q4e TP02 LCRA","Please check the value entered in Q4e TP02 LCRA and ensure that you have reported the TSM as per the requirements. The value entered is less than 20%.",null,"Soft",null,{"$f":"OR('Sect 2 - Published TSMs'!DP_TSML112>=20,ISBLANK('Sect 2 - Published TSMs'!DP_TSML112)=TRUE)","v":true}]
[null,"V_TSM0256","Sect 2 Q4e TP02 Combined","Please check the value entered in Q4e TP02 Combined and ensure that you have reported the TSM as per the requirements. The value entered is less than 20%.",null,"Soft",null,{"$f":"OR('Sect 2 - Published TSMs'!DP_TSML113>=20,ISBLANK('Sect 2 - Published TSMs'!DP_TSML113)=TRUE)","v":true}]
[null,"V_TSM0257","Sect 2 Q4e TP03 LCRA","Please check the value entered in Q4e TP03 LCRA and ensure that you have reported the TSM as per the requirements. The value entered is less than 20%.",null,"Soft",null,{"$f":"OR('Sect 2 - Published TSMs'!DP_TSML114>=20,ISBLANK('Sect 2 - Published TSMs'!DP_TSML114)=TRUE)","v":true}]
[null,"V_TSM0258","Sect 2 Q4e TP03 Combined","Please check the value entered in Q4e TP03 Combined and ensure that you have reported the TSM as per the requirements. The value entered is less than 20%.",null,"Soft",null,{"$f":"OR('Sect 2 - Published TSMs'!DP_TSML115>=20,ISBLANK('Sect 2 - Published TSMs'!DP_TSML115)=TRUE)","v":true}]
[null,"V_TSM0259","Sect 2 Q4e TP04 LCRA","Please check the value entered in Q4e TP04 LCRA and ensure that you have reported the TSM as per the requirements. The value entered is less than 20%.",null,"Soft",null,{"$f":"OR('Sect 2 - Published TSMs'!DP_TSML116>=20,ISBLANK('Sect 2 - Published TSMs'!DP_TSML116)=TRUE)","v":true}]
[null,"V_TSM0260","Sect 2 Q4e TP04 Combined","Please check the value entered in Q4e TP04 Combined and ensure that you have reported the TSM as per the requirements. The value entered is less than 20%.",null,"Soft",null,{"$f":"OR('Sect 2 - Published TSMs'!DP_TSML117>=20,ISBLANK('Sect 2 - Published TSMs'!DP_TSML117)=TRUE)","v":true}]
[null,"V_TSM0261","Sect 2 Q4e TP05 LCRA","Please check the value entered in Q4e TP05 LCRA and ensure that you have reported the TSM as per the requirements. The value entered is less than 20%.",null,"Soft",null,{"$f":"OR('Sect 2 - Published TSMs'!DP_TSML118>=20,ISBLANK('Sect 2 - Published TSMs'!DP_TSML118)=TRUE)","v":true}]
[null,"V_TSM0262","Sect 2 Q4e TP05 LCHO","Please check the value entered in Q4e TP05 LCHO and ensure that you have reported the TSM as per the requirements. The value entered is less than 20%.",null,"Soft",null,{"$f":"OR('Sect 2 - Published TSMs'!DP_TSML119>=20,ISBLANK('Sect 2 - Published TSMs'!DP_TSML119)=TRUE)","v":true}]
[null,"V_TSM0263","Sect 2 Q4e TP05 Combined","Please check the value entered in Q4e TP05 Combined and ensure that you have reported the TSM as per the requirements. The value entered is less than 20%.",null,"Soft",null,{"$f":"OR('Sect 2 - Published TSMs'!DP_TSML120>=20,ISBLANK('Sect 2 - Published TSMs'!DP_TSML120)=TRUE)","v":true}]
[null,"V_TSM0264","Sect 2 Q4e TP06 LCRA","Please check the value entered in Q4e TP06 LCRA and ensure that you have reported the TSM as per the requirements. The value entered is less than 20%.",null,"Soft",null,{"$f":"OR('Sect 2 - Published TSMs'!DP_TSML121>=20,ISBLANK('Sect 2 - Published TSMs'!DP_TSML121)=TRUE)","v":true}]
[null,"V_TSM0265","Sect 2 Q4e TP06 LCHO","Please check the value entered in Q4e TP06 LCHO and ensure that you have reported the TSM as per the requirements. The value entered is less than 20%.",null,"Soft",null,{"$f":"OR('Sect 2 - Published TSMs'!DP_TSML122>=20,ISBLANK('Sect 2 - Published TSMs'!DP_TSML122)=TRUE)","v":true}]
[null,"V_TSM0266","Sect 2 Q4e TP06 Combined","Please check the value entered in Q4e TP06 Combined and ensure that you have reported the TSM as per the requirements. The value entered is less than 20%.",null,"Soft",null,{"$f":"OR('Sect 2 - Published TSMs'!DP_TSML123>=20,ISBLANK('Sect 2 - Published TSMs'!DP_TSML123)=TRUE)","v":true}]
[null,"V_TSM0267","Sect 2 Q4e TP07 LCRA","Please check the value entered in Q4e TP07 LCRA and ensure that you have reported the TSM as per the requirements. The value entered is less than 20%.",null,"Soft",null,{"$f":"OR('Sect 2 - Published TSMs'!DP_TSML124>=20,ISBLANK('Sect 2 - Published TSMs'!DP_TSML124)=TRUE)","v":true}]
[null,"V_TSM0268","Sect 2 Q4e TP07 LCHO","Please check the value entered in Q4e TP07 LCHO and ensure that you have reported the TSM as per the requirements. The value entered is less than 20%.",null,"Soft",null,{"$f":"OR('Sect 2 - Published TSMs'!DP_TSML125>=20,ISBLANK('Sect 2 - Published TSMs'!DP_TSML125)=TRUE)","v":true}]
[null,"V_TSM0269","Sect 2 Q4e TP07 Combined","Please check the value entered in Q4e TP07 Combined and ensure that you have reported the TSM as per the requirements. The value entered is less than 20%.",null,"Soft",null,{"$f":"OR('Sect 2 - Published TSMs'!DP_TSML126>=20,ISBLANK('Sect 2 - Published TSMs'!DP_TSML126)=TRUE)","v":true}]
[null,"V_TSM0270","Sect 2 Q4e TP08 LCRA","Please check the value entered in Q4e TP08 LCRA and ensure that you have reported the TSM as per the requirements. The value entered is less than 20%.",null,"Soft",null,{"$f":"OR('Sect 2 - Published TSMs'!DP_TSML127>=20,ISBLANK('Sect 2 - Published TSMs'!DP_TSML127)=TRUE)","v":true}]
[null,"V_TSM0271","Sect 2 Q4e TP08 LCHO","Please check the value entered in Q4e TP08 LCHO and ensure that you have reported the TSM as per the requirements. The value entered is less than 20%.",null,"Soft",null,{"$f":"OR('Sect 2 - Published TSMs'!DP_TSML128>=20,ISBLANK('Sect 2 - Published TSMs'!DP_TSML128)=TRUE)","v":true}]
[null,"V_TSM0272","Sect 2 Q4e TP08 Combined","Please check the value entered in Q4e TP08 Combined and ensure that you have reported the TSM as per the requirements. The value entered is less than 20%.",null,"Soft",null,{"$f":"OR('Sect 2 - Published TSMs'!DP_TSML129>=20,ISBLANK('Sect 2 - Published TSMs'!DP_TSML129)=TRUE)","v":true}]
[null,"V_TSM0273","Sect 2 Q4e TP09 LCRA","Please check the value entered in Q4e TP09 LCRA and ensure that you have reported the TSM as per the requirements. The value entered is less than 20%.",null,"Soft",null,{"$f":"OR('Sect 2 - Published TSMs'!DP_TSML130>=20,ISBLANK('Sect 2 - Published TSMs'!DP_TSML130)=TRUE)","v":true}]
[null,"V_TSM0274","Sect 2 Q4e TP09 LCHO","Please check the value entered in Q4e TP09 LCHO and ensure that you have reported the TSM as per the requirements. The value entered is less than 20%.",null,"Soft",null,{"$f":"OR('Sect 2 - Published TSMs'!DP_TSML131>=20,ISBLANK('Sect 2 - Published TSMs'!DP_TSML131)=TRUE)","v":false}]
[null,"V_TSM0275","Sect 2 Q4e TP09 Combined","Please check the value entered in Q4e TP09 Combined and ensure that you have reported the TSM as per the requirements. The value entered is less than 20%.",null,"Soft",null,{"$f":"OR('Sect 2 - Published TSMs'!DP_TSML132>=20,ISBLANK('Sect 2 - Published TSMs'!DP_TSML132)=TRUE)","v":false}]
[null,"V_TSM0276","Sect 2 Q4e TP10 LCRA","Please check the value entered in Q4e TP10 LCRA and ensure that you have reported the TSM as per the requirements. The value entered is less than 20%.",null,"Soft",null,{"$f":"OR('Sect 2 - Published TSMs'!DP_TSML133>=20,ISBLANK('Sect 2 - Published TSMs'!DP_TSML133)=TRUE)","v":true}]
[null,"V_TSM0277","Sect 2 Q4e TP10 LCHO","Please check the value entered in Q4e TP10 LCHO and ensure that you have reported the TSM as per the requirements. The value entered is less than 20%.",null,"Soft",null,{"$f":"OR('Sect 2 - Published TSMs'!DP_TSML134>=20,ISBLANK('Sect 2 - Published TSMs'!DP_TSML134)=TRUE)","v":true}]
[null,"V_TSM0278","Sect 2 Q4e TP10 Combined","Please check the value entered in Q4e TP10 Combined and ensure that you have reported the TSM as per the requirements. The value entered is less than 20%.",null,"Soft",null,{"$f":"OR('Sect 2 - Published TSMs'!DP_TSML135>=20,ISBLANK('Sect 2 - Published TSMs'!DP_TSML135)=TRUE)","v":true}]
[null,"V_TSM0279","Sect 2 Q4e TP11 LCRA","Please check the value entered in Q4e TP11 LCRA and ensure that you have reported the TSM as per the requirements. The value entered is less than 20%.",null,"Soft",null,{"$f":"OR('Sect 2 - Published TSMs'!DP_TSML136>=20,ISBLANK('Sect 2 - Published TSMs'!DP_TSML136)=TRUE)","v":true}]
[null,"V_TSM0280","Sect 2 Q4e TP11 LCHO","Please check the value entered in Q4e TP11 LCHO and ensure that you have reported the TSM as per the requirements. The value entered is less than 20%.",null,"Soft",null,{"$f":"OR('Sect 2 - Published TSMs'!DP_TSML137>=20,ISBLANK('Sect 2 - Published TSMs'!DP_TSML137)=TRUE)","v":false}]
[null,"V_TSM0281","Sect 2 Q4e TP11 Combined","Please check the value entered in Q4e TP11 Combined and ensure that you have reported the TSM as per the requirements. The value entered is less than 20%.",null,"Soft",null,{"$f":"OR('Sect 2 - Published TSMs'!DP_TSML138>=20,ISBLANK('Sect 2 - Published TSMs'!DP_TSML138)=TRUE)","v":true}]
[null,"V_TSM0282","Sect 2 Q4e TP12 LCRA","Please check the value entered in Q4e TP12 LCRA and ensure that you have reported the TSM as per the requirements. The value entered is less than 20%.",null,"Soft",null,{"$f":"OR('Sect 2 - Published TSMs'!DP_TSML139>=20,ISBLANK('Sect 2 - Published TSMs'!DP_TSML139)=TRUE)","v":true}]
[null,"V_TSM0283","Sect 2 Q4e TP12 LCHO","Please check the value entered in Q4e TP12 LCHO and ensure that you have reported the TSM as per the requirements. The value entered is less than 20%.",null,"Soft",null,{"$f":"OR('Sect 2 - Published TSMs'!DP_TSML140>=20,ISBLANK('Sect 2 - Published TSMs'!DP_TSML140)=TRUE)","v":false}]
[null,"V_TSM0284","Sect 2 Q4e TP12 Combined","Please check the value entered in Q4e TP12 Combined and ensure that you have reported the TSM as per the requirements. The value entered is less than 20%.",null,"Soft",null,{"$f":"OR('Sect 2 - Published TSMs'!DP_TSML141>=20,ISBLANK('Sect 2 - Published TSMs'!DP_TSML141)=TRUE)","v":true}]
[null,"V_TSM0285","Sect 1a Q1L1 and Sect 2 Q4d CH01 (1) LCRA","Q4d CH01 (1) LCRA must be completed if Section 1a Q1 indicates your are reporting TSMs for LCRA dwellings . Otherwise it should be left blank",null,"Hard",null,{"$f":"OR(AND('Sect 1a - Background'!DP_TSML001=\"Yes\",ISBLANK('Sect 2 - Published TSMs'!DP_TSML097)=FALSE),AND('Sect 1a - Background'!DP_TSML001=\"No\",ISBLANK('Sect 2 - Published TSMs'!DP_TSML097)=TRUE))","v":true}]
[null,"V_TSM0286","Sect 1a Q1L2 and Sect 2 Q4d CH01 (1) LCHO","Q4d CH01 (1) LCHO must be completed if Section 1a Q1 indicates your are reporting TSMs for LCHO dwellings . Otherwise it should be left blank",null,"Hard",null,{"$f":"OR(AND('Sect 1a - Background'!DP_TSML002=\"Yes\",ISBLANK('Sect 2 - Published TSMs'!DP_TSML098)=FALSE),AND('Sect 1a - Background'!DP_TSML002=\"No\",ISBLANK('Sect 2 - Published TSMs'!DP_TSML098)=TRUE))","v":true}]
[null,"V_TSM0287","Sect 1a Q1L3 and Sect 2 Q4d CH01 (1) Combined","Q4d CH01 (1) Combined must be completed if Section 1a Q1 indicates your are reporting TSMs for LCRA and LCHO dwellings on a combined basis . Otherwise it should be left blank",null,"Hard",null,{"$f":"OR(AND('Sect 1a - Background'!DP_TSML003=\"Yes\",ISBLANK('Sect 2 - Published TSMs'!DP_TSML099)=FALSE),AND('Sect 1a - Background'!DP_TSML003=\"No\",ISBLANK('Sect 2 - Published TSMs'!DP_TSML099)=TRUE))","v":false}]
[null,"V_TSM0288","Sect 1a Q1L1 and Sect 2 Q4d CH01 (2) LCRA","Q4d CH01 (2) LCRA must be completed if Section 1a Q1 indicates your are reporting TSMs for LCRA dwellings . Otherwise it should be left blank",null,"Hard",null,{"$f":"OR(AND('Sect 1a - Background'!DP_TSML001=\"Yes\",ISBLANK('Sect 2 - Published TSMs'!DP_TSML100)=FALSE),AND('Sect 1a - Background'!DP_TSML001=\"No\",ISBLANK('Sect 2 - Published TSMs'!DP_TSML100)=TRUE))","v":true}]
[null,"V_TSM0289","Sect 1a Q1L2 and Sect 2 Q4d CH01 (2) LCHO","Q4d CH01 (2) LCHO must be completed if Section 1a Q1 indicates your are reporting TSMs for LCHO dwellings . Otherwise it should be left blank",null,"Hard",null,{"$f":"OR(AND('Sect 1a - Background'!DP_TSML002=\"Yes\",ISBLANK('Sect 2 - Published TSMs'!DP_TSML101)=FALSE),AND('Sect 1a - Background'!DP_TSML002=\"No\",ISBLANK('Sect 2 - Published TSMs'!DP_TSML101)=TRUE))","v":true}]
[null,"V_TSM0290","Sect 1a Q1L3 and Sect 2 Q4d CH01 (2) Combined","Q4d CH01 (2) Combined must be completed if Section 1a Q1 indicates your are reporting TSMs for LCRA and LCHO dwellings on a combined basis . Otherwise it should be left blank",null,"Hard",null,{"$f":"OR(AND('Sect 1a - Background'!DP_TSML003=\"Yes\",ISBLANK('Sect 2 - Published TSMs'!DP_TSML102)=FALSE),AND('Sect 1a - Background'!DP_TSML003=\"No\",ISBLANK('Sect 2 - Published TSMs'!DP_TSML102)=TRUE))","v":false}]
[null,"V_TSM0291","Sect 1a Q1L1 and Sect 2 Q4d CH02 (1) LCRA","Q4d CH02 (1) LCRA must be completed if Section 1a Q1 indicates your are reporting TSMs for LCRA dwellings . Otherwise it should be left blank",null,"Hard",null,{"$f":"OR(AND('Sect 1a - Background'!DP_TSML001=\"Yes\",ISBLANK('Sect 2 - Published TSMs'!DP_TSML103)=FALSE),AND('Sect 1a - Background'!DP_TSML001=\"No\",ISBLANK('Sect 2 - Published TSMs'!DP_TSML103)=TRUE))","v":true}]
[null,"V_TSM0292","Sect 1a Q1L2 and Sect 2 Q4d CH02 (1) LCHO","Q4d CH02 (1) LCHO must be completed if Section 1a Q1 indicates your are reporting TSMs for LCHO dwellings . Otherwise it should be left blank",null,"Hard",null,{"$f":"OR(AND('Sect 1a - Background'!DP_TSML002=\"Yes\",ISBLANK('Sect 2 - Published TSMs'!DP_TSML104)=FALSE),AND('Sect 1a - Background'!DP_TSML002=\"No\",ISBLANK('Sect 2 - Published TSMs'!DP_TSML104)=TRUE))","v":true}]
[null,"V_TSM0293","Sect 1a Q1L3 and Sect 2 Q4d CH02 (1) Combined","Q4d CH02 (1) Combined must be completed if Section 1a Q1 indicates your are reporting TSMs for LCRA and LCHO dwellings on a combined basis . Otherwise it should be left blank",null,"Hard",null,{"$f":"OR(AND('Sect 1a - Background'!DP_TSML003=\"Yes\",ISBLANK('Sect 2 - Published TSMs'!DP_TSML105)=FALSE),AND('Sect 1a - Background'!DP_TSML003=\"No\",ISBLANK('Sect 2 - Published TSMs'!DP_TSML105)=TRUE))","v":false}]
[null,"V_TSM0294","Sect 1a Q1L1 and Sect 2 Q4d CH02 (2) LCRA","Q4d CH02 (2) LCRA must be completed if Section 1a Q1 indicates your are reporting TSMs for LCRA dwellings . Otherwise it should be left blank",null,"Hard",null,{"$f":"OR(AND('Sect 1a - Background'!DP_TSML001=\"Yes\",ISBLANK('Sect 2 - Published TSMs'!DP_TSML106)=FALSE),AND('Sect 1a - Background'!DP_TSML001=\"No\",ISBLANK('Sect 2 - Published TSMs'!DP_TSML106)=TRUE))","v":true}]
[null,"V_TSM0295","Sect 1a Q1L2 and Sect 2 Q4d CH02 (2) LCHO","Q4d CH02 (2) LCHO must be completed if Section 1a Q1 indicates your are reporting TSMs for LCHO dwellings . Otherwise it should be left blank",null,"Hard",null,{"$f":"OR(AND('Sect 1a - Background'!DP_TSML002=\"Yes\",ISBLANK('Sect 2 - Published TSMs'!DP_TSML107)=FALSE),AND('Sect 1a - Background'!DP_TSML002=\"No\",ISBLANK('Sect 2 - Published TSMs'!DP_TSML107)=TRUE))","v":true}]
[null,"V_TSM0296","Sect 1a Q1L3 and Sect 2 Q4d CH02 (2) Combined","Q4d CH02 (2) Combined must be completed if Section 1a Q1 indicates your are reporting TSMs for LCRA and LCHO dwellings on a combined basis . Otherwise it should be left blank",null,"Hard",null,{"$f":"OR(AND('Sect 1a - Background'!DP_TSML003=\"Yes\",ISBLANK('Sect 2 - Published TSMs'!DP_TSML108)=FALSE),AND('Sect 1a - Background'!DP_TSML003=\"No\",ISBLANK('Sect 2 - Published TSMs'!DP_TSML108)=TRUE))","v":false}]
[null,"V_TSM0297","Sect 1a Q1L1 and Sect 2 Q4e TP01 LCRA","Q4e TP01 LCRA must be completed if Section 1a Q1 indicates your are reporting TSMs for LCRA dwellings . Otherwise it should be left blank",null,"Hard",null,{"$f":"OR(AND('Sect 1a - Background'!DP_TSML001=\"Yes\",ISBLANK('Sect 2 - Published TSMs'!DP_TSML109)=FALSE),AND('Sect 1a - Background'!DP_TSML001=\"No\",ISBLANK('Sect 2 - Published TSMs'!DP_TSML109)=TRUE))","v":true}]
[null,"V_TSM0298","Sect 1a Q1L2 and Sect 2 Q4e TP01 LCHO","Q4e TP01 LCHO must be completed if Section 1a Q1 indicates your are reporting TSMs for LCHO dwellings . Otherwise it should be left blank",null,"Hard",null,{"$f":"OR(AND('Sect 1a - Background'!DP_TSML002=\"Yes\",ISBLANK('Sect 2 - Published TSMs'!DP_TSML110)=FALSE),AND('Sect 1a - Background'!DP_TSML002=\"No\",ISBLANK('Sect 2 - Published TSMs'!DP_TSML110)=TRUE))","v":true}]
[null,"V_TSM0299","Sect 1a Q1L3 and Sect 2 Q4e TP01 Combined","Q4e TP01 Combined must be completed if Section 1a Q1 indicates your are reporting TSMs for LCRA and LCHO dwellings on a combined basis . Otherwise it should be left blank",null,"Hard",null,{"$f":"OR(AND('Sect 1a - Background'!DP_TSML003=\"Yes\",ISBLANK('Sect 2 - Published TSMs'!DP_TSML111)=FALSE),AND('Sect 1a - Background'!DP_TSML003=\"No\",ISBLANK('Sect 2 - Published TSMs'!DP_TSML111)=TRUE))","v":false}]
[null,"V_TSM0300","Sect 1a Q1L1 and Sect 2 Q4e TP02 LCRA","Q4e TP02 LCRA must be completed if Section 1a Q1 indicates your are reporting TSMs for LCRA dwellings . Otherwise it should be left blank",null,"Hard",null,{"$f":"OR(AND('Sect 1a - Background'!DP_TSML001=\"Yes\",ISBLANK('Sect 2 - Published TSMs'!DP_TSML112)=FALSE),AND('Sect 1a - Background'!DP_TSML001=\"No\",ISBLANK('Sect 2 - Published TSMs'!DP_TSML112)=TRUE))","v":true}]
[null,"V_TSM0301","Sect 1a Q1L2 and Sect 2 Q4e TP02 Combined","Q4e TP02 Combined must be completed if Section 1a Q1 indicates your are reporting TSMs for LCRA and LCHO dwellings on a combined basis . Otherwise it should be left blank",null,"Hard",null,{"$f":"OR(AND('Sect 1a - Background'!DP_TSML003=\"Yes\",ISBLANK('Sect 2 - Published TSMs'!DP_TSML113)=FALSE),AND('Sect 1a - Background'!DP_TSML003=\"No\",ISBLANK('Sect 2 - Published TSMs'!DP_TSML113)=TRUE))","v":false}]
[null,"V_TSM0302","Sect 1a Q1L1 and Sect 2 Q4e TP03 LCRA","Q4e TP03 LCRA must be completed if Section 1a Q1 indicates your are reporting TSMs for LCRA dwellings . Otherwise it should be left blank",null,"Hard",null,{"$f":"OR(AND('Sect 1a - Background'!DP_TSML001=\"Yes\",ISBLANK('Sect 2 - Published TSMs'!DP_TSML114)=FALSE),AND('Sect 1a - Background'!DP_TSML001=\"No\",ISBLANK('Sect 2 - Published TSMs'!DP_TSML114)=TRUE))","v":true}]
[null,"V_TSM0303","Sect 1a Q1L3 and Sect 2 Q4e TP03 Combined","Q4e TP03 Combined must be completed if Section 1a Q1 indicates your are reporting TSMs for LCRA and LCHO dwellings on a combined basis . Otherwise it should be left blank",null,"Hard",null,{"$f":"OR(AND('Sect 1a - Background'!DP_TSML003=\"Yes\",ISBLANK('Sect 2 - Published TSMs'!DP_TSML115)=FALSE),AND('Sect 1a - Background'!DP_TSML003=\"No\",ISBLANK('Sect 2 - Published TSMs'!DP_TSML115)=TRUE))","v":false}]
[null,"V_TSM0304","Sect 1a Q1L1 and Sect 2 Q4e TP04 LCRA","Q4e TP04 LCRA must be completed if Section 1a Q1 indicates your are reporting TSMs for LCRA dwellings . Otherwise it should be left blank",null,"Hard",null,{"$f":"OR(AND('Sect 1a - Background'!DP_TSML001=\"Yes\",ISBLANK('Sect 2 - Published TSMs'!DP_TSML116)=FALSE),AND('Sect 1a - Background'!DP_TSML001=\"No\",ISBLANK('Sect 2 - Published TSMs'!DP_TSML116)=TRUE))","v":true}]
[null,"V_TSM0305","Sect 1a Q1L2 and Sect 2 Q4e TP04 Combined","Q4e TP04 Combined must be completed if Section 1a Q1 indicates your are reporting TSMs for LCRA and LCHO dwellings on a combined basis . Otherwise it should be left blank",null,"Hard",null,{"$f":"OR(AND('Sect 1a - Background'!DP_TSML003=\"Yes\",ISBLANK('Sect 2 - Published TSMs'!DP_TSML117)=FALSE),AND('Sect 1a - Background'!DP_TSML003=\"No\",ISBLANK('Sect 2 - Published TSMs'!DP_TSML117)=TRUE))","v":false}]
[null,"V_TSM0306","Sect 1a Q1L1 and Sect 2 Q4e TP05 LCRA","Q4e TP05 LCRA must be completed if Section 1a Q1 indicates your are reporting TSMs for LCRA dwellings . Otherwise it should be left blank",null,"Hard",null,{"$f":"OR(AND('Sect 1a - Background'!DP_TSML001=\"Yes\",ISBLANK('Sect 2 - Published TSMs'!DP_TSML118)=FALSE),AND('Sect 1a - Background'!DP_TSML001=\"No\",ISBLANK('Sect 2 - Published TSMs'!DP_TSML118)=TRUE))","v":true}]
[null,"V_TSM0307","Sect 1a Q1L1 and Sect 2 Q4e TP05 LCHO","Q4e TP05 LCHO must be completed if Section 1a Q1 indicates your are reporting TSMs for LCHO dwellings . Otherwise it should be left blank",null,"Hard",null,{"$f":"OR(AND('Sect 1a - Background'!DP_TSML002=\"Yes\",ISBLANK('Sect 2 - Published TSMs'!DP_TSML119)=FALSE),AND('Sect 1a - Background'!DP_TSML002=\"No\",ISBLANK('Sect 2 - Published TSMs'!DP_TSML119)=TRUE))","v":true}]
[null,"V_TSM0308","Sect 1a Q1L1 and Sect 2 Q4e TP05 Combined","Q4e TP05 Combined must be completed if Section 1a Q1 indicates your are reporting TSMs for LCRA and LCHO dwellings on a combined basis . Otherwise it should be left blank",null,"Hard",null,{"$f":"OR(AND('Sect 1a - Background'!DP_TSML003=\"Yes\",ISBLANK('Sect 2 - Published TSMs'!DP_TSML120)=FALSE),AND('Sect 1a - Background'!DP_TSML003=\"No\",ISBLANK('Sect 2 - Published TSMs'!DP_TSML120)=TRUE))","v":false}]
[null,"V_TSM0309","Sect 1a Q1L1 and Sect 2 Q4e TP06 LCRA","Q4e TP06 LCRA must be completed if Section 1a Q1 indicates your are reporting TSMs for LCRA dwellings . Otherwise it should be left blank",null,"Hard",null,{"$f":"OR(AND('Sect 1a - Background'!DP_TSML001=\"Yes\",ISBLANK('Sect 2 - Published TSMs'!DP_TSML121)=FALSE),AND('Sect 1a - Background'!DP_TSML001=\"No\",ISBLANK('Sect 2 - Published TSMs'!DP_TSML121)=TRUE))","v":true}]
[null,"V_TSM0310","Sect 1a Q1L1 and Sect 2 Q4e TP06 LCHO","Q4e TP06 LCHO must be completed if Section 1a Q1 indicates your are reporting TSMs for LCHO dwellings . Otherwise it should be left blank",null,"Hard",null,{"$f":"OR(AND('Sect 1a - Background'!DP_TSML002=\"Yes\",ISBLANK('Sect 2 - Published TSMs'!DP_TSML122)=FALSE),AND('Sect 1a - Background'!DP_TSML002=\"No\",ISBLANK('Sect 2 - Published TSMs'!DP_TSML122)=TRUE))","v":true}]
[null,"V_TSM0311","Sect 1a Q1L1 and Sect 2 Q4e TP06 Combined","Q4e TP06 Combined must be completed if Section 1a Q1 indicates your are reporting TSMs for LCRA and LCHO dwellings on a combined basis . Otherwise it should be left blank",null,"Hard",null,{"$f":"OR(AND('Sect 1a - Background'!DP_TSML003=\"Yes\",ISBLANK('Sect 2 - Published TSMs'!DP_TSML123)=FALSE),AND('Sect 1a - Background'!DP_TSML003=\"No\",ISBLANK('Sect 2 - Published TSMs'!DP_TSML123)=TRUE))","v":false}]
[null,"V_TSM0312","Sect 1a Q1L1 and Sect 2 Q4e TP07 LCRA","Q4e TP07 LCRA must be completed if Section 1a Q1 indicates your are reporting TSMs for LCRA dwellings . Otherwise it should be left blank",null,"Hard",null,{"$f":"OR(AND('Sect 1a - Background'!DP_TSML001=\"Yes\",ISBLANK('Sect 2 - Published TSMs'!DP_TSML124)=FALSE),AND('Sect 1a - Background'!DP_TSML001=\"No\",ISBLANK('Sect 2 - Published TSMs'!DP_TSML124)=TRUE))","v":true}]
[null,"V_TSM0313","Sect 1a Q1L1 and Sect 2 Q4e TP07 LCHO","Q4e TP07 LCHO must be completed if Section 1a Q1 indicates your are reporting TSMs for LCHO dwellings . Otherwise it should be left blank",null,"Hard",null,{"$f":"OR(AND('Sect 1a - Background'!DP_TSML002=\"Yes\",ISBLANK('Sect 2 - Published TSMs'!DP_TSML125)=FALSE),AND('Sect 1a - Background'!DP_TSML002=\"No\",ISBLANK('Sect 2 - Published TSMs'!DP_TSML125)=TRUE))","v":true}]
[null,"V_TSM0314","Sect 1a Q1L1 and Sect 2 Q4e TP07 Combined","Q4e TP07 Combined must be completed if Section 1a Q1 indicates your are reporting TSMs for LCRA and LCHO dwellings on a combined basis . Otherwise it should be left blank",null,"Hard",null,{"$f":"OR(AND('Sect 1a - Background'!DP_TSML003=\"Yes\",ISBLANK('Sect 2 - Published TSMs'!DP_TSML126)=FALSE),AND('Sect 1a - Background'!DP_TSML003=\"No\",ISBLANK('Sect 2 - Published TSMs'!DP_TSML126)=TRUE))","v":false}]
[null,"V_TSM0315","Sect 1a Q1L1 and Sect 2 Q4e TP08 LCRA","Q4e TP08 LCRA must be completed if Section 1a Q1 indicates your are reporting TSMs for LCRA dwellings . Otherwise it should be left blank",null,"Hard",null,{"$f":"OR(AND('Sect 1a - Background'!DP_TSML001=\"Yes\",ISBLANK('Sect 2 - Published TSMs'!DP_TSML127)=FALSE),AND('Sect 1a - Background'!DP_TSML001=\"No\",ISBLANK('Sect 2 - Published TSMs'!DP_TSML127)=TRUE))","v":true}]
[null,"V_TSM0316","Sect 1a Q1L1 and Sect 2 Q4e TP08 LCHO","Q4e TP08 LCHO must be completed if Section 1a Q1 indicates your are reporting TSMs for LCHO dwellings . Otherwise it should be left blank",null,"Hard",null,{"$f":"OR(AND('Sect 1a - Background'!DP_TSML002=\"Yes\",ISBLANK('Sect 2 - Published TSMs'!DP_TSML128)=FALSE),AND('Sect 1a - Background'!DP_TSML002=\"No\",ISBLANK('Sect 2 - Published TSMs'!DP_TSML128)=TRUE))","v":true}]
[null,"V_TSM0317","Sect 1a Q1L1 and Sect 2 Q4e TP08 Combined","Q4e TP08 Combined must be completed if Section 1a Q1 indicates your are reporting TSMs for LCRA and LCHO dwellings on a combined basis . Otherwise it should be left blank",null,"Hard",null,{"$f":"OR(AND('Sect 1a - Background'!DP_TSML003=\"Yes\",ISBLANK('Sect 2 - Published TSMs'!DP_TSML129)=FALSE),AND('Sect 1a - Background'!DP_TSML003=\"No\",ISBLANK('Sect 2 - Published TSMs'!DP_TSML129)=TRUE))","v":false}]
[null,"V_TSM0318","Sect 1a Q1L1 and Sect 2 Q4e TP09 LCRA","Q4e TP09 LCRA must be completed if Section 1a Q1 indicates your are reporting TSMs for LCRA dwellings . Otherwise it should be left blank",null,"Hard",null,{"$f":"OR(AND('Sect 1a - Background'!DP_TSML001=\"Yes\",ISBLANK('Sect 2 - Published TSMs'!DP_TSML130)=FALSE),AND('Sect 1a - Background'!DP_TSML001=\"No\",ISBLANK('Sect 2 - Published TSMs'!DP_TSML130)=TRUE))","v":true}]
[null,"V_TSM0319","Sect 1a Q1L1 and Sect 2 Q4e TP09 LCHO","Q4e TP09 LCHO must be completed if Section 1a Q1 indicates your are reporting TSMs for LCHO dwellings . Otherwise it should be left blank",null,"Hard",null,{"$f":"OR(AND('Sect 1a - Background'!DP_TSML002=\"Yes\",ISBLANK('Sect 2 - Published TSMs'!DP_TSML131)=FALSE),AND('Sect 1a - Background'!DP_TSML002=\"No\",ISBLANK('Sect 2 - Published TSMs'!DP_TSML131)=TRUE))","v":true}]
[null,"V_TSM0320","Sect 1a Q1L1 and Sect 2 Q4e TP09 Combined","Q4e TP09 Combined must be completed if Section 1a Q1 indicates your are reporting TSMs for LCRA and LCHO dwellings on a combined basis . Otherwise it should be left blank",null,"Hard",null,{"$f":"OR(AND('Sect 1a - Background'!DP_TSML003=\"Yes\",ISBLANK('Sect 2 - Published TSMs'!DP_TSML132)=FALSE),AND('Sect 1a - Background'!DP_TSML003=\"No\",ISBLANK('Sect 2 - Published TSMs'!DP_TSML132)=TRUE))","v":false}]
[null,"V_TSM0321","Sect 1a Q1L1 and Sect 2 Q4e TP10 LCRA","Q4e TP10 LCRA must be completed if Section 1a Q1 indicates your are reporting TSMs for LCRA dwellings . Otherwise it should be left blank",null,"Hard",null,{"$f":"OR(AND('Sect 1a - Background'!DP_TSML001=\"Yes\",ISBLANK('Sect 2 - Published TSMs'!DP_TSML133)=FALSE),AND('Sect 1a - Background'!DP_TSML001=\"No\",ISBLANK('Sect 2 - Published TSMs'!DP_TSML133)=TRUE))","v":true}]
[null,"V_TSM0322","Sect 1a Q1L1 and Sect 2 Q4e TP10 LCHO","Q4e TP10 LCHO must be completed if Section 1a Q1 indicates your are reporting TSMs for LCHO dwellings . Otherwise it should be left blank",null,"Hard",null,{"$f":"OR(AND('Sect 1a - Background'!DP_TSML002=\"Yes\",ISBLANK('Sect 2 - Published TSMs'!DP_TSML134)=FALSE),AND('Sect 1a - Background'!DP_TSML002=\"No\",ISBLANK('Sect 2 - Published TSMs'!DP_TSML134)=TRUE))","v":true}]
[null,"V_TSM0323","Sect 1a Q1L1 and Sect 2 Q4e TP10 Combined","Q4e TP10 Combined must be completed if Section 1a Q1 indicates your are reporting TSMs for LCRA and LCHO dwellings on a combined basis . Otherwise it should be left blank",null,"Hard",null,{"$f":"OR(AND('Sect 1a - Background'!DP_TSML003=\"Yes\",ISBLANK('Sect 2 - Published TSMs'!DP_TSML135)=FALSE),AND('Sect 1a - Background'!DP_TSML003=\"No\",ISBLANK('Sect 2 - Published TSMs'!DP_TSML135)=TRUE))","v":false}]
[null,"V_TSM0324","Sect 1a Q1L1 and Sect 2 Q4e TP11 LCRA","Q4e TP11 LCRA must be completed if Section 1a Q1 indicates your are reporting TSMs for LCRA dwellings . Otherwise it should be left blank",null,"Hard",null,{"$f":"OR(AND('Sect 1a - Background'!DP_TSML001=\"Yes\",ISBLANK('Sect 2 - Published TSMs'!DP_TSML136)=FALSE),AND('Sect 1a - Background'!DP_TSML001=\"No\",ISBLANK('Sect 2 - Published TSMs'!DP_TSML136)=TRUE))","v":true}]
[null,"V_TSM0325","Sect 1a Q1L1 and Sect 2 Q4e TP11 LCHO","Q4e TP11 LCHO must be completed if Section 1a Q1 indicates your are reporting TSMs for LCHO dwellings . Otherwise it should be left blank",null,"Hard",null,{"$f":"OR(AND('Sect 1a - Background'!DP_TSML002=\"Yes\",ISBLANK('Sect 2 - Published TSMs'!DP_TSML137)=FALSE),AND('Sect 1a - Background'!DP_TSML002=\"No\",ISBLANK('Sect 2 - Published TSMs'!DP_TSML137)=TRUE))","v":true}]
[null,"V_TSM0326","Sect 1a Q1L1 and Sect 2 Q4e TP11 Combined","Q4e TP11 Combined must be completed if Section 1a Q1 indicates your are reporting TSMs for LCRA and LCHO dwellings on a combined basis . Otherwise it should be left blank",null,"Hard",null,{"$f":"OR(AND('Sect 1a - Background'!DP_TSML003=\"Yes\",ISBLANK('Sect 2 - Published TSMs'!DP_TSML138)=FALSE),AND('Sect 1a - Background'!DP_TSML003=\"No\",ISBLANK('Sect 2 - Published TSMs'!DP_TSML138)=TRUE))","v":false}]
[null,"V_TSM0327","Sect 1a Q1L1 and Sect 2 Q4e TP12 LCRA","Q4e TP12 LCRA must be completed if Section 1a Q1 indicates your are reporting TSMs for LCRA dwellings . Otherwise it should be left blank",null,"Hard",null,{"$f":"OR(AND('Sect 1a - Background'!DP_TSML001=\"Yes\",ISBLANK('Sect 2 - Published TSMs'!DP_TSML139)=FALSE),AND('Sect 1a - Background'!DP_TSML001=\"No\",ISBLANK('Sect 2 - Published TSMs'!DP_TSML139)=TRUE))","v":true}]
[null,"V_TSM0328","Sect 1a Q1L1 and Sect 2 Q4e TP12 LCHO","Q4e TP12 LCHO must be completed if Section 1a Q1 indicates your are reporting TSMs for LCHO dwellings . Otherwise it should be left blank",null,"Hard",null,{"$f":"OR(AND('Sect 1a - Background'!DP_TSML002=\"Yes\",ISBLANK('Sect 2 - Published TSMs'!DP_TSML140)=FALSE),AND('Sect 1a - Background'!DP_TSML002=\"No\",ISBLANK('Sect 2 - Published TSMs'!DP_TSML140)=TRUE))","v":true}]
[null,"V_TSM0329","Sect 1a Q1L1 and Sect 2 Q4e TP12 Combined","Q4e TP12 Combined must be completed if Section 1a Q1 indicates your are reporting TSMs for LCRA and LCHO dwellings on a combined basis . Otherwise it should be left blank",null,"Hard",null,{"$f":"OR(AND('Sect 1a - Background'!DP_TSML003=\"Yes\",ISBLANK('Sect 2 - Published TSMs'!DP_TSML141)=FALSE),AND('Sect 1a - Background'!DP_TSML003=\"No\",ISBLANK('Sect 2 - Published TSMs'!DP_TSML141)=TRUE))","v":false}]
[null,"V_TSM0330","Sect 4 Q2a","Q2a is an optional question. We note that you have entered '0'. If you do not want to report the number of stage one complaints resopnded to within the timecales without the use of extensions please leave this field blank. However, if '0' is the number of stage one complaints reponded to then you can ignore this validation. ",null,"Soft",null,{"$f":"OR(ISBLANK('Sect 4 - TSMs reported for LCRA'!DP_TSML183)=TRUE,'Sect 4 - TSMs reported for LCRA'!DP_TSML183<>0)","v":true}]
[null,"V_TSM0331","Sect 4 Q2b","Q2b is an optional question. We note that you have entered '0'. If you do not want to report the number of stage one complaints resopnded to within the timecales without the use of extensions please leave this field blank. However, if '0' is the number of stage one complaints reponded to then you can ignore this validation. ",null,"Soft",null,{"$f":"OR(ISBLANK('Sect 4 - TSMs reported for LCRA'!DP_TSML184)=TRUE,'Sect 4 - TSMs reported for LCRA'!DP_TSML183<>0)","v":true}]
[null,"V_TSM0332","Sect 4 Q3 CH01 (2)","Please check that you have entered the numerator and denominator for this Q3 L1 correctly.",null,"Hard",null,{"$f":"'Sect 4 - TSMs reported for LCRA'!DP_TSML186<='Sect 4 - TSMs reported for LCRA'!DP_TSML187","v":true}]
[null,"V_TSM0333","Sect 4 Q3 CH02 (2)","Please check that you have entered the numerator and denominator for this Q3 L2 correctly.",null,"Hard",null,{"$f":"'Sect 4 - TSMs reported for LCRA'!DP_TSML189<='Sect 4 - TSMs reported for LCRA'!DP_TSML190","v":true}]
[null,"V_TSM0334","Sect 4 Q4a","Q4a is an optional question. We note that you have entered '0'. If you do not want to report the number of stage one complaints resopnded to within the timecales without the use of extensions please leave this field blank. However, if '0' is the number of stage one complaints reponded to then you can ignore this validation. ",null,"Soft",null,{"$f":"OR(ISBLANK('Sect 4 - TSMs reported for LCRA'!DP_TSML191)=TRUE,'Sect 4 - TSMs reported for LCRA'!DP_TSML191<>0)","v":true}]
[null,"V_TSM0335","Sect 4 Q4b","Q4b is an optional question. We note that you have entered '0'. If you do not want to report the number of stage one complaints resopnded to within the timecales without the use of extensions please leave this field blank. However, if '0' is the number of stage one complaints reponded to then you can ignore this validation. ",null,"Soft",null,{"$f":"OR(ISBLANK('Sect 4 - TSMs reported for LCRA'!DP_TSML192)=TRUE,'Sect 4 - TSMs reported for LCRA'!DP_TSML192<>0)","v":true}]
[null,"V_TSM0336","Sect 4 Q5b","If your response to Q5a is \"No\", please provide details of the maximum timescales used in Q5b, otherwise leave Q5b blank.  If you need to bring something to the attention of RSH then please upload a supporting document.",null,"Soft",null,{"$f":"OR(AND('Sect 4 - TSMs reported for LCRA'!DP_TSML193=\"No\",ISBLANK('Sect 4 - TSMs reported for LCRA'!DP_TSML194)=FALSE),AND('Sect 4 - TSMs reported for LCRA'!DP_TSML193=\"Yes\",ISBLANK('Sect 4 - TSMs reported for LCRA'!DP_TSML194)=TRUE),AND(ISBLANK('Sect 4 - TSMs reported for LCRA'!DP_TSML193)=TRUE,ISBLANK('Sect 4 - TSMs reported for LCRA'!DP_TSML194)=TRUE))","v":true}]
[null,"V_TSM0337","Sect 4 Q1 CH01 (1) denominator","Please check the denominator reported for CH01 (1).",null,"Soft",null,{"$f":"OR('Sect 4 - TSMs reported for LCRA'!DP_TSML179<=200000,ISBLANK('Sect 4 - TSMs reported for LCRA'!DP_TSML179)=TRUE)","v":true}]
[null,"V_TSM0338","Sect 4 Q1 CH02 (1) denominator","Please check the denominator reported for CH02 (1). The denominator should be the number of stage one complaints.",null,"Soft",null,{"$f":"OR('Sect 4 - TSMs reported for LCRA'!DP_TSML182='Sect 4 - TSMs reported for LCRA'!DP_TSML178,AND('Sect 4 - TSMs reported for LCRA'!DP_TSML182=0,'Sect 4 - TSMs reported for LCRA'!DP_TSML178=0))","v":true}]
[null,"V_TSM0339","Sect 4 Q3 CH01 (2) denominator","Please check the denominator reported for CH01 (2). The denominator should be the number of dwellings owned.",null,"Soft",null,{"$f":"OR('Sect 4 - TSMs reported for LCRA'!DP_TSML187<=200000,ISBLANK('Sect 4 - TSMs reported for LCRA'!DP_TSML187)=TRUE)","v":true}]
[null,"V_TSM0340","Sect 4 Q3 CH02 (2) denominator","Please check the denominator reported for CH02 (2). The denominator should be the number of stage two complaints.",null,"Soft",null,{"$f":"OR('Sect 4 - TSMs reported for LCRA'!DP_TSML190='Sect 4 - TSMs reported for LCRA'!DP_TSML186,AND('Sect 4 - TSMs reported for LCRA'!DP_TSML190=0,'Sect 4 - TSMs reported for LCRA'!DP_TSML186=0))","v":true}]
[null,"V_TSM0341","Sect 4 Q6 TP01","Please check that you have entered the correct values in Section 4 Q6 for TP01 and that the value for TP01 as reported in section 2 Q4e column 1 is also correct.",null,"Soft",null,{"$f":"AND('Sect 4 - TSMs reported for LCRA'!DP_TSML201>='Sect 2 - Published TSMs'!DP_TSML109-1,'Sect 4 - TSMs reported for LCRA'!DP_TSML201<='Sect 2 - Published TSMs'!DP_TSML109+1)","v":true}]
[null,"V_TSM0393","Sect 4 Q6 TP02","Please check that you have entered the correct values in Section 4 Q6 for TP02 and that the value for TP02 as reported in section 2 Q4e column 1 is also correct.",null,"Soft",null,{"$f":"AND('Sect 4 - TSMs reported for LCRA'!DP_TSML210>='Sect 2 - Published TSMs'!DP_TSML112-1,'Sect 4 - TSMs reported for LCRA'!DP_TSML210<='Sect 2 - Published TSMs'!DP_TSML112+1)","v":true}]
[null,"V_TSM0394","Sect 4 Q6 TP03","Please check that you have entered the correct values in Section 4 Q6 for TP03 and that the value for TP03 as reported in section 2 Q4e column 1 is also correct.",null,"Soft",null,{"$f":"AND('Sect 4 - TSMs reported for LCRA'!DP_TSML219>='Sect 2 - Published TSMs'!DP_TSML114-1,'Sect 4 - TSMs reported for LCRA'!DP_TSML219<='Sect 2 - Published TSMs'!DP_TSML114+1)","v":true}]
[null,"V_TSM0395","Sect 4 Q6 TP04","Please check that you have entered the correct values in Section 4 Q6 for TP04 and that the value for TP04 as reported in section 2 Q4e column 1 is also correct.",null,"Soft",null,{"$f":"AND('Sect 4 - TSMs reported for LCRA'!DP_TSML226>='Sect 2 - Published TSMs'!DP_TSML116-1,'Sect 4 - TSMs reported for LCRA'!DP_TSML226<='Sect 2 - Published TSMs'!DP_TSML116+1)","v":true}]
[null,"V_TSM0396","Sect 4 Q6 TP05","Please check that you have entered the correct values in Section 4 Q6 for TP05 and that the value for TP05 as reported in section 2 Q4e column 1 is also correct.",null,"Soft",null,{"$f":"AND('Sect 4 - TSMs reported for LCRA'!DP_TSML233>='Sect 2 - Published TSMs'!DP_TSML118-1,'Sect 4 - TSMs reported for LCRA'!DP_TSML233<='Sect 2 - Published TSMs'!DP_TSML118+1)","v":true}]
[null,"V_TSM0397","Sect 4 Q6 TP06","Please check that you have entered the correct values in Section 4 Q6 for TP06 and that the value for TP06 as reported in section 2 Q4e column 1 is also correct.",null,"Soft",null,{"$f":"AND('Sect 4 - TSMs reported for LCRA'!DP_TSML240>='Sect 2 - Published TSMs'!DP_TSML121-1,'Sect 4 - TSMs reported for LCRA'!DP_TSML240<='Sect 2 - Published TSMs'!DP_TSML121+1)","v":true}]
[null,"V_TSM0398","Sect 4 Q6 TP07","Please check that you have entered the correct values in Section 4 Q6 for TP07 and that the value for TP07 as reported in section 2 Q4e column 1 is also correct.",null,"Soft",null,{"$f":"AND('Sect 4 - TSMs reported for LCRA'!DP_TSML247>='Sect 2 - Published TSMs'!DP_TSML124-1,'Sect 4 - TSMs reported for LCRA'!DP_TSML247<='Sect 2 - Published TSMs'!DP_TSML124+1)","v":true}]
[null,"V_TSM0399","Sect 4 Q6 TP08","Please check that you have entered the correct values in Section 4 Q6 for TP08 and that the value for TP08 as reported in section 2 Q4e column 1 is also correct.",null,"Soft",null,{"$f":"AND('Sect 4 - TSMs reported for LCRA'!DP_TSML254>='Sect 2 - Published TSMs'!DP_TSML127-1,'Sect 4 - TSMs reported for LCRA'!DP_TSML254<='Sect 2 - Published TSMs'!DP_TSML127+1)","v":true}]
[null,"V_TSM0400","Sect 4 Q6 TP09","Please check that you have entered the correct values in Section 4 Q6 for TP09 and that the value for TP09 as reported in section 2 Q4e column 1 is also correct.",null,"Soft",null,{"$f":"AND('Sect 4 - TSMs reported for LCRA'!DP_TSML263>='Sect 2 - Published TSMs'!DP_TSML130-1,'Sect 4 - TSMs reported for LCRA'!DP_TSML263<='Sect 2 - Published TSMs'!DP_TSML130+1)","v":true}]
[null,"V_TSM0401","Sect 4 Q6 TP10","Please check that you have entered the correct values in Section 4 Q6 for TP10 and that the value for TP10 as reported in section 2 Q4e column 1 is also correct.",null,"Soft",null,{"$f":"AND('Sect 4 - TSMs reported for LCRA'!DP_TSML272>='Sect 2 - Published TSMs'!DP_TSML133-1,'Sect 4 - TSMs reported for LCRA'!DP_TSML272<='Sect 2 - Published TSMs'!DP_TSML133+1)","v":true}]
[null,"V_TSM0402","Sect 4 Q6 TP11","Please check that you have entered the correct values in Section 4 Q6 for TP11 and that the value for TP11 as reported in section 2 Q4e column 1 is also correct.",null,"Soft",null,{"$f":"AND('Sect 4 - TSMs reported for LCRA'!DP_TSML279>='Sect 2 - Published TSMs'!DP_TSML136-1,'Sect 4 - TSMs reported for LCRA'!DP_TSML279<='Sect 2 - Published TSMs'!DP_TSML136+1)","v":true}]
[null,"V_TSM0403","Sect 4 Q6 TP12","Please check that you have entered the correct values in Section 4 Q6 for TP12 and that the value for TP12 as reported in section 2 Q4e column 1 is also correct.",null,"Soft",null,{"$f":"AND('Sect 4 - TSMs reported for LCRA'!DP_TSML286>='Sect 2 - Published TSMs'!DP_TSML139-1,'Sect 4 - TSMs reported for LCRA'!DP_TSML286<='Sect 2 - Published TSMs'!DP_TSML139+1)","v":true}]
[null,"V_TSM0342","Sect 5 Q1 CH01(1)","Please check that you have entered the numerator and denominator for this Q1 L1 correctly.",null,"Hard",null,{"$f":"'Sect 5 - TSMs reported for LCHO'!DP_TSML288<='Sect 5 - TSMs reported for LCHO'!DP_TSML289","v":true}]
[null,"V_TSM0343","Sect 5 Q1 CH02(1)","Please check that you have entered the numerator and denominator for this Q1 L2 correctly.",null,"Hard",null,{"$f":"'Sect 5 - TSMs reported for LCHO'!DP_TSML291<='Sect 5 - TSMs reported for LCHO'!DP_TSML292","v":true}]
[null,"V_TSM0344","Sect 5 Q2a","Q2a is an optional question. We note that you have entered '0'. If you do not want to report the number of stage one complaints resopnded to within the timecales without the use of extensions please leave this field blank. However, if '0' is the number of stage one complaints reponded to then you can ignore this validation. ",null,"Soft",null,{"$f":"OR(AND(ISBLANK('Sect 5 - TSMs reported for LCHO'!DP_TSML293)=FALSE,'Sect 5 - TSMs reported for LCHO'!DP_TSML293<>0),ISBLANK('Sect 5 - TSMs reported for LCHO'!DP_TSML293)=TRUE)","v":true}]
[null,"V_TSM0345","Sect 5 Q2b","Q2b is an optional question. We note that you have entered '0'. If you do not want to report the number of stage one complaints resopnded to within the timecales with the use of extensions please leave this field blank. However, if '0' is the number of stage one complaints reponded to then you can ignore this validation. ",null,"Soft",null,{"$f":"OR(AND(ISBLANK('Sect 5 - TSMs reported for LCHO'!DP_TSML294)=FALSE,'Sect 5 - TSMs reported for LCHO'!DP_TSML294<>0),ISBLANK('Sect 5 - TSMs reported for LCHO'!DP_TSML294)=TRUE)","v":true}]
[null,"V_TSM0346","Sect 5 Q3 CH01 (2)","Please check that you have entered the numerator and denominator for this Q3 L1 correctly.",null,"Hard",null,{"$f":"'Sect 5 - TSMs reported for LCHO'!DP_TSML296<='Sect 5 - TSMs reported for LCHO'!DP_TSML297","v":true}]
[null,"V_TSM0347","Sect 5 Q3 CH02 (2)","Please check that you have entered the numerator and denominator for this Q3 L2 correctly.",null,"Hard",null,{"$f":"'Sect 5 - TSMs reported for LCHO'!DP_TSML299<='Sect 5 - TSMs reported for LCHO'!DP_TSML300","v":true}]
[null,"V_TSM0348","Sect 5 Q4a","Q4a is an optional question. We note that you have entered '0'. If you do not want to report the number of stage two complaints resopnded to within the timecales without the use of extensions please leave this field blank. However, if '0' is the number of stage two complaints reponded to then you can ignore this validation. ",null,"Soft",null,{"$f":"OR(AND(ISBLANK('Sect 5 - TSMs reported for LCHO'!DP_TSML301)=FALSE,'Sect 5 - TSMs reported for LCHO'!DP_TSML301<>0),ISBLANK('Sect 5 - TSMs reported for LCHO'!DP_TSML301)=TRUE)","v":true}]
[null,"V_TSM0349","Sect 5 Q4b","Q4b is an optional question. We note that you have entered '0'. If you do not want to report the number of stage one complaints resopnded to within the timecales with the use of extensions please leave this field blank. However, if '0' is the number of stage two complaints reponded to then you can ignore this validation. ",null,"Soft",null,{"$f":"OR(AND(ISBLANK('Sect 5 - TSMs reported for LCHO'!DP_TSML302)=FALSE,'Sect 5 - TSMs reported for LCHO'!DP_TSML302<>0),ISBLANK('Sect 5 - TSMs reported for LCHO'!DP_TSML302)=TRUE)","v":true}]
[null,"V_TSM0350","Sect 5 Q5b","If your response to Q5a is \"No\", please provide details of the maximum timescales used in Q5b, otherwise leave Q5b blank.  If you need to bring something to the attention of RSH then please upload a supporting document.",null,"Soft",null,{"$f":"OR(AND('Sect 5 - TSMs reported for LCHO'!DP_TSML303=\"No\",ISBLANK('Sect 5 - TSMs reported for LCHO'!DP_TSML304)=FALSE),AND('Sect 5 - TSMs reported for LCHO'!DP_TSML303=\"Yes\",ISBLANK('Sect 5 - TSMs reported for LCHO'!DP_TSML304)=TRUE),AND((ISBLANK('Sect 5 - TSMs reported for LCHO'!DP_TSML303)=TRUE),ISBLANK('Sect 5 - TSMs reported for LCHO'!DP_TSML304)=TRUE))","v":true}]
[null,"V_TSM0351","Sect 5 Q6 TP09","Please check the number of responses you are reporting as answering the filter question. These total to more than the number of total responses you reported in Q13 in section 1a",null,"Hard",null,{"$f":"OR('Sect 1a - Background'!DP_TSML004<>\"LCHO - section 5\",AND('Sect 1a - Background'!DP_TSML004=\"LCHO - section 5\",'Sect 5 - TSMs reported for LCHO'!DP_TSML340+'Sect 5 - TSMs reported for LCHO'!DP_TSML341<='Sect 1a - Background'!DP_TSML024))","v":true}]
[null,"V_TSM0352","Sect 5 Q6 TP09","Please check the number of responses you are reporting as answering the filter question. These total to more than the number of total responses you reported in Q13 in section 1b",null,"Hard",null,{"$f":"OR('Sect 1b - Background'!DP_TSML047<>\"LCHO - section 5\",AND('Sect 1b - Background'!DP_TSML047=\"LCHO - section 5\",'Sect 5 - TSMs reported for LCHO'!DP_TSML340+'Sect 5 - TSMs reported for LCHO'!DP_TSML341<='Sect 1b - Background'!DP_TSML067))","v":true}]
[null,"V_TSM0353","Sect 5 Q6 TP10","Please check the number of responses you are reporting as answering the filter question. These total to more than the number of total responses you reported in Q13 in section 1a",null,"Hard",null,{"$f":"OR('Sect 1a - Background'!DP_TSML004<>\"LCHO - section 5\",AND('Sect 1a - Background'!DP_TSML004=\"LCHO - section 5\",'Sect 5 - TSMs reported for LCHO'!DP_TSML349+'Sect 5 - TSMs reported for LCHO'!DP_TSML350<='Sect 1a - Background'!DP_TSML024))","v":true}]
[null,"V_TSM0354","Sect 5 Q6 TP10","Please check the number of responses you are reporting as answering the filter question. These total to more than the number of total responses you reported in Q13 in section 1b",null,"Hard",null,{"$f":"OR('Sect 1b - Background'!DP_TSML047<>\"LCHO - section 5\",AND('Sect 1b - Background'!DP_TSML047=\"LCHO - section 5\",'Sect 5 - TSMs reported for LCHO'!DP_TSML349+'Sect 5 - TSMs reported for LCHO'!DP_TSML350<='Sect 1b - Background'!DP_TSML067))","v":true}]
[null,"V_TSM0355","Sect 5 Q6 TP09","Please check the number of responses you are reporting across the response scale for TP09. We would expect these to total the number of respondents reporting 'Yes' to the filter question (L1).",null,"Hard",null,{"$f":"'Sect 5 - TSMs reported for LCHO'!DP_TSML342+'Sect 5 - TSMs reported for LCHO'!DP_TSML343+'Sect 5 - TSMs reported for LCHO'!DP_TSML344+'Sect 5 - TSMs reported for LCHO'!DP_TSML345+'Sect 5 - TSMs reported for LCHO'!DP_TSML346<='Sect 5 - TSMs reported for LCHO'!DP_TSML340","v":true}]
[null,"V_TSM0356","Sect 5 Q6 TP10","Please check the number of responses you are reporting across the response scale for TP10. We would expect these to total the number of respondents reporting 'Yes' to the filter question (L1).",null,"Hard",null,{"$f":"'Sect 5 - TSMs reported for LCHO'!DP_TSML351+'Sect 5 - TSMs reported for LCHO'!DP_TSML352+'Sect 5 - TSMs reported for LCHO'!DP_TSML353+'Sect 5 - TSMs reported for LCHO'!DP_TSML354+'Sect 5 - TSMs reported for LCHO'!DP_TSML355<='Sect 5 - TSMs reported for LCHO'!DP_TSML349","v":true}]
[null,"V_TSM0357","Sect 5 Q6 TP01","Please check the number of responses you are reporting across the response scale (Q6 TP01 Very Satisfied to Very dissatisfied). These total to more than the number of total responses you reported for all survey methods in Q13 in section 1a",null,"Hard",null,{"$f":"OR('Sect 1a - Background'!DP_TSML004<>\"LCHO - section 5\",AND('Sect 1a - Background'!DP_TSML004=\"LCHO - section 5\",'Sect 5 - TSMs reported for LCHO'!DP_TSML305+'Sect 5 - TSMs reported for LCHO'!DP_TSML306+'Sect 5 - TSMs reported for LCHO'!DP_TSML307+'Sect 5 - TSMs reported for LCHO'!DP_TSML308+'Sect 5 - TSMs reported for LCHO'!DP_TSML309<='Sect 1a - Background'!DP_TSML024))","v":true}]
[null,"V_TSM0358","Sect 5 Q6 TP01","Please check the number of responses you are reporting across the response scale (Q6 TP01 Very Satisfied to Very dissatisfied). These total to more than the number of total responses you reported for all survey methods in Q13 in section 1b",null,"Hard",null,{"$f":"OR('Sect 1b - Background'!DP_TSML047<>\"LCHO - section 5\",AND('Sect 1b - Background'!DP_TSML047=\"LCHO - section 5\",'Sect 5 - TSMs reported for LCHO'!DP_TSML305+'Sect 5 - TSMs reported for LCHO'!DP_TSML306+'Sect 5 - TSMs reported for LCHO'!DP_TSML307+'Sect 5 - TSMs reported for LCHO'!DP_TSML308+'Sect 5 - TSMs reported for LCHO'!DP_TSML309<='Sect 1b - Background'!DP_TSML067))","v":true}]
[null,"V_TSM0357a","Sect 5 Q6 TP05","Please check the number of responses you are reporting across the response scale (Q6 TP05 Very Satisfied to Very dissatisfied). These total to more than the number of total responses you reported for all survey methods in Q13 in section 1a",null,"Hard",null,{"$f":"OR('Sect 1a - Background'!DP_TSML004<>\"LCHO - section 5\",AND('Sect 1a - Background'!DP_TSML004=\"LCHO - section 5\",'Sect 5 - TSMs reported for LCHO'!DP_TSML312+'Sect 5 - TSMs reported for LCHO'!DP_TSML313+'Sect 5 - TSMs reported for LCHO'!DP_TSML314+'Sect 5 - TSMs reported for LCHO'!DP_TSML315+'Sect 5 - TSMs reported for LCHO'!DP_TSML316+'Sect 5 - TSMs reported for LCHO'!DP_TSML317<='Sect 1a - Background'!DP_TSML024))","v":true}]
[null,"V_TSM0358a","Sect 5 Q6 TP05","Please check the number of responses you are reporting across the response scale (Q6 TP05 Very Satisfied to Very dissatisfied). These total to more than the number of total responses you reported for all survey methods in Q13 in section 1b",null,"Hard",null,{"$f":"OR('Sect 1b - Background'!DP_TSML047<>\"LCHO - section 5\",AND('Sect 1b - Background'!DP_TSML047=\"LCHO - section 5\",'Sect 5 - TSMs reported for LCHO'!DP_TSML312+'Sect 5 - TSMs reported for LCHO'!DP_TSML313+'Sect 5 - TSMs reported for LCHO'!DP_TSML314+'Sect 5 - TSMs reported for LCHO'!DP_TSML315+'Sect 5 - TSMs reported for LCHO'!DP_TSML316+'Sect 5 - TSMs reported for LCHO'!DP_TSML317<='Sect 1b - Background'!DP_TSML067))","v":true}]
[null,"V_TSM0359","Sect 5 Q6 TP06","Please check the number of responses you are reporting across the response scale (Q6 TP06 Very Satisfied to Very dissatisfied). These total to more than the number of total responses you reported for all survey methods in Q13 in section 1a",null,"Hard",null,{"$f":"OR('Sect 1a - Background'!DP_TSML004<>\"LCHO - section 5\",AND('Sect 1a - Background'!DP_TSML004=\"LCHO - section 5\",'Sect 5 - TSMs reported for LCHO'!DP_TSML319+'Sect 5 - TSMs reported for LCHO'!DP_TSML320+'Sect 5 - TSMs reported for LCHO'!DP_TSML321+'Sect 5 - TSMs reported for LCHO'!DP_TSML322+'Sect 5 - TSMs reported for LCHO'!DP_TSML323+'Sect 5 - TSMs reported for LCHO'!DP_TSML324<='Sect 1a - Background'!DP_TSML024))","v":true}]
[null,"V_TSM0360","Sect 5 Q6 TP06","Please check the number of responses you are reporting across the response scale (Q6 TP06 Very Satisfied to Very dissatisfied). These total to more than the number of total responses you reported for all survey methods in Q13 in section 1b",null,"Hard",null,{"$f":"OR('Sect 1b - Background'!DP_TSML047<>\"LCHO - section 5\",AND('Sect 1b - Background'!DP_TSML047=\"LCHO - section 5\",'Sect 5 - TSMs reported for LCHO'!DP_TSML319+'Sect 5 - TSMs reported for LCHO'!DP_TSML320+'Sect 5 - TSMs reported for LCHO'!DP_TSML321+'Sect 5 - TSMs reported for LCHO'!DP_TSML322+'Sect 5 - TSMs reported for LCHO'!DP_TSML323+'Sect 5 - TSMs reported for LCHO'!DP_TSML324<='Sect 1b - Background'!DP_TSML067))","v":true}]
[null,"V_TSM0361","Sect 5 Q6 TP07","Please check the number of responses you are reporting across the response scale (Q6 TP07 Very Satisfied to Very dissatisfied). These total to more than the number of total responses you reported for all survey methods in Q13 in section 1a",null,"Hard",null,{"$f":"OR('Sect 1a - Background'!DP_TSML004<>\"LCHO - section 5\",AND('Sect 1a - Background'!DP_TSML004=\"LCHO - section 5\",'Sect 5 - TSMs reported for LCHO'!DP_TSML326+'Sect 5 - TSMs reported for LCHO'!DP_TSML327+'Sect 5 - TSMs reported for LCHO'!DP_TSML328+'Sect 5 - TSMs reported for LCHO'!DP_TSML329+'Sect 5 - TSMs reported for LCHO'!DP_TSML330+'Sect 5 - TSMs reported for LCHO'!DP_TSML331<='Sect 1a - Background'!DP_TSML024))","v":true}]
[null,"V_TSM0362","Sect 5 Q6 TP07","Please check the number of responses you are reporting across the response scale (Q6 TP07 Very Satisfied to Very dissatisfied). These total to more than the number of total responses you reported for all survey methods in Q13 in section 1b",null,"Hard",null,{"$f":"OR('Sect 1b - Background'!DP_TSML047<>\"LCHO - section 5\",AND('Sect 1b - Background'!DP_TSML047=\"LCHO - section 5\",'Sect 5 - TSMs reported for LCHO'!DP_TSML326+'Sect 5 - TSMs reported for LCHO'!DP_TSML327+'Sect 5 - TSMs reported for LCHO'!DP_TSML328+'Sect 5 - TSMs reported for LCHO'!DP_TSML329+'Sect 5 - TSMs reported for LCHO'!DP_TSML330+'Sect 5 - TSMs reported for LCHO'!DP_TSML331<='Sect 1b - Background'!DP_TSML067))","v":true}]
[null,"V_TSM0363","Sect 5 Q6 TP08","Please check the number of responses you are reporting across the response scale (Q6 TP08 Very Satisfied to Very dissatisfied). These total to more than the number of total responses you reported for all survey methods in Q13 in section 1a",null,"Hard",null,{"$f":"OR('Sect 1a - Background'!DP_TSML004<>\"LCHO - section 5\",AND('Sect 1a - Background'!DP_TSML004=\"LCHO - section 5\",'Sect 5 - TSMs reported for LCHO'!DP_TSML333+'Sect 5 - TSMs reported for LCHO'!DP_TSML334+'Sect 5 - TSMs reported for LCHO'!DP_TSML335+'Sect 5 - TSMs reported for LCHO'!DP_TSML336+'Sect 5 - TSMs reported for LCHO'!DP_TSML337+'Sect 5 - TSMs reported for LCHO'!DP_TSML338<='Sect 1a - Background'!DP_TSML024))","v":true}]
[null,"V_TSM0364","Sect 5 Q6 TP08","Please check the number of responses you are reporting across the response scale (Q6 TP08 Very Satisfied to Very dissatisfied). These total to more than the number of total responses you reported for all survey methods in Q13 in section 1b",null,"Hard",null,{"$f":"OR('Sect 1b - Background'!DP_TSML047<>\"LCHO - section 5\",AND('Sect 1b - Background'!DP_TSML047=\"LCHO - section 5\",'Sect 5 - TSMs reported for LCHO'!DP_TSML333+'Sect 5 - TSMs reported for LCHO'!DP_TSML334+'Sect 5 - TSMs reported for LCHO'!DP_TSML335+'Sect 5 - TSMs reported for LCHO'!DP_TSML336+'Sect 5 - TSMs reported for LCHO'!DP_TSML337+'Sect 5 - TSMs reported for LCHO'!DP_TSML338<='Sect 1b - Background'!DP_TSML067))","v":true}]
[null,"V_TSM0365","Sect 5 Q6 TP11","Please check the number of responses you are reporting across the response scale (Q6 TP11 Very Satisfied to Very dissatisfied). These total to more than the number of total responses you reported for all survey methods in Q13 in section 1a",null,"Hard",null,{"$f":"OR('Sect 1a - Background'!DP_TSML004<>\"LCHO - section 5\",AND('Sect 1a - Background'!DP_TSML004=\"LCHO - section 5\",'Sect 5 - TSMs reported for LCHO'!DP_TSML358+'Sect 5 - TSMs reported for LCHO'!DP_TSML359+'Sect 5 - TSMs reported for LCHO'!DP_TSML360+'Sect 5 - TSMs reported for LCHO'!DP_TSML361+'Sect 5 - TSMs reported for LCHO'!DP_TSML362+'Sect 5 - TSMs reported for LCHO'!DP_TSML363<='Sect 1a - Background'!DP_TSML024))","v":true}]
[null,"V_TSM0366","Sect 5 Q6 TP11","Please check the number of responses you are reporting across the response scale (Q6 TP11 Very Satisfied to Very dissatisfied). These total to more than the number of total responses you reported for all survey methods in Q13 in section 1b",null,"Hard",null,{"$f":"OR('Sect 1b - Background'!DP_TSML047<>\"LCHO - section 5\",AND('Sect 1b - Background'!DP_TSML047=\"LCHO - section 5\",'Sect 5 - TSMs reported for LCHO'!DP_TSML358+'Sect 5 - TSMs reported for LCHO'!DP_TSML359+'Sect 5 - TSMs reported for LCHO'!DP_TSML360+'Sect 5 - TSMs reported for LCHO'!DP_TSML361+'Sect 5 - TSMs reported for LCHO'!DP_TSML362+'Sect 5 - TSMs reported for LCHO'!DP_TSML363<='Sect 1b - Background'!DP_TSML067))","v":true}]
[null,"V_TSM0367","Sect 5 Q6 TP12","Please check the number of responses you are reporting across the response scale (Q6 TP12 Very Satisfied to Very dissatisfied). These total to more than the number of total responses you reported for all survey methods in Q13 in section 1a",null,"Hard",null,{"$f":"OR('Sect 1a - Background'!DP_TSML004<>\"LCHO - section 5\",AND('Sect 1a - Background'!DP_TSML004=\"LCHO - section 5\",'Sect 5 - TSMs reported for LCHO'!DP_TSML365+'Sect 5 - TSMs reported for LCHO'!DP_TSML366+'Sect 5 - TSMs reported for LCHO'!DP_TSML367+'Sect 5 - TSMs reported for LCHO'!DP_TSML368+'Sect 5 - TSMs reported for LCHO'!DP_TSML369+'Sect 5 - TSMs reported for LCHO'!DP_TSML370<='Sect 1a - Background'!DP_TSML024))","v":true}]
[null,"V_TSM0368","Sect 5 Q6 TP12","Please check the number of responses you are reporting across the response scale (Q6 TP12 Very Satisfied to Very dissatisfied). These total to more than the number of total responses you reported for all survey methods in Q13 in section 1b",null,"Hard",null,{"$f":"OR('Sect 1b - Background'!DP_TSML047<>\"LCHO - section 5\",AND('Sect 1b - Background'!DP_TSML047=\"LCHO - section 5\",'Sect 5 - TSMs reported for LCHO'!DP_TSML365+'Sect 5 - TSMs reported for LCHO'!DP_TSML366+'Sect 5 - TSMs reported for LCHO'!DP_TSML367+'Sect 5 - TSMs reported for LCHO'!DP_TSML368+'Sect 5 - TSMs reported for LCHO'!DP_TSML369+'Sect 5 - TSMs reported for LCHO'!DP_TSML370<='Sect 1b - Background'!DP_TSML067))","v":true}]
[null,"V_TSM0369","Sect 5 Q1 CH01 (1)","Please check that you have entered the numerator and denominator for this Q1 L1 correctly, and that the value for CH01 (1) as reported in section 2 column 2 is correct.",null,"Soft",null,{"$f":"AND('Sect 5 - TSMs reported for LCHO'!DP_TSML287>='Sect 2 - Published TSMs'!DP_TSML098-1,'Sect 5 - TSMs reported for LCHO'!DP_TSML287<='Sect 2 - Published TSMs'!DP_TSML098+1)","v":true}]
[null,"V_TSM0370","Sect 5 Q1 CH02 (1)","Please check that you have entered the numerator and denominator for this Q1 L2 correctly, and that the value for CH02 (stg1) as reported in section 2 column 2 is correct.",null,"Soft",null,{"$f":"AND('Sect 5 - TSMs reported for LCHO'!DP_TSML290>='Sect 2 - Published TSMs'!DP_TSML104-1,'Sect 5 - TSMs reported for LCHO'!DP_TSML290<='Sect 2 - Published TSMs'!DP_TSML104+1)","v":true}]
[null,"V_TSM0371","Sect 5 Q1 CH01 (1) denominator","Please check the denominator reported for CH01 (1).",null,"Soft",null,{"$f":"OR('Sect 5 - TSMs reported for LCHO'!DP_TSML289<=200000,ISBLANK('Sect 5 - TSMs reported for LCHO'!DP_TSML289)=TRUE)","v":true}]
[null,"V_TSM0372","Sect 5 Q1 CH02 (1) denominator","Please check the denominator reported for CH02 (1). The denominator should be the number of stage one complaints.",null,"Soft",null,{"$f":"OR('Sect 5 - TSMs reported for LCHO'!DP_TSML292='Sect 5 - TSMs reported for LCHO'!DP_TSML288,AND('Sect 5 - TSMs reported for LCHO'!DP_TSML292=0,'Sect 5 - TSMs reported for LCHO'!DP_TSML288=0))","v":true}]
[null,"V_TSM0404","Sect 5 Q3 CH01 (2)","Please check that you have entered the numerator and denominator for this Q3 L1 correctly, and that the value for CH01 (2) as reported in section 2 column 2 is correct.",null,"Soft",null,{"$f":"AND('Sect 5 - TSMs reported for LCHO'!DP_TSML295>='Sect 2 - Published TSMs'!DP_TSML101-1,'Sect 5 - TSMs reported for LCHO'!DP_TSML295<='Sect 2 - Published TSMs'!DP_TSML101+1)","v":true}]
[null,"V_TSM0405","Sect 5 Q3 CH02 (2)","Please check that you have entered the numerator and denominator for this Q3 L2 correctly, and that the value for CH02 (2) as reported in section 2 column 2 is correct.",null,"Soft",null,{"$f":"AND('Sect 5 - TSMs reported for LCHO'!DP_TSML298>='Sect 2 - Published TSMs'!DP_TSML107-1,'Sect 5 - TSMs reported for LCHO'!DP_TSML298<='Sect 2 - Published TSMs'!DP_TSML107+1)","v":true}]
[null,"V_TSM0373","Sect 5 Q3 CH01 (2) denominator","Please check the denominator reported for CH01 (2). The denominator should be the number of dwellings owned.",null,"Soft",null,{"$f":"OR('Sect 5 - TSMs reported for LCHO'!DP_TSML297<=200000,ISBLANK('Sect 5 - TSMs reported for LCHO'!DP_TSML297)=TRUE)","v":true}]
[null,"V_TSM0374","Sect 5 Q3 CH02 (2) denominator","Please check the denominator reported for CH02 (2). The denominator should be the number of stage two complaints.",null,"Soft",null,{"$f":"OR('Sect 5 - TSMs reported for LCHO'!DP_TSML300='Sect 5 - TSMs reported for LCHO'!DP_TSML296,AND('Sect 5 - TSMs reported for LCHO'!DP_TSML300=0,'Sect 5 - TSMs reported for LCHO'!DP_TSML296=0))","v":true}]
[null,"V_TSM0375","Sect 5 Q6 TP01","Please check that you have entered the correct values in Section 5 Q6 for TP01 and that the value for TP01 as reported in section 2 Q4e column 2 is also correct.",null,"Soft",null,{"$f":"AND('Sect 5 - TSMs reported for LCHO'!DP_TSML311>='Sect 2 - Published TSMs'!DP_TSML110-1,'Sect 5 - TSMs reported for LCHO'!DP_TSML311<='Sect 2 - Published TSMs'!DP_TSML110+1)","v":true}]
[null,"V_TSM0376","Sect 5 Q6 TP05","Please check that you have entered the correct values in Section 5 Q6 for TP05 and that the value for TP05 as reported in section 2 Q4e column 2 is also correct.",null,"Soft",null,{"$f":"AND('Sect 5 - TSMs reported for LCHO'!DP_TSML318>='Sect 2 - Published TSMs'!DP_TSML119-1,'Sect 5 - TSMs reported for LCHO'!DP_TSML318<='Sect 2 - Published TSMs'!DP_TSML119+1)","v":true}]
[null,"V_TSM0377","Sect 5 Q6 TP06","Please check that you have entered the correct values in Section 5 Q6 for TP06 and that the value for TP06 as reported in section 2 Q4e column 2 is also correct.",null,"Soft",null,{"$f":"AND('Sect 5 - TSMs reported for LCHO'!DP_TSML325>='Sect 2 - Published TSMs'!DP_TSML122-1,'Sect 5 - TSMs reported for LCHO'!DP_TSML325<='Sect 2 - Published TSMs'!DP_TSML122+1)","v":true}]
[null,"V_TSM0378","Sect 5 Q6 TP07","Please check that you have entered the correct values in Section 5 Q6 for TP07 and that the value for TP07 as reported in section 2 Q4e column 2 is also correct.",null,"Soft",null,{"$f":"AND('Sect 5 - TSMs reported for LCHO'!DP_TSML332>='Sect 2 - Published TSMs'!DP_TSML125-1,'Sect 5 - TSMs reported for LCHO'!DP_TSML332<='Sect 2 - Published TSMs'!DP_TSML125+1)","v":true}]
[null,"V_TSM0379","Sect 5 Q6 TP08","Please check that you have entered the correct values in Section 5 Q6 for TP08 and that the value for TP08 as reported in section 2 Q4e column 2 is also correct.",null,"Soft",null,{"$f":"AND('Sect 5 - TSMs reported for LCHO'!DP_TSML339>='Sect 2 - Published TSMs'!DP_TSML128-1,'Sect 5 - TSMs reported for LCHO'!DP_TSML339<='Sect 2 - Published TSMs'!DP_TSML128+1)","v":true}]
[null,"V_TSM0380","Sect 5 Q6 TP09","Please check that you have entered the correct values in Section 5 Q6 for TP09 and that the value for TP09 as reported in section 2 Q4e column 2 is also correct.",null,"Soft",null,{"$f":"AND('Sect 5 - TSMs reported for LCHO'!DP_TSML348>='Sect 2 - Published TSMs'!DP_TSML131-1,'Sect 5 - TSMs reported for LCHO'!DP_TSML348<='Sect 2 - Published TSMs'!DP_TSML131+1)","v":true}]
[null,"V_TSM0381","Sect 5 Q6 TP10","Please check that you have entered the correct values in Section 5 Q6 for TP10 and that the value for TP10 as reported in section 2 Q4e column 2 is also correct.",null,"Soft",null,{"$f":"AND('Sect 5 - TSMs reported for LCHO'!DP_TSML357>='Sect 2 - Published TSMs'!DP_TSML134-1,'Sect 5 - TSMs reported for LCHO'!DP_TSML357<='Sect 2 - Published TSMs'!DP_TSML134+1)","v":true}]
[null,"V_TSM0382","Sect 5 Q6 TP11","Please check that you have entered the correct values in Section 5 Q6 for TP11 and that the value for TP11 as reported in section 2 Q4e column 2 is also correct.",null,"Soft",null,{"$f":"AND('Sect 5 - TSMs reported for LCHO'!DP_TSML364>='Sect 2 - Published TSMs'!DP_TSML137-1,'Sect 5 - TSMs reported for LCHO'!DP_TSML364<='Sect 2 - Published TSMs'!DP_TSML137+1)","v":true}]
[null,"V_TSM0383","Sect 5 Q6 TP12","Please check that you have entered the correct values in Section 5 Q6 for TP12 and that the value for TP12 as reported in section 2 Q4e column 2 is also correct.",null,"Soft",null,{"$f":"AND('Sect 5 - TSMs reported for LCHO'!DP_TSML371>='Sect 2 - Published TSMs'!DP_TSML140-1,'Sect 5 - TSMs reported for LCHO'!DP_TSML371<='Sect 2 - Published TSMs'!DP_TSML140+1)","v":true}]
[null,"V_TSM0384","Sect 6 Q1 CH01(1)","Please check that you have entered the numerator and denominator for this Q1 L1 calculation correctly.",null,"Hard",null,{"$f":"'Sect 6 - TSMs reported Combined'!DP_TSML373<='Sect 6 - TSMs reported Combined'!DP_TSML374","v":true}]
[null,"V_TSM0385","Sect 6 Q1 CH02(1)","Please check that you have entered the numerator and denominator for this Q1 L2 correctly.",null,"Hard",null,{"$f":"'Sect 6 - TSMs reported Combined'!DP_TSML376<='Sect 6 - TSMs reported Combined'!DP_TSML377","v":true}]
[null,"V_TSM0386","Sect 6 Q2a","Q2a is an optional question. We note that you have entered '0'. If you do not want to report the number of stage one complaints resopnded to within the timecales without the use of extensions please leave this field blank. However, if '0' is the number of stage one complaints reponded to then you can ignore this validation. ",null,"Soft",null,{"$f":"OR(AND(ISBLANK('Sect 6 - TSMs reported Combined'!DP_TSML378)=FALSE,'Sect 6 - TSMs reported Combined'!DP_TSML378<>0),ISBLANK('Sect 6 - TSMs reported Combined'!DP_TSML378)=TRUE)","v":true}]
[null,"V_TSM0387","Sect 6 Q2b","Q2a is an optional question. We note that you have entered '0'. If you do not want to report the number of stage one complaints resopnded to within the timecales with the use of extensions please leave this field blank. However, if '0' is the number of stage one complaints reponded to then you can ignore this validation. ",null,"Soft",null,{"$f":"OR(AND(ISBLANK('Sect 6 - TSMs reported Combined'!DP_TSML379)=FALSE,'Sect 6 - TSMs reported Combined'!DP_TSML379<>0),ISBLANK('Sect 6 - TSMs reported Combined'!DP_TSML379)=TRUE)","v":true}]
[null,"V_TSM0388","Sect 6 Q3 CH01 (2)","Please check that you have entered the numerator and denominator for this Q3 L1 correctly.",null,"Hard",null,{"$f":"'Sect 6 - TSMs reported Combined'!DP_TSML381<='Sect 6 - TSMs reported Combined'!DP_TSML382","v":true}]
[null,"V_TSM0389","Sect 6 Q3 CH02 (2)","Please check that you have entered the numerator and denominator for this Q3 L2 correctly.",null,"Hard",null,{"$f":"'Sect 6 - TSMs reported Combined'!DP_TSML384<='Sect 6 - TSMs reported Combined'!DP_TSML385","v":true}]
[null,"V_TSM0390","Sect 6 Q4a","Q4a is an optional question. We note that you have entered '0'. If you do not want to report the number of stage two complaints resopnded to within the timecales without the use of extensions please leave this field blank. However, if '0' is the number of stage two complaints reponded to then you can ignore this validation. ",null,"Soft",null,{"$f":"OR(AND(ISBLANK('Sect 6 - TSMs reported Combined'!DP_TSML386)=FALSE,'Sect 6 - TSMs reported Combined'!DP_TSML386<>0),ISBLANK('Sect 6 - TSMs reported Combined'!DP_TSML386)=TRUE)","v":true}]
[null,"V_TSM0391","Sect 6 Q4b","Q4b is an optional question. We note that you have entered '0'. If you do not want to report the number of stage one complaints resopnded to within the timecales with the use of extensions please leave this field blank. However, if '0' is the number of stage two complaints reponded to then you can ignore this validation. ",null,"Soft",null,{"$f":"OR(AND(ISBLANK('Sect 6 - TSMs reported Combined'!DP_TSML387)=FALSE,'Sect 6 - TSMs reported Combined'!DP_TSML387<>0),ISBLANK('Sect 6 - TSMs reported Combined'!DP_TSML387)=TRUE)","v":true}]
[null,"V_TSM0392","Sect 6 Q5b","If your response to Q5a is \"No\", please provide details of the maximum timescales used in Q5b, otherwise leave Q5b blank.  If you need to bring something to the attention of RSH then please upload a supporting document.",null,"Soft",null,{"$f":"OR(AND('Sect 6 - TSMs reported Combined'!DP_TSML388=\"No\",ISBLANK('Sect 6 - TSMs reported Combined'!DP_TSML389)=FALSE),AND('Sect 6 - TSMs reported Combined'!DP_TSML388=\"Yes\",ISBLANK('Sect 6 - TSMs reported Combined'!DP_TSML389)=TRUE),AND((ISBLANK('Sect 6 - TSMs reported Combined'!DP_TSML388)=TRUE),ISBLANK('Sect 6 - TSMs reported Combined'!DP_TSML389)=TRUE))","v":true}]
[null,"V_TSM0406","Sect 6 Q1 CH01 (1)","Please check that you have entered the numerator and denominator for this Q1 L1 correctly, and that the value for CH01 (1) as reported in section 2 column 3 is correct.",null,"Soft",null,{"$f":"AND('Sect 6 - TSMs reported Combined'!DP_TSML372>='Sect 2 - Published TSMs'!DP_TSML099-1,'Sect 6 - TSMs reported Combined'!DP_TSML372<='Sect 2 - Published TSMs'!DP_TSML099+1)","v":false}]
[null,"V_TSM0407","Sect 6 Q1 CH02 (1)","Please check that you have entered the numerator and denominator for this Q1 L2 correctly, and that the value for CH02 (stg1) as reported in section 2 column 3 is correct.",null,"Soft",null,{"$f":"AND('Sect 6 - TSMs reported Combined'!DP_TSML375>='Sect 2 - Published TSMs'!DP_TSML105-1,'Sect 6 - TSMs reported Combined'!DP_TSML375<='Sect 2 - Published TSMs'!DP_TSML105+1)","v":false}]
[null,"V_TSM0408","Sect 6 Q1 CH01 (1) denominator","Please check the denominator reported for CH01 (1).",null,"Soft",null,{"$f":"OR('Sect 6 - TSMs reported Combined'!DP_TSML374<=200000,ISBLANK('Sect 6 - TSMs reported Combined'!DP_TSML374)=TRUE)","v":true}]
[null,"V_TSM0409","Sect 6 Q1 CH02 (1) denominator","Please check the denominator reported for CH02 (1). The denominator should be the number of stage one complaints.",null,"Soft",null,{"$f":"OR('Sect 6 - TSMs reported Combined'!DP_TSML377='Sect 6 - TSMs reported Combined'!DP_TSML373,AND('Sect 6 - TSMs reported Combined'!DP_TSML377=0,'Sect 6 - TSMs reported Combined'!DP_TSML373=0))","v":true}]
[null,"V_TSM0410","Sect 6 Q3 CH01 (2)","Please check that you have entered the numerator and denominator for this Q3 L1 correctly, and that the value for CH01 (2) as reported in section 2 column 3 is correct.",null,"Soft",null,{"$f":"AND('Sect 6 - TSMs reported Combined'!DP_TSML380>='Sect 2 - Published TSMs'!DP_TSML102-1,'Sect 6 - TSMs reported Combined'!DP_TSML380<='Sect 2 - Published TSMs'!DP_TSML102+1)","v":false}]
[null,"V_TSM0411","Sect 6 Q1 CH02 (2)","Please check that you have entered the numerator and denominator for this Q3 L2 correctly, and that the value for CH02 (stg2) as reported in section 2 column 3 is correct.",null,"Soft",null,{"$f":"AND('Sect 6 - TSMs reported Combined'!DP_TSML383>='Sect 2 - Published TSMs'!DP_TSML108-1,'Sect 6 - TSMs reported Combined'!DP_TSML383<='Sect 2 - Published TSMs'!DP_TSML108+1)","v":false}]
[null,"V_TSM0412","Sect 6 Q3 CH01 (2) denominator","Please check the denominator reported for CH01 (2). The denominator should be the number of dwellings owned.",null,"Soft",null,{"$f":"OR('Sect 6 - TSMs reported Combined'!DP_TSML382<=200000,ISBLANK('Sect 6 - TSMs reported Combined'!DP_TSML382)=TRUE)","v":true}]
[null,"V_TSM0413","Sect 6 Q3 CH02 (2) denominator","Please check the denominator reported for CH02 (2). The denominator should be the number of stage two complaints.",null,"Soft",null,{"$f":"OR('Sect 6 - TSMs reported Combined'!DP_TSML385='Sect 6 - TSMs reported Combined'!DP_TSML381,AND('Sect 6 - TSMs reported Combined'!DP_TSML385=0,'Sect 6 - TSMs reported Combined'!DP_TSML381=0))","v":true}]
[null,"V_TSM0414","Sect 6 Q6 TP01","Please check that you have entered the correct values in Section 6 Q6 for TP01 and that the value for TP01 as reported in section 2 Q4e column 3 is also correct.",null,"Soft",null,{"$f":"AND('Sect 6 - TSMs reported Combined'!DP_TSML396>='Sect 2 - Published TSMs'!DP_TSML111-1,'Sect 6 - TSMs reported Combined'!DP_TSML396<='Sect 2 - Published TSMs'!DP_TSML111+1)","v":false}]
[null,"V_TSM0415","Sect 6 Q6 TP02","Please check that you have entered the correct values in Section 6 Q6 for TP02 and that the value for TP02 as reported in section 2 Q4e column 3 is also correct.",null,"Soft",null,{"$f":"AND('Sect 6 - TSMs reported Combined'!DP_TSML405>='Sect 2 - Published TSMs'!DP_TSML113-1,'Sect 6 - TSMs reported Combined'!DP_TSML405<='Sect 2 - Published TSMs'!DP_TSML113+1)","v":false}]
[null,"V_TSM0416","Sect 6 Q6 TP03","Please check that you have entered the correct values in Section 6 Q6 for TP03 and that the value for TP03 as reported in section 2 Q4e column 3 is also correct.",null,"Soft",null,{"$f":"AND('Sect 6 - TSMs reported Combined'!DP_TSML414>='Sect 2 - Published TSMs'!DP_TSML115-1,'Sect 6 - TSMs reported Combined'!DP_TSML414<='Sect 2 - Published TSMs'!DP_TSML115+1)","v":false}]
[null,"V_TSM0417","Sect 6 Q6 TP04","Please check that you have entered the correct values in Section 6 Q6 for TP04 and that the value for TP04 as reported in section 2 Q4e column 3 is also correct.",null,"Soft",null,{"$f":"AND('Sect 6 - TSMs reported Combined'!DP_TSML421>='Sect 2 - Published TSMs'!DP_TSML117-1,'Sect 6 - TSMs reported Combined'!DP_TSML421<='Sect 2 - Published TSMs'!DP_TSML117+1)","v":false}]
[null,"V_TSM0418","Sect 6 Q6 TP05","Please check that you have entered the correct values in Section 6 Q6 for TP05 and that the value for TP05 as reported in section 2 Q4e column 3 is also correct.",null,"Soft",null,{"$f":"AND('Sect 6 - TSMs reported Combined'!DP_TSML428>='Sect 2 - Published TSMs'!DP_TSML120-1,'Sect 6 - TSMs reported Combined'!DP_TSML428<='Sect 2 - Published TSMs'!DP_TSML120+1)","v":false}]
[null,"V_TSM0419","Sect 6 Q6 TP06","Please check that you have entered the correct values in Section 6 Q6 for TP06 and that the value for TP06 as reported in section 2 Q4e column 3 is also correct.",null,"Soft",null,{"$f":"AND('Sect 6 - TSMs reported Combined'!DP_TSML435>='Sect 2 - Published TSMs'!DP_TSML123-1,'Sect 6 - TSMs reported Combined'!DP_TSML435<='Sect 2 - Published TSMs'!DP_TSML123+1)","v":false}]
[null,"V_TSM0420","Sect 6 Q6 TP07","Please check that you have entered the correct values in Section 6 Q6 for TP07 and that the value for TP07 as reported in section 2 Q4e column 3 is also correct.",null,"Soft",null,{"$f":"AND('Sect 6 - TSMs reported Combined'!DP_TSML442>='Sect 2 - Published TSMs'!DP_TSML126-1,'Sect 6 - TSMs reported Combined'!DP_TSML442<='Sect 2 - Published TSMs'!DP_TSML126+1)","v":false}]
[null,"V_TSM0421","Sect 6 Q6 TP08","Please check that you have entered the correct values in Section 6 Q6 for TP08 and that the value for TP08 as reported in section 2 Q4e column 3 is also correct.",null,"Soft",null,{"$f":"AND('Sect 6 - TSMs reported Combined'!DP_TSML449>='Sect 2 - Published TSMs'!DP_TSML129-1,'Sect 6 - TSMs reported Combined'!DP_TSML449<='Sect 2 - Published TSMs'!DP_TSML129+1)","v":false}]
[null,"V_TSM0422","Sect 6 Q6 TP09","Please check that you have entered the correct values in Section 6 Q6 for TP09 and that the value for TP09 as reported in section 2 Q4e column 3 is also correct.",null,"Soft",null,{"$f":"AND('Sect 6 - TSMs reported Combined'!DP_TSML458>='Sect 2 - Published TSMs'!DP_TSML132-1,'Sect 6 - TSMs reported Combined'!DP_TSML458<='Sect 2 - Published TSMs'!DP_TSML132+1)","v":false}]
[null,"V_TSM0423","Sect 6 Q6 TP10","Please check that you have entered the correct values in Section 6 Q6 for TP10 and that the value for TP10 as reported in section 2 Q4e column 3 is also correct.",null,"Soft",null,{"$f":"AND('Sect 6 - TSMs reported Combined'!DP_TSML467>='Sect 2 - Published TSMs'!DP_TSML135-1,'Sect 6 - TSMs reported Combined'!DP_TSML467<='Sect 2 - Published TSMs'!DP_TSML135+1)","v":false}]
[null,"V_TSM0424","Sect 6 Q6 TP11","Please check that you have entered the correct values in Section 6 Q6 for TP11 and that the value for TP11 as reported in section 2 Q4e column 3 is also correct.",null,"Soft",null,{"$f":"AND('Sect 6 - TSMs reported Combined'!DP_TSML474>='Sect 2 - Published TSMs'!DP_TSML138-1,'Sect 6 - TSMs reported Combined'!DP_TSML474<='Sect 2 - Published TSMs'!DP_TSML138+1)","v":false}]
[null,"V_TSM0425","Sect 6 Q6 TP12","Please check that you have entered the correct values in Section 6 Q6 for TP12 and that the value for TP12 as reported in section 2 Q4e column 3 is also correct.",null,"Soft",null,{"$f":"AND('Sect 6 - TSMs reported Combined'!DP_TSML481>='Sect 2 - Published TSMs'!DP_TSML141-1,'Sect 6 - TSMs reported Combined'!DP_TSML481<='Sect 2 - Published TSMs'!DP_TSML141+1)","v":false}]
[null,"V_TSM0426","Sect 4 Q6 TP02","Please check the number of responses you are reporting across the response scale for TP02. We would expect these to total the number of respondents reporting 'Yes' to the filter question (L1).",null,"Hard",null,{"$f":"'Sect 4 - TSMs reported for LCRA'!DP_TSML204+'Sect 4 - TSMs reported for LCRA'!DP_TSML205+'Sect 4 - TSMs reported for LCRA'!DP_TSML206+'Sect 4 - TSMs reported for LCRA'!DP_TSML207+'Sect 4 - TSMs reported for LCRA'!DP_TSML208<='Sect 4 - TSMs reported for LCRA'!DP_TSML202","v":true}]
[null,"V_TSM0427","Sect 4 Q6 TP03","Please check the number of responses you are reporting across the response scale for TP03. We would expect these to total the number of respondents reporting 'Yes' to the filter question (L1).",null,"Hard",null,{"$f":"'Sect 4 - TSMs reported for LCRA'!DP_TSML213+'Sect 4 - TSMs reported for LCRA'!DP_TSML214+'Sect 4 - TSMs reported for LCRA'!DP_TSML215+'Sect 4 - TSMs reported for LCRA'!DP_TSML216+'Sect 4 - TSMs reported for LCRA'!DP_TSML217<='Sect 4 - TSMs reported for LCRA'!DP_TSML211","v":true}]
[null,"V_TSM0428","Sect 4 Q6 TP09","Please check the number of responses you are reporting across the response scale for TP09. We would expect these to total the number of respondents reporting 'Yes' to the filter question (L1).",null,"Hard",null,{"$f":"'Sect 4 - TSMs reported for LCRA'!DP_TSML257+'Sect 4 - TSMs reported for LCRA'!DP_TSML258+'Sect 4 - TSMs reported for LCRA'!DP_TSML259+'Sect 4 - TSMs reported for LCRA'!DP_TSML260+'Sect 4 - TSMs reported for LCRA'!DP_TSML261<='Sect 4 - TSMs reported for LCRA'!DP_TSML255","v":true}]
[null,"V_TSM0429","Sect 4 Q6 TP10","Please check the number of responses you are reporting across the response scale for TP10. We would expect these to total the number of respondents reporting 'Yes' to the filter question (L1).",null,"Hard",null,{"$f":"'Sect 4 - TSMs reported for LCRA'!DP_TSML266+'Sect 4 - TSMs reported for LCRA'!DP_TSML267+'Sect 4 - TSMs reported for LCRA'!DP_TSML268+'Sect 4 - TSMs reported for LCRA'!DP_TSML269+'Sect 4 - TSMs reported for LCRA'!DP_TSML270<='Sect 4 - TSMs reported for LCRA'!DP_TSML264","v":true}]
[null,"V_TSM0430","Sect 4 Q6 TP01 and Sect 1a Q13","Please check the number of responses you are reporting across the response scale (Q6 TP01 Very Satisfied to Very dissatisfied). These total to more than the number of total responses you reported for all survey methods in Q13 in section 1a",null,"Hard",null,{"$f":"OR('Sect 1a - Background'!DP_TSML004<>\"LCRA - section 4\",AND('Sect 1a - Background'!DP_TSML004=\"LCRA - section 4\",'Sect 4 - TSMs reported for LCRA'!DP_TSML195+'Sect 4 - TSMs reported for LCRA'!DP_TSML196+'Sect 4 - TSMs reported for LCRA'!DP_TSML197+'Sect 4 - TSMs reported for LCRA'!DP_TSML198+'Sect 4 - TSMs reported for LCRA'!DP_TSML199<='Sect 1a - Background'!DP_TSML024))","v":true}]
[null,"V_TSM0431","Sect 4 Q6 TP04 and Sect 1a Q13","Please check the number of responses you are reporting across the response scale (Q6 TP04 Very Satisfied to Very dissatisfied). These total to more than the number of total responses you reported for all survey methods in Q13 in section 1a",null,"Hard",null,{"$f":"OR('Sect 1a - Background'!DP_TSML004<>\"LCRA - section 4\",AND('Sect 1a - Background'!DP_TSML004=\"LCRA - section 4\",'Sect 4 - TSMs reported for LCRA'!DP_TSML220+'Sect 4 - TSMs reported for LCRA'!DP_TSML221+'Sect 4 - TSMs reported for LCRA'!DP_TSML222+'Sect 4 - TSMs reported for LCRA'!DP_TSML223+'Sect 4 - TSMs reported for LCRA'!DP_TSML224<='Sect 1a - Background'!DP_TSML024))","v":true}]
[null,"V_TSM0432","Sect 4 Q6 TP05 and Sect 1a Q13","Please check the number of responses you are reporting across the response scale (Q6 TP05 Very Satisfied to Very dissatisfied). These total to more than the number of total responses you reported for all survey methods in Q13 in section 1a",null,"Hard",null,{"$f":"OR('Sect 1a - Background'!DP_TSML004<>\"LCRA - section 4\",AND('Sect 1a - Background'!DP_TSML004=\"LCRA - section 4\",'Sect 4 - TSMs reported for LCRA'!DP_TSML227+'Sect 4 - TSMs reported for LCRA'!DP_TSML228+'Sect 4 - TSMs reported for LCRA'!DP_TSML229+'Sect 4 - TSMs reported for LCRA'!DP_TSML230+'Sect 4 - TSMs reported for LCRA'!DP_TSML231+'Sect 4 - TSMs reported for LCRA'!DP_TSML232<='Sect 1a - Background'!DP_TSML024))","v":true}]
[null,"V_TSM0433","Sect 4 Q6 TP06 and Sect 1a Q13","Please check the number of responses you are reporting across the response scale (Q6 TP06 Very Satisfied to Very dissatisfied). These total to more than the number of total responses you reported for all survey methods in Q13 in section 1a",null,"Hard",null,{"$f":"OR('Sect 1a - Background'!DP_TSML004<>\"LCRA - section 4\",AND('Sect 1a - Background'!DP_TSML004=\"LCRA - section 4\",'Sect 4 - TSMs reported for LCRA'!DP_TSML234+'Sect 4 - TSMs reported for LCRA'!DP_TSML235+'Sect 4 - TSMs reported for LCRA'!DP_TSML236+'Sect 4 - TSMs reported for LCRA'!DP_TSML237+'Sect 4 - TSMs reported for LCRA'!DP_TSML238+'Sect 4 - TSMs reported for LCRA'!DP_TSML239<='Sect 1a - Background'!DP_TSML024))","v":true}]
[null,"V_TSM0434","Sect 4 Q6 TP07 and Sect 1a Q13","Please check the number of responses you are reporting across the response scale (Q6 TP07 Very Satisfied to Very dissatisfied). These total to more than the number of total responses you reported for all survey methods in Q13 in section 1a",null,"Hard",null,{"$f":"OR('Sect 1a - Background'!DP_TSML004<>\"LCRA - section 4\",AND('Sect 1a - Background'!DP_TSML004=\"LCRA - section 4\",'Sect 4 - TSMs reported for LCRA'!DP_TSML241+'Sect 4 - TSMs reported for LCRA'!DP_TSML242+'Sect 4 - TSMs reported for LCRA'!DP_TSML243+'Sect 4 - TSMs reported for LCRA'!DP_TSML244+'Sect 4 - TSMs reported for LCRA'!DP_TSML245+'Sect 4 - TSMs reported for LCRA'!DP_TSML246<='Sect 1a - Background'!DP_TSML024))","v":true}]
[null,"V_TSM0435","Sect 4 Q6 TP08 and Sect 1a Q13","Please check the number of responses you are reporting across the response scale (Q6 TP08 Very Satisfied to Very dissatisfied). These total to more than the number of total responses you reported for all survey methods in Q13 in section 1a",null,"Hard",null,{"$f":"OR('Sect 1a - Background'!DP_TSML004<>\"LCRA - section 4\",AND('Sect 1a - Background'!DP_TSML004=\"LCRA - section 4\",'Sect 4 - TSMs reported for LCRA'!DP_TSML248+'Sect 4 - TSMs reported for LCRA'!DP_TSML249+'Sect 4 - TSMs reported for LCRA'!DP_TSML250+'Sect 4 - TSMs reported for LCRA'!DP_TSML251+'Sect 4 - TSMs reported for LCRA'!DP_TSML252+'Sect 4 - TSMs reported for LCRA'!DP_TSML253<='Sect 1a - Background'!DP_TSML024))","v":true}]
[null,"V_TSM0436","Sect 4 Q6 TP11 and Sect 1a Q13","Please check the number of responses you are reporting across the response scale (Q6 TP11 Very Satisfied to Very dissatisfied). These total to more than the number of total responses you reported for all survey methods in Q13 in section 1a",null,"Hard",null,{"$f":"OR('Sect 1a - Background'!DP_TSML004<>\"LCRA - section 4\",AND('Sect 1a - Background'!DP_TSML004=\"LCRA - section 4\",'Sect 4 - TSMs reported for LCRA'!DP_TSML273+'Sect 4 - TSMs reported for LCRA'!DP_TSML274+'Sect 4 - TSMs reported for LCRA'!DP_TSML275+'Sect 4 - TSMs reported for LCRA'!DP_TSML276+'Sect 4 - TSMs reported for LCRA'!DP_TSML277+'Sect 4 - TSMs reported for LCRA'!DP_TSML278<='Sect 1a - Background'!DP_TSML024))","v":true}]
[null,"V_TSM0437","Sect 4 Q6 TP12 and Sect 1a Q13","Please check the number of responses you are reporting across the response scale (Q6 TP12 Very Satisfied to Very dissatisfied). These total to more than the number of total responses you reported for all survey methods in Q13 in section 1a",null,"Hard",null,{"$f":"OR('Sect 1a - Background'!DP_TSML004<>\"LCRA - section 4\",AND('Sect 1a - Background'!DP_TSML004=\"LCRA - section 4\",'Sect 4 - TSMs reported for LCRA'!DP_TSML280+'Sect 4 - TSMs reported for LCRA'!DP_TSML281+'Sect 4 - TSMs reported for LCRA'!DP_TSML282+'Sect 4 - TSMs reported for LCRA'!DP_TSML283+'Sect 4 - TSMs reported for LCRA'!DP_TSML284+'Sect 4 - TSMs reported for LCRA'!DP_TSML285<='Sect 1a - Background'!DP_TSML024))","v":true}]
[null,"V_TSM0438","Sect 4 Q6 TP01 and Sect 1b Q13","Please check the number of responses you are reporting across the response scale (Q6 TP01 Very Satisfied to Very dissatisfied). These total to more than the number of total responses you reported for all survey methods in Q13 in section 1b",null,"Hard",null,{"$f":"OR('Sect 1b - Background'!DP_TSML047<>\"LCRA - section 4\",'Sect 1b - Background'!DP_TSML047=\"LCHO - section 5\",AND('Sect 1b - Background'!DP_TSML047=\"LCRA - section 4\",'Sect 4 - TSMs reported for LCRA'!DP_TSML195+'Sect 4 - TSMs reported for LCRA'!DP_TSML196+'Sect 4 - TSMs reported for LCRA'!DP_TSML197+'Sect 4 - TSMs reported for LCRA'!DP_TSML198+'Sect 4 - TSMs reported for LCRA'!DP_TSML199<='Sect 1b - Background'!DP_TSML067))","v":true}]
[null,"V_TSM0439","Sect 4 Q6 TP04 and Sect 1b Q13","Please check the number of responses you are reporting across the response scale (Q6 TP04 Very Satisfied to Very dissatisfied). These total to more than the number of total responses you reported for all survey methods in Q13 in section 1b",null,"Hard",null,{"$f":"OR('Sect 1b - Background'!DP_TSML047<>\"LCRA - section 4\",'Sect 1b - Background'!DP_TSML047=\"LCHO - section 5\",AND('Sect 1b - Background'!DP_TSML047=\"LCRA - section 4\",'Sect 4 - TSMs reported for LCRA'!DP_TSML220+'Sect 4 - TSMs reported for LCRA'!DP_TSML221+'Sect 4 - TSMs reported for LCRA'!DP_TSML222+'Sect 4 - TSMs reported for LCRA'!DP_TSML223+'Sect 4 - TSMs reported for LCRA'!DP_TSML224<='Sect 1b - Background'!DP_TSML067))","v":true}]
[null,"V_TSM0440","Sect 4 Q6 TP05 and Sect 1b Q13","Please check the number of responses you are reporting across the response scale (Q6 TP05 Very Satisfied to Very dissatisfied). These total to more than the number of total responses you reported for all survey methods in Q13 in section 1b",null,"Hard",null,{"$f":"OR('Sect 1b - Background'!DP_TSML047<>\"LCRA - section 4\",'Sect 1b - Background'!DP_TSML047=\"LCHO - section 5\",AND('Sect 1b - Background'!DP_TSML047=\"LCRA - section 4\",'Sect 4 - TSMs reported for LCRA'!DP_TSML227+'Sect 4 - TSMs reported for LCRA'!DP_TSML228+'Sect 4 - TSMs reported for LCRA'!DP_TSML229+'Sect 4 - TSMs reported for LCRA'!DP_TSML230+'Sect 4 - TSMs reported for LCRA'!DP_TSML231+'Sect 4 - TSMs reported for LCRA'!DP_TSML232<='Sect 1b - Background'!DP_TSML067))","v":true}]
[null,"V_TSM0441","Sect 4 Q6 TP06 and Sect 1b Q13","Please check the number of responses you are reporting across the response scale (Q6 TP06 Very Satisfied to Very dissatisfied). These total to more than the number of total responses you reported for all survey methods in Q13 in section 1b",null,"Hard",null,{"$f":"OR('Sect 1b - Background'!DP_TSML047<>\"LCRA - section 4\",'Sect 1b - Background'!DP_TSML047=\"LCHO - section 5\",AND('Sect 1b - Background'!DP_TSML047=\"LCRA - section 4\",'Sect 4 - TSMs reported for LCRA'!DP_TSML234+'Sect 4 - TSMs reported for LCRA'!DP_TSML235+'Sect 4 - TSMs reported for LCRA'!DP_TSML236+'Sect 4 - TSMs reported for LCRA'!DP_TSML237+'Sect 4 - TSMs reported for LCRA'!DP_TSML238+'Sect 4 - TSMs reported for LCRA'!DP_TSML239<='Sect 1b - Background'!DP_TSML067))","v":true}]
[null,"V_TSM0442","Sect 4 Q6 TP07 and Sect 1b Q13","Please check the number of responses you are reporting across the response scale (Q6 TP07 Very Satisfied to Very dissatisfied). These total to more than the number of total responses you reported for all survey methods in Q13 in section 1b",null,"Hard",null,{"$f":"OR('Sect 1b - Background'!DP_TSML047<>\"LCRA - section 4\",'Sect 1b - Background'!DP_TSML047=\"LCHO - section 5\",AND('Sect 1b - Background'!DP_TSML047=\"LCRA - section 4\",'Sect 4 - TSMs reported for LCRA'!DP_TSML241+'Sect 4 - TSMs reported for LCRA'!DP_TSML242+'Sect 4 - TSMs reported for LCRA'!DP_TSML243+'Sect 4 - TSMs reported for LCRA'!DP_TSML244+'Sect 4 - TSMs reported for LCRA'!DP_TSML245+'Sect 4 - TSMs reported for LCRA'!DP_TSML246<='Sect 1b - Background'!DP_TSML067))","v":true}]
[null,"V_TSM0443","Sect 4 Q6 TP08 and Sect 1b Q13","Please check the number of responses you are reporting across the response scale (Q6 TP08 Very Satisfied to Very dissatisfied). These total to more than the number of total responses you reported for all survey methods in Q13 in section 1b",null,"Hard",null,{"$f":"OR('Sect 1b - Background'!DP_TSML047<>\"LCRA - section 4\",'Sect 1b - Background'!DP_TSML047=\"LCHO - section 5\",AND('Sect 1b - Background'!DP_TSML047=\"LCRA - section 4\",'Sect 4 - TSMs reported for LCRA'!DP_TSML248+'Sect 4 - TSMs reported for LCRA'!DP_TSML249+'Sect 4 - TSMs reported for LCRA'!DP_TSML250+'Sect 4 - TSMs reported for LCRA'!DP_TSML251+'Sect 4 - TSMs reported for LCRA'!DP_TSML252+'Sect 4 - TSMs reported for LCRA'!DP_TSML253<='Sect 1b - Background'!DP_TSML067))","v":true}]
[null,"V_TSM0444","Sect 4 Q6 TP11 and Sect 1b Q13","Please check the number of responses you are reporting across the response scale (Q6 TP11 Very Satisfied to Very dissatisfied). These total to more than the number of total responses you reported for all survey methods in Q13 in section 1b",null,"Hard",null,{"$f":"OR('Sect 1b - Background'!DP_TSML047<>\"LCRA - section 4\",'Sect 1b - Background'!DP_TSML047=\"LCHO - section 5\",AND('Sect 1b - Background'!DP_TSML047=\"LCRA - section 4\",'Sect 4 - TSMs reported for LCRA'!DP_TSML273+'Sect 4 - TSMs reported for LCRA'!DP_TSML274+'Sect 4 - TSMs reported for LCRA'!DP_TSML275+'Sect 4 - TSMs reported for LCRA'!DP_TSML276+'Sect 4 - TSMs reported for LCRA'!DP_TSML277+'Sect 4 - TSMs reported for LCRA'!DP_TSML278<='Sect 1b - Background'!DP_TSML067))","v":true}]
[null,"V_TSM0445","Sect 4 Q6 TP12 and Sect 1b Q13","Please check the number of responses you are reporting across the response scale (Q6 TP12 Very Satisfied to Very dissatisfied). These total to more than the number of total responses you reported for all survey methods in Q13 in section 1b",null,"Hard",null,{"$f":"OR('Sect 1b - Background'!DP_TSML047<>\"LCRA - section 4\",'Sect 1b - Background'!DP_TSML047=\"LCHO - section 5\",AND('Sect 1b - Background'!DP_TSML047=\"LCRA - section 4\",'Sect 4 - TSMs reported for LCRA'!DP_TSML280+'Sect 4 - TSMs reported for LCRA'!DP_TSML281+'Sect 4 - TSMs reported for LCRA'!DP_TSML282+'Sect 4 - TSMs reported for LCRA'!DP_TSML283+'Sect 4 - TSMs reported for LCRA'!DP_TSML284+'Sect 4 - TSMs reported for LCRA'!DP_TSML285<='Sect 1b - Background'!DP_TSML067))","v":true}]
[null,"V_TSM0446","Sect 6 Q6 TP02 and Sect 1a Q13","Please check the number of responses you are reporting as answering the filter question. These total to more than the number of total responses you reported in Q13 in section 1a",null,"Hard",null,{"$f":"OR('Sect 1a - Background'!DP_TSML004<>\"Combined - section 6\",AND('Sect 1a - Background'!DP_TSML004=\"Combined - section 6\",'Sect 6 - TSMs reported Combined'!DP_TSML397+'Sect 6 - TSMs reported Combined'!DP_TSML398<='Sect 1a - Background'!DP_TSML024))","v":true}]
[null,"V_TSM0447","Sect 6 Q6 TP02 and Sect 1b Q13","Please check the number of responses you are reporting as answering the filter question. These total to more than the number of total responses you reported in Q13 in section 1b",null,"Hard",null,{"$f":"OR('Sect 1b - Background'!DP_TSML047<>\"Combined - section 6\",OR('Sect 1b - Background'!DP_TSML047=\"LCHO - section 5\",AND('Sect 1b - Background'!DP_TSML047=\"Combined - section 6\",'Sect 6 - TSMs reported Combined'!DP_TSML397+'Sect 6 - TSMs reported Combined'!DP_TSML398<='Sect 1b - Background'!DP_TSML067)))","v":true}]
[null,"V_TSM0448","Sect 6 Q6 TP03 and Sect 1a Q13","Please check the number of responses you are reporting as answering the filter question. These total to more than the number of total responses you reported in Q13 in section 1a",null,"Hard",null,{"$f":"OR('Sect 1a - Background'!DP_TSML004<>\"Combined - section 6\",AND('Sect 1a - Background'!DP_TSML004=\"Combined - section 6\",'Sect 6 - TSMs reported Combined'!DP_TSML406+'Sect 6 - TSMs reported Combined'!DP_TSML407<='Sect 1a - Background'!DP_TSML024))","v":true}]
[null,"V_TSM0449","Sect 6 Q6 TP03 and Sect 1b Q13","Please check the number of responses you are reporting as answering the filter question. These total to more than the number of total responses you reported in Q13 in section 1b",null,"Hard",null,{"$f":"OR('Sect 1b - Background'!DP_TSML047<>\"Combined - section 6\",AND('Sect 1b - Background'!DP_TSML047=\"Combined - section 6\",'Sect 6 - TSMs reported Combined'!DP_TSML406+'Sect 6 - TSMs reported Combined'!DP_TSML407<='Sect 1b - Background'!DP_TSML067))","v":true}]
[null,"V_TSM0450","Sect 6 Q6 TP09 and Sect 1a Q13","Please check the number of responses you are reporting as answering the filter question. These total to more than the number of total responses you reported in Q13 in section 1a",null,"Hard",null,{"$f":"OR('Sect 1a - Background'!DP_TSML004<>\"Combined - section 6\",AND('Sect 1a - Background'!DP_TSML004=\"Combined - section 6\",'Sect 6 - TSMs reported Combined'!DP_TSML450+'Sect 6 - TSMs reported Combined'!DP_TSML451<='Sect 1a - Background'!DP_TSML024))","v":true}]
[null,"V_TSM0451","Sect 6 Q6 TP09 and Sect 1b Q13","Please check the number of responses you are reporting as answering the filter question. These total to more than the number of total responses you reported in Q13 in section 1b",null,"Hard",null,{"$f":"OR('Sect 1b - Background'!DP_TSML047<>\"Combined - section 6\",AND('Sect 1b - Background'!DP_TSML047=\"Combined - section 6\",'Sect 6 - TSMs reported Combined'!DP_TSML450+'Sect 6 - TSMs reported Combined'!DP_TSML451<='Sect 1b - Background'!DP_TSML067))","v":true}]
[null,"V_TSM0452","Sect 6 Q6 TP10 and Sect 1a Q13","Please check the number of responses you are reporting as answering the filter question. These total to more than the number of total responses you reported in Q13 in section 1a",null,"Hard",null,{"$f":"OR('Sect 1a - Background'!DP_TSML004<>\"Combined - section 6\",AND('Sect 1a - Background'!DP_TSML004=\"Combined - section 6\",'Sect 6 - TSMs reported Combined'!DP_TSML459+'Sect 6 - TSMs reported Combined'!DP_TSML460<='Sect 1a - Background'!DP_TSML024))","v":true}]
[null,"V_TSM0453","Sect 6 Q6 TP10 and Sect 1b Q13","Please check the number of responses you are reporting as answering the filter question. These total to more than the number of total responses you reported in Q13 in section 1b",null,"Hard",null,{"$f":"OR('Sect 1b - Background'!DP_TSML047<>\"Combined - section 6\",AND('Sect 1b - Background'!DP_TSML047=\"Combined - section 6\",'Sect 6 - TSMs reported Combined'!DP_TSML459+'Sect 6 - TSMs reported Combined'!DP_TSML460<='Sect 1b - Background'!DP_TSML067))","v":true}]
[null,"V_TSM0454","Sect Q6 TP02","Please check the number of responses you are reporting across the response scale for TP02. We would expect these to total the number of respondents reporting 'Yes' to the filter question (L1).",null,"Hard",null,{"$f":"'Sect 6 - TSMs reported Combined'!DP_TSML399+'Sect 6 - TSMs reported Combined'!DP_TSML400+'Sect 6 - TSMs reported Combined'!DP_TSML401+'Sect 6 - TSMs reported Combined'!DP_TSML402+'Sect 6 - TSMs reported Combined'!DP_TSML403<='Sect 6 - TSMs reported Combined'!DP_TSML397","v":true}]
[null,"V_TSM0455","Sect Q6 TP03","Please check the number of responses you are reporting across the response scale for TP03. We would expect these to total the number of respondents reporting 'Yes' to the filter question (L1).",null,"Hard",null,{"$f":"'Sect 6 - TSMs reported Combined'!DP_TSML408+'Sect 6 - TSMs reported Combined'!DP_TSML409+'Sect 6 - TSMs reported Combined'!DP_TSML410+'Sect 6 - TSMs reported Combined'!DP_TSML411+'Sect 6 - TSMs reported Combined'!DP_TSML412<='Sect 6 - TSMs reported Combined'!DP_TSML406","v":true}]
[null,"V_TSM0456","Sect Q6 TP09","Please check the number of responses you are reporting across the response scale for TP09. We would expect these to total the number of respondents reporting 'Yes' to the filter question (L1).",null,"Hard",null,{"$f":"'Sect 6 - TSMs reported Combined'!DP_TSML452+'Sect 6 - TSMs reported Combined'!DP_TSML453+'Sect 6 - TSMs reported Combined'!DP_TSML454+'Sect 6 - TSMs reported Combined'!DP_TSML455+'Sect 6 - TSMs reported Combined'!DP_TSML456<='Sect 6 - TSMs reported Combined'!DP_TSML450","v":true}]
[null,"V_TSM0457","Sect Q6 TP10","Please check the number of responses you are reporting across the response scale for TP10. We would expect these to total the number of respondents reporting 'Yes' to the filter question (L1).",null,"Hard",null,{"$f":"'Sect 6 - TSMs reported Combined'!DP_TSML461+'Sect 6 - TSMs reported Combined'!DP_TSML462+'Sect 6 - TSMs reported Combined'!DP_TSML463+'Sect 6 - TSMs reported Combined'!DP_TSML464+'Sect 6 - TSMs reported Combined'!DP_TSML465<='Sect 6 - TSMs reported Combined'!DP_TSML459","v":true}]
[null,"V_TSM0458","Sect 6 TP01 and Sect 1a Q13","Please check the number of responses you are reporting across the response scale (Q6 TP01 Very Satisfied to Very dissatisfied). These total to more than the number of total responses you reported for all survey methods in Q13 in section 1a",null,"Hard",null,{"$f":"OR('Sect 1a - Background'!DP_TSML004<>\"Combined - section 6\",AND('Sect 1a - Background'!DP_TSML004=\"Combined - section 6\",'Sect 6 - TSMs reported Combined'!DP_TSML390+'Sect 6 - TSMs reported Combined'!DP_TSML391+'Sect 6 - TSMs reported Combined'!DP_TSML392+'Sect 6 - TSMs reported Combined'!DP_TSML393+'Sect 6 - TSMs reported Combined'!DP_TSML394<='Sect 1a - Background'!DP_TSML024))","v":true}]
[null,"V_TSM0459","Sect 6 TP04 and Sect 1a Q13","Please check the number of responses you are reporting across the response scale (Q6 TP04 Very Satisfied to Very dissatisfied). These total to more than the number of total responses you reported for all survey methods in Q13 in section 1a",null,"Hard",null,{"$f":"OR('Sect 1a - Background'!DP_TSML004<>\"Combined - section 6\",AND('Sect 1a - Background'!DP_TSML004=\"Combined - section 6\",'Sect 6 - TSMs reported Combined'!DP_TSML415+'Sect 6 - TSMs reported Combined'!DP_TSML416+'Sect 6 - TSMs reported Combined'!DP_TSML417+'Sect 6 - TSMs reported Combined'!DP_TSML418+'Sect 6 - TSMs reported Combined'!DP_TSML419<='Sect 1a - Background'!DP_TSML024))","v":true}]
[null,"V_TSM0460","Sect 6 TP05 and Sect 1a Q13","Please check the number of responses you are reporting across the response scale (Q6 TP05 Very Satisfied to Very dissatisfied). These total to more than the number of total responses you reported for all survey methods in Q13 in section 1a",null,"Hard",null,{"$f":"OR('Sect 1a - Background'!DP_TSML004<>\"Combined - section 6\",AND('Sect 1a - Background'!DP_TSML004=\"Combined - section 6\",'Sect 6 - TSMs reported Combined'!DP_TSML422+'Sect 6 - TSMs reported Combined'!DP_TSML423+'Sect 6 - TSMs reported Combined'!DP_TSML424+'Sect 6 - TSMs reported Combined'!DP_TSML425+'Sect 6 - TSMs reported Combined'!DP_TSML426+'Sect 6 - TSMs reported Combined'!DP_TSML427<='Sect 1a - Background'!DP_TSML024))","v":true}]
[null,"V_TSM0461","Sect 6 TP06 and Sect 1a Q13","Please check the number of responses you are reporting across the response scale (Q6 TP06 Very Satisfied to Very dissatisfied). These total to more than the number of total responses you reported for all survey methods in Q13 in section 1a",null,"Hard",null,{"$f":"OR('Sect 1a - Background'!DP_TSML004<>\"Combined - section 6\",AND('Sect 1a - Background'!DP_TSML004=\"Combined - section 6\",'Sect 6 - TSMs reported Combined'!DP_TSML429+'Sect 6 - TSMs reported Combined'!DP_TSML430+'Sect 6 - TSMs reported Combined'!DP_TSML431+'Sect 6 - TSMs reported Combined'!DP_TSML432+'Sect 6 - TSMs reported Combined'!DP_TSML433+'Sect 6 - TSMs reported Combined'!DP_TSML434<='Sect 1a - Background'!DP_TSML024))","v":true}]
[null,"V_TSM0462","Sect 6 TP07 and Sect 1a Q13","Please check the number of responses you are reporting across the response scale (Q6 TP07 Very Satisfied to Very dissatisfied). These total to more than the number of total responses you reported for all survey methods in Q13 in section 1a",null,"Hard",null,{"$f":"OR('Sect 1a - Background'!DP_TSML004<>\"Combined - section 6\",AND('Sect 1a - Background'!DP_TSML004=\"Combined - section 6\",'Sect 6 - TSMs reported Combined'!DP_TSML436+'Sect 6 - TSMs reported Combined'!DP_TSML437+'Sect 6 - TSMs reported Combined'!DP_TSML438+'Sect 6 - TSMs reported Combined'!DP_TSML439+'Sect 6 - TSMs reported Combined'!DP_TSML440+'Sect 6 - TSMs reported Combined'!DP_TSML441<='Sect 1a - Background'!DP_TSML024))","v":true}]
[null,"V_TSM0463","Sect 6 TP08 and Sect 1a Q13","Please check the number of responses you are reporting across the response scale (Q6 TP08 Very Satisfied to Very dissatisfied). These total to more than the number of total responses you reported for all survey methods in Q13 in section 1a",null,"Hard",null,{"$f":"OR('Sect 1a - Background'!DP_TSML004<>\"Combined - section 6\",AND('Sect 1a - Background'!DP_TSML004=\"Combined - section 6\",'Sect 6 - TSMs reported Combined'!DP_TSML443+'Sect 6 - TSMs reported Combined'!DP_TSML444+'Sect 6 - TSMs reported Combined'!DP_TSML445+'Sect 6 - TSMs reported Combined'!DP_TSML446+'Sect 6 - TSMs reported Combined'!DP_TSML447+'Sect 6 - TSMs reported Combined'!DP_TSML448<='Sect 1a - Background'!DP_TSML024))","v":true}]
[null,"V_TSM0464","Sect 6 TP11 and Sect 1a Q13","Please check the number of responses you are reporting across the response scale (Q6 TP11 Very Satisfied to Very dissatisfied). These total to more than the number of total responses you reported for all survey methods in Q13 in section 1a",null,"Hard",null,{"$f":"OR('Sect 1a - Background'!DP_TSML004<>\"Combined - section 6\",AND('Sect 1a - Background'!DP_TSML004=\"Combined - section 6\",'Sect 6 - TSMs reported Combined'!DP_TSML468+'Sect 6 - TSMs reported Combined'!DP_TSML469+'Sect 6 - TSMs reported Combined'!DP_TSML470+'Sect 6 - TSMs reported Combined'!DP_TSML471+'Sect 6 - TSMs reported Combined'!DP_TSML472+'Sect 6 - TSMs reported Combined'!DP_TSML473<='Sect 1a - Background'!DP_TSML024))","v":true}]
[null,"V_TSM0465","Sect 6 TP12 and Sect 1a Q13","Please check the number of responses you are reporting across the response scale (Q6 TP12 Very Satisfied to Very dissatisfied). These total to more than the number of total responses you reported for all survey methods in Q13 in section 1a",null,"Hard",null,{"$f":"OR('Sect 1a - Background'!DP_TSML004<>\"Combined - section 6\",AND('Sect 1a - Background'!DP_TSML004=\"Combined - section 6\",'Sect 6 - TSMs reported Combined'!DP_TSML475+'Sect 6 - TSMs reported Combined'!DP_TSML476+'Sect 6 - TSMs reported Combined'!DP_TSML477+'Sect 6 - TSMs reported Combined'!DP_TSML478+'Sect 6 - TSMs reported Combined'!DP_TSML479+'Sect 6 - TSMs reported Combined'!DP_TSML480<='Sect 1a - Background'!DP_TSML024))","v":true}]
[null,"V_TSM0466","Sect 6 TP01 and Sect 1b Q13","Please check the number of responses you are reporting across the response scale (Q6 TP01 Very Satisfied to Very dissatisfied). These total to more than the number of total responses you reported for all survey methods in Q13 in section 1b",null,"Hard",null,{"$f":"OR('Sect 1b - Background'!DP_TSML047<>\"Combined - section 6\",AND('Sect 1b - Background'!DP_TSML047=\"Combined - section 6\",'Sect 6 - TSMs reported Combined'!DP_TSML390+'Sect 6 - TSMs reported Combined'!DP_TSML391+'Sect 6 - TSMs reported Combined'!DP_TSML392+'Sect 6 - TSMs reported Combined'!DP_TSML393+'Sect 6 - TSMs reported Combined'!DP_TSML394<='Sect 1b - Background'!DP_TSML067))","v":true}]
[null,"V_TSM0467","Sect 6 TP04 and Sect 1b Q13","Please check the number of responses you are reporting across the response scale (Q6 TP04 Very Satisfied to Very dissatisfied). These total to more than the number of total responses you reported for all survey methods in Q13 in section 1b",null,"Hard",null,{"$f":"OR('Sect 1b - Background'!DP_TSML047<>\"Combined - section 6\",AND('Sect 1b - Background'!DP_TSML047=\"Combined - section 6\",'Sect 6 - TSMs reported Combined'!DP_TSML415+'Sect 6 - TSMs reported Combined'!DP_TSML416+'Sect 6 - TSMs reported Combined'!DP_TSML417+'Sect 6 - TSMs reported Combined'!DP_TSML418+'Sect 6 - TSMs reported Combined'!DP_TSML419<='Sect 1b - Background'!DP_TSML067))","v":true}]
[null,"V_TSM0468","Sect 6 TP05 and Sect 1b Q13","Please check the number of responses you are reporting across the response scale (Q6 TP05 Very Satisfied to Very dissatisfied). These total to more than the number of total responses you reported for all survey methods in Q13 in section 1b",null,"Hard",null,{"$f":"OR('Sect 1b - Background'!DP_TSML047<>\"Combined - section 6\",AND('Sect 1b - Background'!DP_TSML047=\"Combined - section 6\",'Sect 6 - TSMs reported Combined'!DP_TSML422+'Sect 6 - TSMs reported Combined'!DP_TSML423+'Sect 6 - TSMs reported Combined'!DP_TSML424+'Sect 6 - TSMs reported Combined'!DP_TSML425+'Sect 6 - TSMs reported Combined'!DP_TSML426+'Sect 6 - TSMs reported Combined'!DP_TSML427<='Sect 1b - Background'!DP_TSML067))","v":true}]
[null,"V_TSM0469","Sect 6 TP06 and Sect 1b Q13","Please check the number of responses you are reporting across the response scale (Q6 TP06 Very Satisfied to Very dissatisfied). These total to more than the number of total responses you reported for all survey methods in Q13 in section 1b",null,"Hard",null,{"$f":"OR('Sect 1b - Background'!DP_TSML047<>\"Combined - section 6\",AND('Sect 1b - Background'!DP_TSML047=\"Combined - section 6\",'Sect 6 - TSMs reported Combined'!DP_TSML429+'Sect 6 - TSMs reported Combined'!DP_TSML430+'Sect 6 - TSMs reported Combined'!DP_TSML431+'Sect 6 - TSMs reported Combined'!DP_TSML432+'Sect 6 - TSMs reported Combined'!DP_TSML433+'Sect 6 - TSMs reported Combined'!DP_TSML434<='Sect 1b - Background'!DP_TSML067))","v":true}]
[null,"V_TSM0470","Sect 6 TP07 and Sect 1b Q13","Please check the number of responses you are reporting across the response scale (Q6 TP07 Very Satisfied to Very dissatisfied). These total to more than the number of total responses you reported for all survey methods in Q13 in section 1b",null,"Hard",null,{"$f":"OR('Sect 1b - Background'!DP_TSML047<>\"Combined - section 6\",AND('Sect 1b - Background'!DP_TSML047=\"Combined - section 6\",'Sect 6 - TSMs reported Combined'!DP_TSML436+'Sect 6 - TSMs reported Combined'!DP_TSML437+'Sect 6 - TSMs reported Combined'!DP_TSML438+'Sect 6 - TSMs reported Combined'!DP_TSML439+'Sect 6 - TSMs reported Combined'!DP_TSML440+'Sect 6 - TSMs reported Combined'!DP_TSML441<='Sect 1b - Background'!DP_TSML067))","v":true}]
[null,"V_TSM0471","Sect 6 TP08 and Sect 1b Q13","Please check the number of responses you are reporting across the response scale (Q6 TP08 Very Satisfied to Very dissatisfied). These total to more than the number of total responses you reported for all survey methods in Q13 in section 1b",null,"Hard",null,{"$f":"OR('Sect 1b - Background'!DP_TSML047<>\"Combined - section 6\",AND('Sect 1b - Background'!DP_TSML047=\"Combined - section 6\",'Sect 6 - TSMs reported Combined'!DP_TSML443+'Sect 6 - TSMs reported Combined'!DP_TSML444+'Sect 6 - TSMs reported Combined'!DP_TSML445+'Sect 6 - TSMs reported Combined'!DP_TSML446+'Sect 6 - TSMs reported Combined'!DP_TSML447+'Sect 6 - TSMs reported Combined'!DP_TSML448<='Sect 1b - Background'!DP_TSML067))","v":true}]
[null,"V_TSM0472","Sect 6 TP11 and Sect 1b Q13","Please check the number of responses you are reporting across the response scale (Q6 TP11 Very Satisfied to Very dissatisfied). These total to more than the number of total responses you reported for all survey methods in Q13 in section 1b",null,"Hard",null,{"$f":"OR('Sect 1b - Background'!DP_TSML047<>\"Combined - section 6\",AND('Sect 1b - Background'!DP_TSML047=\"Combined - section 6\",'Sect 6 - TSMs reported Combined'!DP_TSML468+'Sect 6 - TSMs reported Combined'!DP_TSML469+'Sect 6 - TSMs reported Combined'!DP_TSML470+'Sect 6 - TSMs reported Combined'!DP_TSML471+'Sect 6 - TSMs reported Combined'!DP_TSML472+'Sect 6 - TSMs reported Combined'!DP_TSML473<='Sect 1b - Background'!DP_TSML067))","v":true}]
[null,"V_TSM0473","Sect 6 TP12 and Sect 1b Q13","Please check the number of responses you are reporting across the response scale (Q6 TP12 Very Satisfied to Very dissatisfied). These total to more than the number of total responses you reported for all survey methods in Q13 in section 1b",null,"Hard",null,{"$f":"OR('Sect 1b - Background'!DP_TSML047<>\"Combined - section 6\",AND('Sect 1b - Background'!DP_TSML047=\"Combined - section 6\",'Sect 6 - TSMs reported Combined'!DP_TSML475+'Sect 6 - TSMs reported Combined'!DP_TSML476+'Sect 6 - TSMs reported Combined'!DP_TSML477+'Sect 6 - TSMs reported Combined'!DP_TSML478+'Sect 6 - TSMs reported Combined'!DP_TSML479+'Sect 6 - TSMs reported Combined'!DP_TSML480<='Sect 1b - Background'!DP_TSML067))","v":true}]
[null,"V_TSM0474","Sect 4 Q6 TP02 and Sect 1a Q13","Please check the number of responses you are reporting as answering the filter question. These total to more than the number of total responses you reported in Q13 in section 1a",null,"Hard",null,{"$f":"OR('Sect 1a - Background'!DP_TSML004<>\"LCRA - section 4\",AND('Sect 1a - Background'!DP_TSML004=\"LCRA - section 4\",'Sect 4 - TSMs reported for LCRA'!DP_TSML202+'Sect 4 - TSMs reported for LCRA'!DP_TSML203<='Sect 1a - Background'!DP_TSML024))","v":true}]
[null,"V_TSM0475","Sect 4 Q6 TP02 and Sect 1b Q13","Please check the number of responses you are reporting as answering the filter question. These total to more than the number of total responses you reported in Q13 in section 1b",null,"Hard",null,{"$f":"OR('Sect 1b - Background'!DP_TSML047<>\"LCRA - section 4\",AND('Sect 1b - Background'!DP_TSML047=\"LCRA - section 4\",'Sect 4 - TSMs reported for LCRA'!DP_TSML202+'Sect 4 - TSMs reported for LCRA'!DP_TSML203<='Sect 1b - Background'!DP_TSML067))","v":true}]
[null,"V_TSM0476","Sect 4 Q6 TP03 and Sect 1a Q13","Please check the number of responses you are reporting as answering the filter question. These total to more than the number of total responses you reported in Q13 in section 1a",null,"Hard",null,{"$f":"OR('Sect 1a - Background'!DP_TSML004<>\"LCRA - section 4\",AND('Sect 1a - Background'!DP_TSML004=\"LCRA - section 4\",'Sect 4 - TSMs reported for LCRA'!DP_TSML211+'Sect 4 - TSMs reported for LCRA'!DP_TSML212<='Sect 1a - Background'!DP_TSML024))","v":true}]
[null,"V_TSM0477","Sect 4 Q6 TP03 and Sect 1b Q13","Please check the number of responses you are reporting as answering the filter question. These total to more than the number of total responses you reported in Q13 in section 1b",null,"Hard",null,{"$f":"OR('Sect 1b - Background'!DP_TSML047<>\"LCRA - section 4\",AND('Sect 1b - Background'!DP_TSML047=\"LCRA - section 4\",'Sect 4 - TSMs reported for LCRA'!DP_TSML211+'Sect 4 - TSMs reported for LCRA'!DP_TSML212<='Sect 1b - Background'!DP_TSML067))","v":true}]
[null,"V_TSM0478","Sect 4 Q6 TP09 and Sect 1a Q13","Please check the number of responses you are reporting as answering the filter question. These total to more than the number of total responses you reported in Q13 in section 1a",null,"Hard",null,{"$f":"OR('Sect 1a - Background'!DP_TSML004<>\"LCRA - section 4\",AND('Sect 1a - Background'!DP_TSML004=\"LCRA - section 4\",'Sect 4 - TSMs reported for LCRA'!DP_TSML255+'Sect 4 - TSMs reported for LCRA'!DP_TSML256<='Sect 1a - Background'!DP_TSML024))","v":true}]
[null,"V_TSM0479","Sect 4 Q6 TP09 and Sect 1b Q13","Please check the number of responses you are reporting as answering the filter question. These total to more than the number of total responses you reported in Q13 in section 1b",null,"Hard",null,{"$f":"OR('Sect 1b - Background'!DP_TSML047<>\"LCRA - section 4\",AND('Sect 1b - Background'!DP_TSML047=\"LCRA - section 4\",'Sect 4 - TSMs reported for LCRA'!DP_TSML255+'Sect 4 - TSMs reported for LCRA'!DP_TSML256<='Sect 1b - Background'!DP_TSML067))","v":true}]
[null,"V_TSM0480","Sect 4 Q6 TP10 and Sect 1a Q13","Please check the number of responses you are reporting as answering the filter question. These total to more than the number of total responses you reported in Q13 in section 1a",null,"Hard",null,{"$f":"OR('Sect 1a - Background'!DP_TSML004<>\"LCRA - section 4\",AND('Sect 1a - Background'!DP_TSML004=\"LCRA - section 4\",'Sect 4 - TSMs reported for LCRA'!DP_TSML264+'Sect 4 - TSMs reported for LCRA'!DP_TSML265<='Sect 1a - Background'!DP_TSML024))","v":true}]
[null,"V_TSM0481","Sect 4 Q6 TP10 and Sect 1b Q13","Please check the number of responses you are reporting as answering the filter question. These total to more than the number of total responses you reported in Q13 in section 1b",null,"Hard",null,{"$f":"OR('Sect 1b - Background'!DP_TSML047<>\"LCRA - section 4\",AND('Sect 1b - Background'!DP_TSML047=\"LCRA - section 4\",'Sect 4 - TSMs reported for LCRA'!DP_TSML264+'Sect 4 - TSMs reported for LCRA'!DP_TSML265<='Sect 1b - Background'!DP_TSML067))","v":true}]
[null,"V_TSM0482","Sect 3 Q2 NM01 (1)","Please check the denominator reported for NM01(1). The denominator should be the number of dwellings owned.",null,"Soft",null,{"$f":"'Sect 3 - TSMs reported by all'!DP_TSML159<=200000","v":true}]
[null,"V_TSM0483","Sect 3 Q2 NM01 (2)","Please check the denominator reported for NM01(2). The denominator should be the number of dwellings owned.",null,"Soft",null,{"$f":"'Sect 3 - TSMs reported by all'!DP_TSML162<=200000","v":true}]
[null,"V_TSM0484","Sect 3 Q4 RP01","Please check the denominator reported for RP01.",null,"Soft",null,{"$f":"'Sect 3 - TSMs reported by all'!DP_TSML165<=200000","v":true}]
[null,"V_TSM0487","Sect 1a Q2 and Sect 1b Q2","The response to Sect 1a Q2 cannot be the same as Sect 1b Q2.",null,"Hard",null,{"$f":"'Sect 1a - Background'!DP_TSML004<>'Sect 1b - Background'!DP_TSML047","v":true}]
[null,"V_TSM0488","Sect 1b Q2 and Q5 and Q6","If Q2 is populated, then Q5 cannot be later than Q6.",null,"Hard",null,{"$f":"IF(AND(ISBLANK('Sect 1b - Background'!DP_TSML047)=TRUE,ISERROR(OR(YEAR('Sect 1b - Background'!DP_TSML051)>YEAR('Sect 1b - Background'!DP_TSML050),AND(YEAR('Sect 1b - Background'!DP_TSML051)=YEAR('Sect 1b - Background'!DP_TSML050),MONTH('Sect 1b - Background'!DP_TSML051)>=MONTH('Sect 1b - Background'!DP_TSML050),DAY('Sect 1b - Background'!DP_TSML051)>=DAY('Sect 1b - Background'!DP_TSML050))))=TRUE),TRUE,OR(YEAR('Sect 1b - Background'!DP_TSML051)>YEAR('Sect 1b - Background'!DP_TSML050),AND(YEAR('Sect 1b - Background'!DP_TSML051)=YEAR('Sect 1b - Background'!DP_TSML050),MONTH('Sect 1b - Background'!DP_TSML051)>=MONTH('Sect 1b - Background'!DP_TSML050),DAY('Sect 1b - Background'!DP_TSML051)>=DAY('Sect 1b - Background'!DP_TSML050))))","v":true}]
[null,"V_TSM0489","Sect 1b Q2 and Q13L7","The total in Q13L7 must be greater than 0.",null,"Hard",null,{"$f":"OR(ISBLANK('Sect 1b - Background'!DP_TSML047)=TRUE,AND(ISBLANK('Sect 1b - Background'!DP_TSML047)=FALSE,'Sect 1b - Background'!DP_TSML067>0))","v":true}]
[null,"V_TSM0496","Sect 1b Q2 and Q10","If Section 1b Q2 is populated, then Q10 cannot be blank. If Section1b Q2 is not populated, then Q10 must be left blank.",null,"Hard",null,{"$f":"OR(AND(ISBLANK('Sect 1b - Background'!DP_TSML047)=TRUE,ISBLANK('Sect 1b - Background'!DP_TSML058)=TRUE),AND(ISBLANK('Sect 1b - Background'!DP_TSML047)=FALSE,ISBLANK('Sect 1b - Background'!DP_TSML058)=FALSE))","v":true}]
[null,"V_TSM0497","Sect 1b Q2 and Q11","If Section 1b Q2 is populated, then Q11 cannot be blank. If Section 1b Q2 is not populated, then Q11 must be left blank.",null,"Hard",null,{"$f":"OR(AND(ISBLANK('Sect 1b - Background'!DP_TSML047)=TRUE,ISBLANK('Sect 1b - Background'!DP_TSML059)=TRUE),AND(ISBLANK('Sect 1b - Background'!DP_TSML047)=FALSE,ISBLANK('Sect 1b - Background'!DP_TSML059)=FALSE))","v":true}]
[null,"V_TSM0519","Sect 1a Q14a","Sect 1a Q14a must be completed if you have indicated you used weighting in Q14. Otherwise, this field should be left blank.",null,"Hard",null,{"$f":"OR(AND('Sect 1a - Background'!DP_TSML032=\"Yes\",ISBLANK('Sect 1a - Background'!DP_TSML036)=FALSE),AND('Sect 1a - Background'!DP_TSML032<>\"Yes\",ISBLANK('Sect 1a - Background'!DP_TSML036)=TRUE))","v":true}]
[null,"V_TSM0520","Sect 1b Q14a","Sect 1b Q14a must be completed if you have indicated you used weighting in Q14. Otherwise, this field should be left blank.",null,"Hard",null,{"$f":"OR(AND('Sect 1b - Background'!DP_TSML075=\"Yes\",ISBLANK('Sect 1b - Background'!DP_TSML079)=FALSE),AND('Sect 1b - Background'!DP_TSML075<>\"Yes\",ISBLANK('Sect 1b - Background'!DP_TSML079)=TRUE))","v":true}]
[null,"V_TSM0531","Sect 1b Q13L6 and Q13a","If you have recorded the use of other methods in Q13L6, please provide details in Q13a. You should also upload a supporting document if necessary. Otherwise, Q13a should be left blank.",null,"Hard",null,{"$f":"OR(ISBLANK('Sect 1b - Background'!DP_TSML047)=TRUE,AND(ISBLANK('Sect 1b - Background'!DP_TSML047)=FALSE,'Sect 1b - Background'!DP_TSML066=0,ISBLANK('Sect 1b - Background'!DP_TSML068)=TRUE),AND('Sect 1b - Background'!DP_TSML045=\"Yes\",'Sect 1b - Background'!DP_TSML066>0,ISBLANK('Sect 1b - Background'!DP_TSML068)=FALSE))","v":true}]
[null,"V_TSM0533","Sect 1a/1b Q2 and Sect 4 TP01 and Sect 1a/1b Q13","Please check your response numbers for TP01. The total number of responses for TP01 is below what we might expect for this Tenant Perception Measure. We understand that additional responses such as unprompted 'don't know' responses or where the respondent skipped or otherwise refused to answer may account for this. If this is the case we do not need any further information.",null,"Soft",null,{"$f":"OR(AND('Sect 1a - Background'!DP_TSML004=\"LCRA - section 4\",('Sect 4 - TSMs reported for LCRA'!DP_TSML195+'Sect 4 - TSMs reported for LCRA'!DP_TSML196+'Sect 4 - TSMs reported for LCRA'!DP_TSML197+'Sect 4 - TSMs reported for LCRA'!DP_TSML198+'Sect 4 - TSMs reported for LCRA'!DP_TSML199)>='Sect 1a - Background'!DP_TSML024*0.9),AND('Sect 1b - Background'!DP_TSML047=\"LCRA - section 4\",('Sect 4 - TSMs reported for LCRA'!DP_TSML195+'Sect 4 - TSMs reported for LCRA'!DP_TSML196+'Sect 4 - TSMs reported for LCRA'!DP_TSML197+'Sect 4 - TSMs reported for LCRA'!DP_TSML198+'Sect 4 - TSMs reported for LCRA'!DP_TSML199)>='Sect 1b - Background'!DP_TSML067*0.9),AND('Sect 1a - Background'!DP_TSML004<>\"LCRA - section 4\",('Sect 1b - Background'!DP_TSML047<>\"LCRA - section 4\")))","v":true}]
[null,"V_TSM0534","Sect 1a/1b Q2 and Sect 4 TP02 and Sect 1a/1b Q13","Please check your response numbers for TP02. The total number of responses for TP02 is below what we might expect for this Tenant Perception Measure. We understand that additional responses such as unprompted 'don't know' responses or where the respondent skipped or otherwise refused to answer may account for this. If this is the case we do not need any further information.",null,"Soft",null,{"$f":"OR(AND('Sect 1a - Background'!DP_TSML004=\"LCRA - section 4\",('Sect 4 - TSMs reported for LCRA'!DP_TSML202)>='Sect 1a - Background'!DP_TSML024*0.5),AND('Sect 1b - Background'!DP_TSML047=\"LCRA - section 4\",('Sect 4 - TSMs reported for LCRA'!DP_TSML202)>='Sect 1b - Background'!DP_TSML067*0.5),AND('Sect 1a - Background'!DP_TSML004<>\"LCRA - section 4\",('Sect 1b - Background'!DP_TSML047<>\"LCRA - section 4\")))","v":false}]
[null,"V_TSM0535","Sect 1a/1b Q2 and Sect 4 TP03 and Sect 1a/1b Q13","Please check your response numbers for TP03. The total number of responses for TP03 is below what we might expect for this Tenant Perception Measure. We understand that additional responses such as unprompted 'don't know' responses or where the respondent skipped or otherwise refused to answer may account for this. If this is the case we do not need any further information.",null,"Soft",null,{"$f":"OR(AND('Sect 1a - Background'!DP_TSML004=\"LCRA - section 4\",('Sect 4 - TSMs reported for LCRA'!DP_TSML211)>='Sect 1a - Background'!DP_TSML024*0.5),AND('Sect 1b - Background'!DP_TSML047=\"LCRA - section 4\",('Sect 4 - TSMs reported for LCRA'!DP_TSML211)>='Sect 1b - Background'!DP_TSML067*0.5),AND('Sect 1a - Background'!DP_TSML004<>\"LCRA - section 4\",('Sect 1b - Background'!DP_TSML047<>\"LCRA - section 4\")))","v":false}]
[null,"V_TSM0536","Sect 1a/1b Q2 and Sect 4 TP04 and Sect 1a/1b Q13","Please check your response numbers for TP04. The total number of responses for TP04 is below what we might expect for this Tenant Perception Measure. We understand that additional responses such as unprompted 'don't know' responses or where the respondent skipped or otherwise refused to answer may account for this. If this is the case we do not need any further information.",null,"Soft",null,{"$f":"OR(AND('Sect 1a - Background'!DP_TSML004=\"LCRA - section 4\",('Sect 4 - TSMs reported for LCRA'!DP_TSML220+'Sect 4 - TSMs reported for LCRA'!DP_TSML221+'Sect 4 - TSMs reported for LCRA'!DP_TSML222+'Sect 4 - TSMs reported for LCRA'!DP_TSML223+'Sect 4 - TSMs reported for LCRA'!DP_TSML224)>='Sect 1a - Background'!DP_TSML024*0.5),AND('Sect 1b - Background'!DP_TSML047=\"LCRA - section 4\",('Sect 4 - TSMs reported for LCRA'!DP_TSML220+'Sect 4 - TSMs reported for LCRA'!DP_TSML221+'Sect 4 - TSMs reported for LCRA'!DP_TSML222+'Sect 4 - TSMs reported for LCRA'!DP_TSML223+'Sect 4 - TSMs reported for LCRA'!DP_TSML224)>='Sect 1b - Background'!DP_TSML067*0.5),AND('Sect 1a - Background'!DP_TSML004<>\"LCRA - section 4\",('Sect 1b - Background'!DP_TSML047<>\"LCRA - section 4\")))","v":true}]
[null,"V_TSM0537","Sect 1a/1b Q2 and Sect 4 TP05 and Sect 1a/1b Q13","Please check your response numbers for TP05. The total number of responses for TP05 is below what we might expect for this Tenant Perception Measure. We understand that additional responses such as unprompted 'don't know' responses or where the respondent skipped or otherwise refused to answer may account for this. If this is the case we do not need any further information.",null,"Soft",null,{"$f":"OR(AND('Sect 1a - Background'!DP_TSML004=\"LCRA - section 4\",('Sect 4 - TSMs reported for LCRA'!DP_TSML227+'Sect 4 - TSMs reported for LCRA'!DP_TSML228+'Sect 4 - TSMs reported for LCRA'!DP_TSML229+'Sect 4 - TSMs reported for LCRA'!DP_TSML230+'Sect 4 - TSMs reported for LCRA'!DP_TSML231+'Sect 4 - TSMs reported for LCRA'!DP_TSML232)>='Sect 1a - Background'!DP_TSML024*0.5),AND('Sect 1b - Background'!DP_TSML047=\"LCRA - section 4\",('Sect 4 - TSMs reported for LCRA'!DP_TSML227+'Sect 4 - TSMs reported for LCRA'!DP_TSML228+'Sect 4 - TSMs reported for LCRA'!DP_TSML229+'Sect 4 - TSMs reported for LCRA'!DP_TSML230+'Sect 4 - TSMs reported for LCRA'!DP_TSML231+'Sect 4 - TSMs reported for LCRA'!DP_TSML232)>='Sect 1b - Background'!DP_TSML067*0.5),AND('Sect 1a - Background'!DP_TSML004<>\"LCRA - section 4\",('Sect 1b - Background'!DP_TSML047<>\"LCRA - section 4\")))","v":true}]
[null,"V_TSM0538","Sect 1a/1b Q2 and Sect 4 TP06 and Sect 1a/1b Q13","Please check your response numbers for TP06. The total number of responses for TP06 is below what we might expect for this Tenant Perception Measure. We understand that additional responses such as unprompted 'don't know' responses or where the respondent skipped or otherwise refused to answer may account for this. If this is the case we do not need any further information.",null,"Soft",null,{"$f":"OR(AND('Sect 1a - Background'!DP_TSML004=\"LCRA - section 4\",('Sect 4 - TSMs reported for LCRA'!DP_TSML234+'Sect 4 - TSMs reported for LCRA'!DP_TSML235+'Sect 4 - TSMs reported for LCRA'!DP_TSML236+'Sect 4 - TSMs reported for LCRA'!DP_TSML237+'Sect 4 - TSMs reported for LCRA'!DP_TSML238+'Sect 4 - TSMs reported for LCRA'!DP_TSML239)>='Sect 1a - Background'!DP_TSML024*0.5),AND('Sect 1b - Background'!DP_TSML047=\"LCRA - section 4\",('Sect 4 - TSMs reported for LCRA'!DP_TSML234+'Sect 4 - TSMs reported for LCRA'!DP_TSML235+'Sect 4 - TSMs reported for LCRA'!DP_TSML236+'Sect 4 - TSMs reported for LCRA'!DP_TSML237+'Sect 4 - TSMs reported for LCRA'!DP_TSML238+'Sect 4 - TSMs reported for LCRA'!DP_TSML239)>='Sect 1b - Background'!DP_TSML067*0.5),AND('Sect 1a - Background'!DP_TSML004<>\"LCRA - section 4\",('Sect 1b - Background'!DP_TSML047<>\"LCRA - section 4\")))","v":true}]
[null,"V_TSM0539","Sect 1a/1b Q2 and Sect 4 TP07 and Sect 1a/1b Q13","Please check your response numbers for TP07. The total number of responses for TP07 is below what we might expect for this Tenant Perception Measure. We understand that additional responses such as unprompted 'don't know' responses or where the respondent skipped or otherwise refused to answer may account for this. If this is the case we do not need any further information.",null,"Soft",null,{"$f":"OR(AND('Sect 1a - Background'!DP_TSML004=\"LCRA - section 4\",('Sect 4 - TSMs reported for LCRA'!DP_TSML241+'Sect 4 - TSMs reported for LCRA'!DP_TSML242+'Sect 4 - TSMs reported for LCRA'!DP_TSML243+'Sect 4 - TSMs reported for LCRA'!DP_TSML244+'Sect 4 - TSMs reported for LCRA'!DP_TSML245+'Sect 4 - TSMs reported for LCRA'!DP_TSML246)>='Sect 1a - Background'!DP_TSML024*0.5),AND('Sect 1b - Background'!DP_TSML047=\"LCRA - section 4\",('Sect 4 - TSMs reported for LCRA'!DP_TSML241+'Sect 4 - TSMs reported for LCRA'!DP_TSML242+'Sect 4 - TSMs reported for LCRA'!DP_TSML243+'Sect 4 - TSMs reported for LCRA'!DP_TSML244+'Sect 4 - TSMs reported for LCRA'!DP_TSML245+'Sect 4 - TSMs reported for LCRA'!DP_TSML246)>='Sect 1b - Background'!DP_TSML067*0.5),AND('Sect 1a - Background'!DP_TSML004<>\"LCRA - section 4\",('Sect 1b - Background'!DP_TSML047<>\"LCRA - section 4\")))","v":true}]
[null,"V_TSM0540","Sect 1a/1b Q2 and Sect 4 TP08 and Sect 1a/1b Q13","Please check your response numbers for TP08. The total number of responses for TP08 is below what we might expect for this Tenant Perception Measure. We understand that additional responses such as unprompted 'don't know' responses or where the respondent skipped or otherwise refused to answer may account for this. If this is the case we do not need any further information.",null,"Soft",null,{"$f":"OR(AND('Sect 1a - Background'!DP_TSML004=\"LCRA - section 4\",('Sect 4 - TSMs reported for LCRA'!DP_TSML248+'Sect 4 - TSMs reported for LCRA'!DP_TSML249+'Sect 4 - TSMs reported for LCRA'!DP_TSML250+'Sect 4 - TSMs reported for LCRA'!DP_TSML251+'Sect 4 - TSMs reported for LCRA'!DP_TSML252+'Sect 4 - TSMs reported for LCRA'!DP_TSML253)>='Sect 1a - Background'!DP_TSML024*0.5),AND('Sect 1b - Background'!DP_TSML047=\"LCRA - section 4\",('Sect 4 - TSMs reported for LCRA'!DP_TSML248+'Sect 4 - TSMs reported for LCRA'!DP_TSML249+'Sect 4 - TSMs reported for LCRA'!DP_TSML250+'Sect 4 - TSMs reported for LCRA'!DP_TSML251+'Sect 4 - TSMs reported for LCRA'!DP_TSML252+'Sect 4 - TSMs reported for LCRA'!DP_TSML253)>='Sect 1b - Background'!DP_TSML067*0.5),AND('Sect 1a - Background'!DP_TSML004<>\"LCRA - section 4\",('Sect 1b - Background'!DP_TSML047<>\"LCRA - section 4\")))","v":true}]
[null,"V_TSM0541","Sect 1a/1b Q2 and Sect 4 TP09 and Sect 1a/1b Q13","Please check your response numbers for TP09. The total number of responses for TP09 is below what we might expect for this Tenant Perception Measure. We understand that additional responses such as unprompted 'don't know' responses or where the respondent skipped or otherwise refused to answer may account for this. If this is the case we do not need any further information.",null,"Soft",null,{"$f":"OR(AND('Sect 1a - Background'!DP_TSML004=\"LCRA - section 4\",('Sect 4 - TSMs reported for LCRA'!DP_TSML255)>='Sect 1a - Background'!DP_TSML024*0.05),AND('Sect 1b - Background'!DP_TSML047=\"LCRA - section 4\",('Sect 4 - TSMs reported for LCRA'!DP_TSML255)>='Sect 1b - Background'!DP_TSML067*0.05),AND('Sect 1a - Background'!DP_TSML004<>\"LCRA - section 4\",('Sect 1b - Background'!DP_TSML047<>\"LCRA - section 4\")))","v":true}]
[null,"V_TSM0543","Sect 1a/1b Q2 and Sect 4 TP11 and Sect 1a/1b Q13","Please check your response numbers for TP11. The total number of responses for TP11 is below what we might expect for this Tenant Perception Measure. We understand that additional responses such as unprompted 'don't know' responses or where the respondent skipped or otherwise refused to answer may account for this. If this is the case we do not need any further information.",null,"Soft",null,{"$f":"OR(AND('Sect 1a - Background'!DP_TSML004=\"LCRA - section 4\",('Sect 4 - TSMs reported for LCRA'!DP_TSML273+'Sect 4 - TSMs reported for LCRA'!DP_TSML274+'Sect 4 - TSMs reported for LCRA'!DP_TSML275+'Sect 4 - TSMs reported for LCRA'!DP_TSML276+'Sect 4 - TSMs reported for LCRA'!DP_TSML277+'Sect 4 - TSMs reported for LCRA'!DP_TSML278)>='Sect 1a - Background'!DP_TSML024*0.5),AND('Sect 1b - Background'!DP_TSML047=\"LCRA - section 4\",('Sect 4 - TSMs reported for LCRA'!DP_TSML273+'Sect 4 - TSMs reported for LCRA'!DP_TSML274+'Sect 4 - TSMs reported for LCRA'!DP_TSML275+'Sect 4 - TSMs reported for LCRA'!DP_TSML276+'Sect 4 - TSMs reported for LCRA'!DP_TSML277+'Sect 4 - TSMs reported for LCRA'!DP_TSML278)>='Sect 1b - Background'!DP_TSML067*0.5),AND('Sect 1a - Background'!DP_TSML004<>\"LCRA - section 4\",('Sect 1b - Background'!DP_TSML047<>\"LCRA - section 4\")))","v":true}]
[null,"V_TSM0544","Sect 1a/1b Q2 and Sect 4 TP12 and Sect 1a/1b Q13","Please check your response numbers for TP12. The total number of responses for TP12 is below what we might expect for this Tenant Perception Measure. We understand that additional responses such as unprompted 'don't know' responses or where the respondent skipped or otherwise refused to answer may account for this. If this is the case we do not need any further information.",null,"Soft",null,{"$f":"OR(AND('Sect 1a - Background'!DP_TSML004=\"LCRA - section 4\",('Sect 4 - TSMs reported for LCRA'!DP_TSML280+'Sect 4 - TSMs reported for LCRA'!DP_TSML281+'Sect 4 - TSMs reported for LCRA'!DP_TSML282+'Sect 4 - TSMs reported for LCRA'!DP_TSML283+'Sect 4 - TSMs reported for LCRA'!DP_TSML284+'Sect 4 - TSMs reported for LCRA'!DP_TSML285)>='Sect 1a - Background'!DP_TSML024*0.5),AND('Sect 1b - Background'!DP_TSML047=\"LCRA - section 4\",('Sect 4 - TSMs reported for LCRA'!DP_TSML280+'Sect 4 - TSMs reported for LCRA'!DP_TSML281+'Sect 4 - TSMs reported for LCRA'!DP_TSML282+'Sect 4 - TSMs reported for LCRA'!DP_TSML283+'Sect 4 - TSMs reported for LCRA'!DP_TSML284+'Sect 4 - TSMs reported for LCRA'!DP_TSML285)>='Sect 1b - Background'!DP_TSML067*0.5),AND('Sect 1a - Background'!DP_TSML004<>\"LCRA - section 4\",('Sect 1b - Background'!DP_TSML047<>\"LCRA - section 4\")))","v":true}]
[null,"V_TSM0545","Sect 1a/1b Q2 and Sect 5 TP01 and Sect 1a/1b Q13","Please check your response numbers for TP01. The total number of responses for TP01 is below what we might expect for this Tenant Perception Measure. We understand that additional responses such as unprompted 'don't know' responses or where the respondent skipped or otherwise refused to answer may account for this. If this is the case we do not need any further information.",null,"Soft",null,{"$f":"OR(AND('Sect 1a - Background'!DP_TSML004=\"LCHO - section 5\",('Sect 5 - TSMs reported for LCHO'!DP_TSML305+'Sect 5 - TSMs reported for LCHO'!DP_TSML306+'Sect 5 - TSMs reported for LCHO'!DP_TSML307+'Sect 5 - TSMs reported for LCHO'!DP_TSML308+'Sect 5 - TSMs reported for LCHO'!DP_TSML309)>='Sect 1a - Background'!DP_TSML024*0.9),AND('Sect 1b - Background'!DP_TSML047=\"LCHO - section 5\",('Sect 5 - TSMs reported for LCHO'!DP_TSML305+'Sect 5 - TSMs reported for LCHO'!DP_TSML306+'Sect 5 - TSMs reported for LCHO'!DP_TSML307+'Sect 5 - TSMs reported for LCHO'!DP_TSML308+'Sect 5 - TSMs reported for LCHO'!DP_TSML309)>='Sect 1b - Background'!DP_TSML067*0.9),AND('Sect 1a - Background'!DP_TSML004<>\"LCHO - section 5\",('Sect 1b - Background'!DP_TSML047<>\"LCHO - section 5\")))","v":true}]
[null,"V_TSM0546","Sect 1a/1b Q2 and Sect 5 TP05 and Sect 1a/1b Q13","Please check your response numbers for TP05. The total number of responses for TP05 is below what we might expect for this Tenant Perception Measure. We understand that additional responses such as unprompted 'don't know' responses or where the respondent skipped or otherwise refused to answer may account for this. If this is the case we do not need any further information.",null,"Soft",null,{"$f":"OR(AND('Sect 1a - Background'!DP_TSML004=\"LCHO - section 5\",('Sect 5 - TSMs reported for LCHO'!DP_TSML312+'Sect 5 - TSMs reported for LCHO'!DP_TSML313+'Sect 5 - TSMs reported for LCHO'!DP_TSML314+'Sect 5 - TSMs reported for LCHO'!DP_TSML315+'Sect 5 - TSMs reported for LCHO'!DP_TSML316+'Sect 5 - TSMs reported for LCHO'!DP_TSML317)>='Sect 1a - Background'!DP_TSML024*0.5),AND('Sect 1b - Background'!DP_TSML047=\"LCHO - section 5\",('Sect 5 - TSMs reported for LCHO'!DP_TSML312+'Sect 5 - TSMs reported for LCHO'!DP_TSML313+'Sect 5 - TSMs reported for LCHO'!DP_TSML314+'Sect 5 - TSMs reported for LCHO'!DP_TSML315+'Sect 5 - TSMs reported for LCHO'!DP_TSML316+'Sect 5 - TSMs reported for LCHO'!DP_TSML317)>='Sect 1b - Background'!DP_TSML067*0.5),AND('Sect 1a - Background'!DP_TSML004<>\"LCHO - section 5\",('Sect 1b - Background'!DP_TSML047<>\"LCHO - section 5\")))","v":true}]
[null,"V_TSM0547","Sect 1a/1b Q2 and Sect 5 TP06 and Sect 1a/1b Q13","Please check your response numbers for TP06. The total number of responses for TP06 is below what we might expect for this Tenant Perception Measure. We understand that additional responses such as unprompted 'don't know' responses or where the respondent skipped or otherwise refused to answer may account for this. If this is the case we do not need any further information.",null,"Soft",null,{"$f":"OR(AND('Sect 1a - Background'!DP_TSML004=\"LCHO - section 5\",('Sect 5 - TSMs reported for LCHO'!DP_TSML319+'Sect 5 - TSMs reported for LCHO'!DP_TSML320+'Sect 5 - TSMs reported for LCHO'!DP_TSML321+'Sect 5 - TSMs reported for LCHO'!DP_TSML322+'Sect 5 - TSMs reported for LCHO'!DP_TSML323+'Sect 5 - TSMs reported for LCHO'!DP_TSML324)>='Sect 1a - Background'!DP_TSML024*0.5),AND('Sect 1b - Background'!DP_TSML047=\"LCHO - section 5\",('Sect 5 - TSMs reported for LCHO'!DP_TSML319+'Sect 5 - TSMs reported for LCHO'!DP_TSML320+'Sect 5 - TSMs reported for LCHO'!DP_TSML321+'Sect 5 - TSMs reported for LCHO'!DP_TSML322+'Sect 5 - TSMs reported for LCHO'!DP_TSML323+'Sect 5 - TSMs reported for LCHO'!DP_TSML324)>='Sect 1b - Background'!DP_TSML067*0.5),AND('Sect 1a - Background'!DP_TSML004<>\"LCHO - section 5\",('Sect 1b - Background'!DP_TSML047<>\"LCHO - section 5\")))","v":true}]
[null,"V_TSM0548","Sect 1a/1b Q2 and Sect 5 TP07 and Sect 1a/1b Q13","Please check your response numbers for TP07. The total number of responses for TP07 is below what we might expect for this Tenant Perception Measure. We understand that additional responses such as unprompted 'don't know' responses or where the respondent skipped or otherwise refused to answer may account for this. If this is the case we do not need any further information.",null,"Soft",null,{"$f":"OR(AND('Sect 1a - Background'!DP_TSML004=\"LCHO - section 5\",('Sect 5 - TSMs reported for LCHO'!DP_TSML326+'Sect 5 - TSMs reported for LCHO'!DP_TSML327+'Sect 5 - TSMs reported for LCHO'!DP_TSML328+'Sect 5 - TSMs reported for LCHO'!DP_TSML329+'Sect 5 - TSMs reported for LCHO'!DP_TSML330+'Sect 5 - TSMs reported for LCHO'!DP_TSML331)>='Sect 1a - Background'!DP_TSML024*0.5),AND('Sect 1b - Background'!DP_TSML047=\"LCHO - section 5\",('Sect 5 - TSMs reported for LCHO'!DP_TSML326+'Sect 5 - TSMs reported for LCHO'!DP_TSML327+'Sect 5 - TSMs reported for LCHO'!DP_TSML328+'Sect 5 - TSMs reported for LCHO'!DP_TSML329+'Sect 5 - TSMs reported for LCHO'!DP_TSML330+'Sect 5 - TSMs reported for LCHO'!DP_TSML331)>='Sect 1b - Background'!DP_TSML067*0.5),AND('Sect 1a - Background'!DP_TSML004<>\"LCHO - section 5\",('Sect 1b - Background'!DP_TSML047<>\"LCHO - section 5\")))","v":true}]
[null,"V_TSM0549","Sect 1a/1b Q2 and Sect 5 TP08 and Sect 1a/1b Q13","Please check your response numbers for TP08. The total number of responses for TP08 is below what we might expect for this Tenant Perception Measure. We understand that additional responses such as unprompted 'don't know' responses or where the respondent skipped or otherwise refused to answer may account for this. If this is the case we do not need any further information.",null,"Soft",null,{"$f":"OR(AND('Sect 1a - Background'!DP_TSML004=\"LCHO - section 5\",('Sect 5 - TSMs reported for LCHO'!DP_TSML333+'Sect 5 - TSMs reported for LCHO'!DP_TSML334+'Sect 5 - TSMs reported for LCHO'!DP_TSML335+'Sect 5 - TSMs reported for LCHO'!DP_TSML336+'Sect 5 - TSMs reported for LCHO'!DP_TSML337+'Sect 5 - TSMs reported for LCHO'!DP_TSML338)>='Sect 1a - Background'!DP_TSML024*0.5),AND('Sect 1b - Background'!DP_TSML047=\"LCHO - section 5\",('Sect 5 - TSMs reported for LCHO'!DP_TSML333+'Sect 5 - TSMs reported for LCHO'!DP_TSML334+'Sect 5 - TSMs reported for LCHO'!DP_TSML335+'Sect 5 - TSMs reported for LCHO'!DP_TSML336+'Sect 5 - TSMs reported for LCHO'!DP_TSML337+'Sect 5 - TSMs reported for LCHO'!DP_TSML338)>='Sect 1b - Background'!DP_TSML067*0.5),AND('Sect 1a - Background'!DP_TSML004<>\"LCHO - section 5\",('Sect 1b - Background'!DP_TSML047<>\"LCHO - section 5\")))","v":true}]
[null,"V_TSM0550","Sect 1a/1b Q2 and Sect 5 TP09 and Sect 1a/1b Q13","Please check your response numbers for TP09. The total number of responses for TP09 is below what we might expect for this Tenant Perception Measure. We understand that additional responses such as unprompted 'don't know' responses or where the respondent skipped or otherwise refused to answer may account for this. If this is the case we do not need any further information.",null,"Soft",null,{"$f":"OR(AND('Sect 1a - Background'!DP_TSML004=\"LCHO - section 5\",('Sect 5 - TSMs reported for LCHO'!DP_TSML340)>='Sect 1a - Background'!DP_TSML024*0.05),AND('Sect 1b - Background'!DP_TSML047=\"LCHO - section 5\",('Sect 5 - TSMs reported for LCHO'!DP_TSML340)>='Sect 1b - Background'!DP_TSML067*0.05),AND('Sect 1a - Background'!DP_TSML004<>\"LCHO - section 5\",('Sect 1b - Background'!DP_TSML047<>\"LCHO - section 5\")))","v":true}]
[null,"V_TSM0552","Sect 1a/1b Q2 and Sect 5 TP11 and Sect 1a/1b Q13","Please check your response numbers for TP11. The total number of responses for TP11 is below what we might expect for this Tenant Perception Measure. We understand that additional responses such as unprompted 'don't know' responses or where the respondent skipped or otherwise refused to answer may account for this. If this is the case we do not need any further information.",null,"Soft",null,{"$f":"OR(AND('Sect 1a - Background'!DP_TSML004=\"LCHO - section 5\",('Sect 5 - TSMs reported for LCHO'!DP_TSML358+'Sect 5 - TSMs reported for LCHO'!DP_TSML359+'Sect 5 - TSMs reported for LCHO'!DP_TSML360+'Sect 5 - TSMs reported for LCHO'!DP_TSML361+'Sect 5 - TSMs reported for LCHO'!DP_TSML362+'Sect 5 - TSMs reported for LCHO'!DP_TSML363)>='Sect 1a - Background'!DP_TSML024*0.5),AND('Sect 1b - Background'!DP_TSML047=\"LCHO - section 5\",('Sect 5 - TSMs reported for LCHO'!DP_TSML358+'Sect 5 - TSMs reported for LCHO'!DP_TSML359+'Sect 5 - TSMs reported for LCHO'!DP_TSML360+'Sect 5 - TSMs reported for LCHO'!DP_TSML361+'Sect 5 - TSMs reported for LCHO'!DP_TSML362+'Sect 5 - TSMs reported for LCHO'!DP_TSML363)>='Sect 1b - Background'!DP_TSML067*0.5),AND('Sect 1a - Background'!DP_TSML004<>\"LCHO - section 5\",('Sect 1b - Background'!DP_TSML047<>\"LCHO - section 5\")))","v":true}]
[null,"V_TSM0553","Sect 1a/1b Q2 and Sect 5 TP12 and Sect 1a/1b Q13","Please check your response numbers for TP12. The total number of responses for TP12 is below what we might expect for this Tenant Perception Measure. We understand that additional responses such as unprompted 'don't know' responses or where the respondent skipped or otherwise refused to answer may account for this. If this is the case we do not need any further information.",null,"Soft",null,{"$f":"OR(AND('Sect 1a - Background'!DP_TSML004=\"LCHO - section 5\",('Sect 5 - TSMs reported for LCHO'!DP_TSML365+'Sect 5 - TSMs reported for LCHO'!DP_TSML366+'Sect 5 - TSMs reported for LCHO'!DP_TSML367+'Sect 5 - TSMs reported for LCHO'!DP_TSML368+'Sect 5 - TSMs reported for LCHO'!DP_TSML369+'Sect 5 - TSMs reported for LCHO'!DP_TSML370)>='Sect 1a - Background'!DP_TSML024*0.5),AND('Sect 1b - Background'!DP_TSML047=\"LCHO - section 5\",('Sect 5 - TSMs reported for LCHO'!DP_TSML365+'Sect 5 - TSMs reported for LCHO'!DP_TSML366+'Sect 5 - TSMs reported for LCHO'!DP_TSML367+'Sect 5 - TSMs reported for LCHO'!DP_TSML368+'Sect 5 - TSMs reported for LCHO'!DP_TSML369+'Sect 5 - TSMs reported for LCHO'!DP_TSML370)>='Sect 1b - Background'!DP_TSML067*0.5),AND('Sect 1a - Background'!DP_TSML004<>\"LCHO - section 5\",('Sect 1b - Background'!DP_TSML047<>\"LCHO - section 5\")))","v":true}]
[null,"V_TSM0554","Sect 1a/1b Q2 and Sect 6 TP01 and Sect 1a/1b Q13","Please check your response numbers for TP01. The total number of responses for TP01 is below what we might expect for this Tenant Perception Measure. We understand that additional responses such as unprompted 'don't know' responses or where the respondent skipped or otherwise refused to answer may account for this. If this is the case we do not need any further information.",null,"Soft",null,{"$f":"OR(AND('Sect 1a - Background'!DP_TSML004=\"Combined - section 6\",('Sect 6 - TSMs reported Combined'!DP_TSML390+'Sect 6 - TSMs reported Combined'!DP_TSML391+'Sect 6 - TSMs reported Combined'!DP_TSML392+'Sect 6 - TSMs reported Combined'!DP_TSML392+'Sect 6 - TSMs reported Combined'!DP_TSML393+'Sect 6 - TSMs reported Combined'!DP_TSML394)>='Sect 1a - Background'!DP_TSML024*0.9),AND('Sect 1b - Background'!DP_TSML047=\"Combined - section 6\",('Sect 6 - TSMs reported Combined'!DP_TSML390+'Sect 6 - TSMs reported Combined'!DP_TSML391+'Sect 6 - TSMs reported Combined'!DP_TSML392+'Sect 6 - TSMs reported Combined'!DP_TSML392+'Sect 6 - TSMs reported Combined'!DP_TSML393+'Sect 6 - TSMs reported Combined'!DP_TSML394)>='Sect 1b - Background'!DP_TSML067*0.9),AND('Sect 1a - Background'!DP_TSML004<>\"Combined - section 6\",('Sect 1b - Background'!DP_TSML047<>\"Combined - section 6\")))","v":true}]
[null,"V_TSM0555","Sect 1a/1b Q2 and Sect 6 TP02 and Sect 1a/1b Q13","Please check your response numbers for TP02. The total number of responses for TP02 is below what we might expect for this Tenant Perception Measure. We understand that additional responses such as unprompted 'don't know' responses or where the respondent skipped or otherwise refused to answer may account for this. If this is the case we do not need any further information.",null,"Soft",null,{"$f":"OR(AND('Sect 1a - Background'!DP_TSML004=\"Combined - section 6\",('Sect 6 - TSMs reported Combined'!DP_TSML397)>='Sect 1a - Background'!DP_TSML024*0.5),AND('Sect 1b - Background'!DP_TSML047=\"Combined - section 6\",('Sect 6 - TSMs reported Combined'!DP_TSML397)>='Sect 1b - Background'!DP_TSML067*0.5),AND('Sect 1a - Background'!DP_TSML004<>\"Combined - section 6\",('Sect 1b - Background'!DP_TSML047<>\"Combined - section 6\")))","v":true}]
[null,"V_TSM0556","Sect 1a/1b Q2 and Sect 6 TP03 and Sect 1a/1b Q13","Please check your response numbers for TP03. The total number of responses for TP03 is below what we might expect for this Tenant Perception Measure. We understand that additional responses such as unprompted 'don't know' responses or where the respondent skipped or otherwise refused to answer may account for this. If this is the case we do not need any further information.",null,"Soft",null,{"$f":"OR(AND('Sect 1a - Background'!DP_TSML004=\"Combined - section 6\",('Sect 6 - TSMs reported Combined'!DP_TSML406)>='Sect 1a - Background'!DP_TSML024*0.5),AND('Sect 1b - Background'!DP_TSML047=\"Combined - section 6\",('Sect 6 - TSMs reported Combined'!DP_TSML406)>='Sect 1b - Background'!DP_TSML067*0.5),AND('Sect 1a - Background'!DP_TSML004<>\"Combined - section 6\",('Sect 1b - Background'!DP_TSML047<>\"Combined - section 6\")))","v":true}]
[null,"V_TSM0557","Sect 1a/1b Q2 and Sect 6 TP04 and Sect 1a/1b Q13","Please check your response numbers for TP04. The total number of responses for TP04 is below what we might expect for this Tenant Perception Measure. We understand that additional responses such as unprompted 'don't know' responses or where the respondent skipped or otherwise refused to answer may account for this. If this is the case we do not need any further information.",null,"Soft",null,{"$f":"OR(AND('Sect 1a - Background'!DP_TSML004=\"Combined - section 6\",('Sect 6 - TSMs reported Combined'!DP_TSML415+'Sect 6 - TSMs reported Combined'!DP_TSML416+'Sect 6 - TSMs reported Combined'!DP_TSML417+'Sect 6 - TSMs reported Combined'!DP_TSML418+'Sect 6 - TSMs reported Combined'!DP_TSML419)>='Sect 1a - Background'!DP_TSML024*0.5),AND('Sect 1b - Background'!DP_TSML047=\"Combined - section 6\",('Sect 6 - TSMs reported Combined'!DP_TSML415+'Sect 6 - TSMs reported Combined'!DP_TSML416+'Sect 6 - TSMs reported Combined'!DP_TSML417+'Sect 6 - TSMs reported Combined'!DP_TSML418+'Sect 6 - TSMs reported Combined'!DP_TSML419)>='Sect 1b - Background'!DP_TSML067*0.5),AND('Sect 1a - Background'!DP_TSML004<>\"Combined - section 6\",('Sect 1b - Background'!DP_TSML047<>\"Combined - section 6\")))","v":true}]
[null,"V_TSM0558","Sect 1a/1b Q2 and Sect 6 TP05 and Sect 1a/1b Q13","Please check your response numbers for TP05. The total number of responses for TP05 is below what we might expect for this Tenant Perception Measure. We understand that additional responses such as unprompted 'don't know' responses or where the respondent skipped or otherwise refused to answer may account for this. If this is the case we do not need any further information.",null,"Soft",null,{"$f":"OR(AND('Sect 1a - Background'!DP_TSML004=\"Combined - section 6\",('Sect 6 - TSMs reported Combined'!DP_TSML422+'Sect 6 - TSMs reported Combined'!DP_TSML423+'Sect 6 - TSMs reported Combined'!DP_TSML424+'Sect 6 - TSMs reported Combined'!DP_TSML425+'Sect 6 - TSMs reported Combined'!DP_TSML426+'Sect 6 - TSMs reported Combined'!DP_TSML427)>='Sect 1a - Background'!DP_TSML024*0.5),AND('Sect 1b - Background'!DP_TSML047=\"Combined - section 6\",('Sect 6 - TSMs reported Combined'!DP_TSML422+'Sect 6 - TSMs reported Combined'!DP_TSML423+'Sect 6 - TSMs reported Combined'!DP_TSML424+'Sect 6 - TSMs reported Combined'!DP_TSML425+'Sect 6 - TSMs reported Combined'!DP_TSML426+'Sect 6 - TSMs reported Combined'!DP_TSML427)>='Sect 1b - Background'!DP_TSML067*0.5),AND('Sect 1a - Background'!DP_TSML004<>\"Combined - section 6\",('Sect 1b - Background'!DP_TSML047<>\"Combined - section 6\")))","v":true}]
[null,"V_TSM0559","Sect 1a/1b Q2 and Sect 6 TP06 and Sect 1a/1b Q13","Please check your response numbers for TP06. The total number of responses for TP06 is below what we might expect for this Tenant Perception Measure. We understand that additional responses such as unprompted 'don't know' responses or where the respondent skipped or otherwise refused to answer may account for this. If this is the case we do not need any further information.",null,"Soft",null,{"$f":"OR(AND('Sect 1a - Background'!DP_TSML004=\"Combined - section 6\",('Sect 6 - TSMs reported Combined'!DP_TSML429+'Sect 6 - TSMs reported Combined'!DP_TSML430+'Sect 6 - TSMs reported Combined'!DP_TSML431+'Sect 6 - TSMs reported Combined'!DP_TSML432+'Sect 6 - TSMs reported Combined'!DP_TSML433+'Sect 6 - TSMs reported Combined'!DP_TSML434)>='Sect 1a - Background'!DP_TSML024*0.5),AND('Sect 1b - Background'!DP_TSML047=\"Combined - section 6\",('Sect 6 - TSMs reported Combined'!DP_TSML429+'Sect 6 - TSMs reported Combined'!DP_TSML430+'Sect 6 - TSMs reported Combined'!DP_TSML431+'Sect 6 - TSMs reported Combined'!DP_TSML432+'Sect 6 - TSMs reported Combined'!DP_TSML433+'Sect 6 - TSMs reported Combined'!DP_TSML434)>='Sect 1b - Background'!DP_TSML067*0.5),AND('Sect 1a - Background'!DP_TSML004<>\"Combined - section 6\",('Sect 1b - Background'!DP_TSML047<>\"Combined - section 6\")))","v":true}]
[null,"V_TSM0560","Sect 1a/1b Q2 and Sect 6 TP07 and Sect 1a/1b Q13","Please check your response numbers for TP07. The total number of responses for TP07 is below what we might expect for this Tenant Perception Measure. We understand that additional responses such as unprompted 'don't know' responses or where the respondent skipped or otherwise refused to answer may account for this. If this is the case we do not need any further information.",null,"Soft",null,{"$f":"OR(AND('Sect 1a - Background'!DP_TSML004=\"Combined - section 6\",('Sect 6 - TSMs reported Combined'!DP_TSML436+'Sect 6 - TSMs reported Combined'!DP_TSML437+'Sect 6 - TSMs reported Combined'!DP_TSML438+'Sect 6 - TSMs reported Combined'!DP_TSML439+'Sect 6 - TSMs reported Combined'!DP_TSML440+'Sect 6 - TSMs reported Combined'!DP_TSML441)>='Sect 1a - Background'!DP_TSML024*0.5),AND('Sect 1b - Background'!DP_TSML047=\"Combined - section 6\",('Sect 6 - TSMs reported Combined'!DP_TSML436+'Sect 6 - TSMs reported Combined'!DP_TSML437+'Sect 6 - TSMs reported Combined'!DP_TSML438+'Sect 6 - TSMs reported Combined'!DP_TSML439+'Sect 6 - TSMs reported Combined'!DP_TSML440+'Sect 6 - TSMs reported Combined'!DP_TSML441)>='Sect 1b - Background'!DP_TSML067*0.5),AND('Sect 1a - Background'!DP_TSML004<>\"Combined - section 6\",('Sect 1b - Background'!DP_TSML047<>\"Combined - section 6\")))","v":true}]
[null,"V_TSM0561","Sect 1a/1b Q2 and Sect 6 TP08 and Sect 1a/1b Q13","Please check your response numbers for TP08. The total number of responses for TP08 is below what we might expect for this Tenant Perception Measure. We understand that additional responses such as unprompted 'don't know' responses or where the respondent skipped or otherwise refused to answer may account for this. If this is the case we do not need any further information.",null,"Soft",null,{"$f":"OR(AND('Sect 1a - Background'!DP_TSML004=\"Combined - section 6\",('Sect 6 - TSMs reported Combined'!DP_TSML443+'Sect 6 - TSMs reported Combined'!DP_TSML444+'Sect 6 - TSMs reported Combined'!DP_TSML445+'Sect 6 - TSMs reported Combined'!DP_TSML446+'Sect 6 - TSMs reported Combined'!DP_TSML447+'Sect 6 - TSMs reported Combined'!DP_TSML448)>='Sect 1a - Background'!DP_TSML024*0.5),AND('Sect 1b - Background'!DP_TSML047=\"Combined - section 6\",('Sect 6 - TSMs reported Combined'!DP_TSML443+'Sect 6 - TSMs reported Combined'!DP_TSML444+'Sect 6 - TSMs reported Combined'!DP_TSML445+'Sect 6 - TSMs reported Combined'!DP_TSML446+'Sect 6 - TSMs reported Combined'!DP_TSML447+'Sect 6 - TSMs reported Combined'!DP_TSML448)>='Sect 1b - Background'!DP_TSML067*0.5),AND('Sect 1a - Background'!DP_TSML004<>\"Combined - section 6\",('Sect 1b - Background'!DP_TSML047<>\"Combined - section 6\")))","v":true}]
[null,"V_TSM0562","Sect 1a/1b Q2 and Sect 6 TP09 and Sect 1a/1b Q13","Please check your response numbers for TP09. The total number of responses for TP09 is below what we might expect for this Tenant Perception Measure. We understand that additional responses such as unprompted 'don't know' responses or where the respondent skipped or otherwise refused to answer may account for this. If this is the case we do not need any further information.",null,"Soft",null,{"$f":"OR(AND('Sect 1a - Background'!DP_TSML004=\"Combined - section 6\",('Sect 6 - TSMs reported Combined'!DP_TSML450)>='Sect 1a - Background'!DP_TSML024*0.5),AND('Sect 1b - Background'!DP_TSML047=\"Combined - section 6\",('Sect 6 - TSMs reported Combined'!DP_TSML450)>='Sect 1b - Background'!DP_TSML067*0.5),AND('Sect 1a - Background'!DP_TSML004<>\"Combined - section 6\",('Sect 1b - Background'!DP_TSML047<>\"Combined - section 6\")))","v":true}]
[null,"V_TSM0564","Sect 1a/1b Q2 and Sect 6 TP11 and Sect 1a/1b Q13","Please check your response numbers for TP11. The total number of responses for TP11 is below what we might expect for this Tenant Perception Measure. We understand that additional responses such as unprompted 'don't know' responses or where the respondent skipped or otherwise refused to answer may account for this. If this is the case we do not need any further information.",null,"Soft",null,{"$f":"OR(AND('Sect 1a - Background'!DP_TSML004=\"Combined - section 6\",('Sect 6 - TSMs reported Combined'!DP_TSML468+'Sect 6 - TSMs reported Combined'!DP_TSML469+'Sect 6 - TSMs reported Combined'!DP_TSML470+'Sect 6 - TSMs reported Combined'!DP_TSML471+'Sect 6 - TSMs reported Combined'!DP_TSML472+'Sect 6 - TSMs reported Combined'!DP_TSML473)>='Sect 1a - Background'!DP_TSML024*0.5),AND('Sect 1b - Background'!DP_TSML047=\"Combined - section 6\",('Sect 6 - TSMs reported Combined'!DP_TSML468+'Sect 6 - TSMs reported Combined'!DP_TSML469+'Sect 6 - TSMs reported Combined'!DP_TSML470+'Sect 6 - TSMs reported Combined'!DP_TSML471+'Sect 6 - TSMs reported Combined'!DP_TSML472+'Sect 6 - TSMs reported Combined'!DP_TSML473)>='Sect 1b - Background'!DP_TSML067*0.5),AND('Sect 1a - Background'!DP_TSML004<>\"Combined - section 6\",('Sect 1b - Background'!DP_TSML047<>\"Combined - section 6\")))","v":true}]
[null,"V_TSM0565","Sect 1a/1b Q2 and Sect 6 TP12 and Sect 1a/1b Q13","Please check your response numbers for TP12. The total number of responses for TP12 is below what we might expect for this Tenant Perception Measure. We understand that additional responses such as unprompted 'don't know' responses or where the respondent skipped or otherwise refused to answer may account for this. If this is the case we do not need any further information.",null,"Soft",null,{"$f":"OR(AND('Sect 1a - Background'!DP_TSML004=\"Combined - section 6\",('Sect 6 - TSMs reported Combined'!DP_TSML475+'Sect 6 - TSMs reported Combined'!DP_TSML476+'Sect 6 - TSMs reported Combined'!DP_TSML477+'Sect 6 - TSMs reported Combined'!DP_TSML478+'Sect 6 - TSMs reported Combined'!DP_TSML479+'Sect 6 - TSMs reported Combined'!DP_TSML480)>='Sect 1a - Background'!DP_TSML024*0.5),AND('Sect 1b - Background'!DP_TSML047=\"Combined - section 6\",('Sect 6 - TSMs reported Combined'!DP_TSML475+'Sect 6 - TSMs reported Combined'!DP_TSML476+'Sect 6 - TSMs reported Combined'!DP_TSML477+'Sect 6 - TSMs reported Combined'!DP_TSML478+'Sect 6 - TSMs reported Combined'!DP_TSML479+'Sect 6 - TSMs reported Combined'!DP_TSML480)>='Sect 1b - Background'!DP_TSML067*0.5),AND('Sect 1a - Background'!DP_TSML004<>\"Combined - section 6\",('Sect 1b - Background'!DP_TSML047<>\"Combined - section 6\")))","v":true}]
[null,"V_TSM0566","Sect 2 Q4a L1 C3 range","The value entered for Section 2 Q4a Line 1, Column 3 must be between 0 and 100.",null,"Hard",null,{"$f":"AND('Sect 2 - Published TSMs'!DP_TSML087>=0,'Sect 2 - Published TSMs'!DP_TSML087<=100)","v":true}]
[null,"V_TSM0567","Sect 2 Q4a L2 C3 range","The value entered for Section 2 Q4a Line 2, Column 3 must be between 0 and 100.",null,"Hard",null,{"$f":"AND('Sect 2 - Published TSMs'!DP_TSML088>=0,'Sect 2 - Published TSMs'!DP_TSML088<=100)","v":true}]
[null,"V_TSM0568","Sect 2 Q4a L3 C3 range","The value entered for Section 2 Q4a Line 3, Column 3 must be between 0 and 100.",null,"Hard",null,{"$f":"AND('Sect 2 - Published TSMs'!DP_TSML089>=0,'Sect 2 - Published TSMs'!DP_TSML089<=100)","v":true}]
[null,"V_TSM0569","Sect 2 Q4a L4 C3 range","The value entered for Section 2 Q4a Line 4, Column 3 must be between 0 and 100.",null,"Hard",null,{"$f":"AND('Sect 2 - Published TSMs'!DP_TSML090>=0,'Sect 2 - Published TSMs'!DP_TSML090<=100)","v":true}]
[null,"V_TSM0570","Sect 2 Q4a L5 C3 range","The value entered for Section 2 Q4a Line 5, Column 3 must be between 0 and 100.",null,"Hard",null,{"$f":"AND('Sect 2 - Published TSMs'!DP_TSML091>=0,'Sect 2 - Published TSMs'!DP_TSML091<=100)","v":true}]
[null,"V_TSM0571","Sect 2 Q4b L2","The value entered for Section 2 Q4b Line 2 must be less than or equal to the value in Section 2 Q4b Line 1",null,"Hard",null,{"$f":"'Sect 2 - Published TSMs'!DP_TSML093<='Sect 2 - Published TSMs'!DP_TSML092","v":true}]
[null,"V_TSM0572","Sect 2 Q4c L1 C1 range","The value entered for Section 2 Q4c Line 1, Column 1 must be between 0 and 100.",null,"Hard",null,{"$f":"AND('Sect 2 - Published TSMs'!DP_TSML094>=0,'Sect 2 - Published TSMs'!DP_TSML094<=100)","v":true}]
[null,"V_TSM0573","Sect 2 Q4c L2 C1 range","The value entered for Section 2 Q4c Line 2, Column 1 must be between 0 and 100.",null,"Hard",null,{"$f":"AND('Sect 2 - Published TSMs'!DP_TSML095>=0,'Sect 2 - Published TSMs'!DP_TSML095<=100)","v":true}]
[null,"V_TSM0574","Sect 2 Q4c L3 C1 range","The value entered for Section 2 Q4c Line 3, Column 3 must be between 0 and 100.",null,"Hard",null,{"$f":"AND('Sect 2 - Published TSMs'!DP_TSML096>=0,'Sect 2 - Published TSMs'!DP_TSML096<=100)","v":true}]
[null,"V_TSM0575","Sect 2 Q4d L3 C1 range","The value entered for Section 2 Q4d Line 3, Column 1 must be between 0 and 100.",null,"Hard",null,{"$f":"AND('Sect 2 - Published TSMs'!DP_TSML103>=0,'Sect 2 - Published TSMs'!DP_TSML103<=100)","v":true}]
[null,"V_TSM0576","Sect 2 Q4d L3 C2 range","The value entered for Section 2 Q4d Line 3, Column 2 must be between 0 and 100.",null,"Hard",null,{"$f":"AND('Sect 2 - Published TSMs'!DP_TSML104>=0,'Sect 2 - Published TSMs'!DP_TSML104<=100)","v":true}]
[null,"V_TSM0577","Sect 2 Q4d L3 C3 range","The value entered for Section 2 Q4d Line 3, Column 3 must be between 0 and 100.",null,"Hard",null,{"$f":"AND('Sect 2 - Published TSMs'!DP_TSML105>=0,'Sect 2 - Published TSMs'!DP_TSML105<=100)","v":true}]
[null,"V_TSM0578","Sect 2 Q4d L4 C1 range","The value entered for Section 2 Q4d Line 4, Column 1 must be between 0 and 100.",null,"Hard",null,{"$f":"AND('Sect 2 - Published TSMs'!DP_TSML106>=0,'Sect 2 - Published TSMs'!DP_TSML106<=100)","v":true}]
[null,"V_TSM0579","Sect 2 Q4d L4 C2 range","The value entered for Section 2 Q4d Line 4, Column 2 must be between 0 and 100.",null,"Hard",null,{"$f":"AND('Sect 2 - Published TSMs'!DP_TSML107>=0,'Sect 2 - Published TSMs'!DP_TSML107<=100)","v":true}]
[null,"V_TSM0580","Sect 2 Q4d L4 C3 range","The value entered for Section 2 Q4d Line 4, Column 3 must be between 0 and 100.",null,"Hard",null,{"$f":"AND('Sect 2 - Published TSMs'!DP_TSML108>=0,'Sect 2 - Published TSMs'!DP_TSML108<=100)","v":true}]
[null,"V_TSM0581","Sect 2 Q4e L1 C1 range","The value entered for Section 2 Q4e Line 1 (TP01), Column 1 must be between 0 and 100.",null,"Hard",null,{"$f":"AND('Sect 2 - Published TSMs'!DP_TSML109>=0,'Sect 2 - Published TSMs'!DP_TSML109<=100)","v":true}]
[null,"V_TSM0582","Sect 2 Q4e L1 C2 range","The value entered for Section 2 Q4e Line 1 (TP01), Column 2 must be between 0 and 100.",null,"Hard",null,{"$f":"AND('Sect 2 - Published TSMs'!DP_TSML110>=0,'Sect 2 - Published TSMs'!DP_TSML110<=100)","v":true}]
[null,"V_TSM0583","Sect 2 Q4e L1 C3 range","The value entered for Section 2 Q4e Line 1 (TP01), Column 3 must be between 0 and 100.",null,"Hard",null,{"$f":"AND('Sect 2 - Published TSMs'!DP_TSML111>=0,'Sect 2 - Published TSMs'!DP_TSML111<=100)","v":true}]
[null,"V_TSM0584","Sect 2 Q4e L2 C1 range","The value entered for Section 2 Q4e Line 2 (TP02), Column 1 must be between 0 and 100.",null,"Hard",null,{"$f":"AND('Sect 2 - Published TSMs'!DP_TSML112>=0,'Sect 2 - Published TSMs'!DP_TSML112<=100)","v":true}]
[null,"V_TSM0585","Sect 2 Q4e L2 C3 range","The value entered for Section 2 Q4e Line 2 (TP02), Column 3 must be between 0 and 100.",null,"Hard",null,{"$f":"AND('Sect 2 - Published TSMs'!DP_TSML113>=0,'Sect 2 - Published TSMs'!DP_TSML113<=100)","v":true}]
[null,"V_TSM0586","Sect 2 Q4e L3 C1 range","The value entered for Section 2 Q4e Line 3 (TP03), Column 1 must be between 0 and 100.",null,"Hard",null,{"$f":"AND('Sect 2 - Published TSMs'!DP_TSML114>=0,'Sect 2 - Published TSMs'!DP_TSML114<=100)","v":true}]
[null,"V_TSM0587","Sect 2 Q4e L3 C3 range","The value entered for Section 2 Q4e Line 3 (TP03), Column 3 must be between 0 and 100.",null,"Hard",null,{"$f":"AND('Sect 2 - Published TSMs'!DP_TSML115>=0,'Sect 2 - Published TSMs'!DP_TSML115<=100)","v":true}]
[null,"V_TSM0588","Sect 2 Q4e L4 C1 range","The value entered for Section 2 Q4e Line 4 (TP04), Column 1 must be between 0 and 100.",null,"Hard",null,{"$f":"AND('Sect 2 - Published TSMs'!DP_TSML116>=0,'Sect 2 - Published TSMs'!DP_TSML116<=100)","v":true}]
[null,"V_TSM0589","Sect 2 Q4e L4 C3 range","The value entered for Section 2 Q4e Line 4 (TP04), Column 3 must be between 0 and 100.",null,"Hard",null,{"$f":"AND('Sect 2 - Published TSMs'!DP_TSML117>=0,'Sect 2 - Published TSMs'!DP_TSML117<=100)","v":true}]
[null,"V_TSM0590","Sect 2 Q4e L5 C1 range","The value entered for Section 2 Q4e Line 5 (TP05), Column 1 must be between 0 and 100.",null,"Hard",null,{"$f":"AND('Sect 2 - Published TSMs'!DP_TSML118>=0,'Sect 2 - Published TSMs'!DP_TSML118<=100)","v":true}]
[null,"V_TSM0591","Sect 2 Q4e L5 C2 range","The value entered for Section 2 Q4e Line 5 (TP05), Column 2 must be between 0 and 100.",null,"Hard",null,{"$f":"AND('Sect 2 - Published TSMs'!DP_TSML119>=0,'Sect 2 - Published TSMs'!DP_TSML119<=100)","v":true}]
[null,"V_TSM0592","Sect 2 Q4e L5 C3 range","The value entered for Section 2 Q4e Line 5 (TP05), Column 3 must be between 0 and 100.",null,"Hard",null,{"$f":"AND('Sect 2 - Published TSMs'!DP_TSML120>=0,'Sect 2 - Published TSMs'!DP_TSML120<=100)","v":true}]
[null,"V_TSM0593","Sect 2 Q4e L6 C1 range","The value entered for Section 2 Q4e Line 6 (TP06), Column 1 must be between 0 and 100.",null,"Hard",null,{"$f":"AND('Sect 2 - Published TSMs'!DP_TSML121>=0,'Sect 2 - Published TSMs'!DP_TSML121<=100)","v":true}]
[null,"V_TSM0594","Sect 2 Q4e L6 C2 range","The value entered for Section 2 Q4e Line 6 (TP06), Column 2 must be between 0 and 100.",null,"Hard",null,{"$f":"AND('Sect 2 - Published TSMs'!DP_TSML122>=0,'Sect 2 - Published TSMs'!DP_TSML122<=100)","v":true}]
[null,"V_TSM0595","Sect 2 Q4e L6 C3 range","The value entered for Section 2 Q4e Line 6 (TP06), Column 3 must be between 0 and 100.",null,"Hard",null,{"$f":"AND('Sect 2 - Published TSMs'!DP_TSML123>=0,'Sect 2 - Published TSMs'!DP_TSML123<=100)","v":true}]
[null,"V_TSM0596","Sect 2 Q4e L7 C1 range","The value entered for Section 2 Q4e Line 7 (TP07), Column 1 must be between 0 and 100.",null,"Hard",null,{"$f":"AND('Sect 2 - Published TSMs'!DP_TSML124>=0,'Sect 2 - Published TSMs'!DP_TSML124<=100)","v":true}]
[null,"V_TSM0597","Sect 2 Q4e L7 C2 range","The value entered for Section 2 Q4e Line 7 (TP07), Column 2 must be between 0 and 100.",null,"Hard",null,{"$f":"AND('Sect 2 - Published TSMs'!DP_TSML125>=0,'Sect 2 - Published TSMs'!DP_TSML125<=100)","v":true}]
[null,"V_TSM0598","Sect 2 Q4e L7 C3 range","The value entered for Section 2 Q4e Line 7 (TP07), Column 3 must be between 0 and 100.",null,"Hard",null,{"$f":"AND('Sect 2 - Published TSMs'!DP_TSML126>=0,'Sect 2 - Published TSMs'!DP_TSML126<=100)","v":true}]
[null,"V_TSM0599","Sect 2 Q4e L8 C1 range","The value entered for Section 2 Q4e Line 8 (TP08), Column 1 must be between 0 and 100.",null,"Hard",null,{"$f":"AND('Sect 2 - Published TSMs'!DP_TSML127>=0,'Sect 2 - Published TSMs'!DP_TSML127<=100)","v":true}]
[null,"V_TSM0600","Sect 2 Q4e L8 C2 range","The value entered for Section 2 Q4e Line 8 (TP08), Column 2 must be between 0 and 100.",null,"Hard",null,{"$f":"AND('Sect 2 - Published TSMs'!DP_TSML128>=0,'Sect 2 - Published TSMs'!DP_TSML128<=100)","v":true}]
[null,"V_TSM0601","Sect 2 Q4e L8 C3 range","The value entered for Section 2 Q4e Line 8 (TP08), Column 3 must be between 0 and 100.",null,"Hard",null,{"$f":"AND('Sect 2 - Published TSMs'!DP_TSML129>=0,'Sect 2 - Published TSMs'!DP_TSML129<=100)","v":true}]
[null,"V_TSM0602","Sect 2 Q4e L9 C1 range","The value entered for Section 2 Q4e Line 9 (TP09), Column 1 must be between 0 and 100.",null,"Hard",null,{"$f":"AND('Sect 2 - Published TSMs'!DP_TSML130>=0,'Sect 2 - Published TSMs'!DP_TSML130<=100)","v":true}]
[null,"V_TSM0603","Sect 2 Q4e L9 C2 range","The value entered for Section 2 Q4e Line 9 (TP09), Column 2 must be between 0 and 100.",null,"Hard",null,{"$f":"AND('Sect 2 - Published TSMs'!DP_TSML131>=0,'Sect 2 - Published TSMs'!DP_TSML131<=100)","v":true}]
[null,"V_TSM0604","Sect 2 Q4e L9 C3 range","The value entered for Section 2 Q4e Line 9 (TP09), Column 3 must be between 0 and 100.",null,"Hard",null,{"$f":"AND('Sect 2 - Published TSMs'!DP_TSML132>=0,'Sect 2 - Published TSMs'!DP_TSML132<=100)","v":true}]
[null,"V_TSM0605","Sect 2 Q4e L10 C1 range","The value entered for Section 2 Q4e Line 10 (TP010), Column 1 must be between 0 and 100.",null,"Hard",null,{"$f":"AND('Sect 2 - Published TSMs'!DP_TSML133>=0,'Sect 2 - Published TSMs'!DP_TSML133<=100)","v":true}]
[null,"V_TSM0606","Sect 2 Q4e L10 C2 range","The value entered for Section 2 Q4e Line 10 (TP010), Column 2 must be between 0 and 100.",null,"Hard",null,{"$f":"AND('Sect 2 - Published TSMs'!DP_TSML134>=0,'Sect 2 - Published TSMs'!DP_TSML134<=100)","v":true}]
[null,"V_TSM0607","Sect 2 Q4e L10 C3 range","The value entered for Section 2 Q4e Line 10 (TP010), Column 3 must be between 0 and 100.",null,"Hard",null,{"$f":"AND('Sect 2 - Published TSMs'!DP_TSML135>=0,'Sect 2 - Published TSMs'!DP_TSML135<=100)","v":true}]
[null,"V_TSM0608","Sect 2 Q4e L11 C1 range","The value entered for Section 2 Q4e Line 11 (TP011), Column 1 must be between 0 and 100.",null,"Hard",null,{"$f":"AND('Sect 2 - Published TSMs'!DP_TSML136>=0,'Sect 2 - Published TSMs'!DP_TSML136<=100)","v":true}]
[null,"V_TSM0609","Sect 2 Q4e L11 C2 range","The value entered for Section 2 Q4e Line 11 (TP011), Column 2 must be between 0 and 100.",null,"Hard",null,{"$f":"AND('Sect 2 - Published TSMs'!DP_TSML137>=0,'Sect 2 - Published TSMs'!DP_TSML137<=100)","v":true}]
[null,"V_TSM0610","Sect 2 Q4e L11 C3 range","The value entered for Section 2 Q4e Line 11 (TP011), Column 3 must be between 0 and 100.",null,"Hard",null,{"$f":"AND('Sect 2 - Published TSMs'!DP_TSML138>=0,'Sect 2 - Published TSMs'!DP_TSML138<=100)","v":true}]
[null,"V_TSM0611","Sect 2 Q4e L12 C1 range","The value entered for Section 2 Q4e Line 12 (TP012), Column 1 must be between 0 and 100.",null,"Hard",null,{"$f":"AND('Sect 2 - Published TSMs'!DP_TSML139>=0,'Sect 2 - Published TSMs'!DP_TSML139<=100)","v":true}]
[null,"V_TSM0612","Sect 2 Q4e L12 C2 range","The value entered for Section 2 Q4e Line 12 (TP012), Column 2 must be between 0 and 100.",null,"Hard",null,{"$f":"AND('Sect 2 - Published TSMs'!DP_TSML140>=0,'Sect 2 - Published TSMs'!DP_TSML140<=100)","v":true}]
[null,"V_TSM0613","Sect 2 Q4e L12 C3 range","The value entered for Section 2 Q4e Line 12 (TP012), Column 3 must be between 0 and 100.",null,"Hard",null,{"$f":"AND('Sect 2 - Published TSMs'!DP_TSML141>=0,'Sect 2 - Published TSMs'!DP_TSML141<=100)","v":true}]
[null,"V_TSM0614","Sect 3 Q3 L2 C2","The value entered for Section 3 Q3 Line 2, Column 2 must be less than or equal to the value in Section 3 Q3 Line 1, Column 2.",null,"Hard",null,{"$f":"'Sect 3 - TSMs reported by all'!DP_TSML161<='Sect 3 - TSMs reported by all'!DP_TSML158","v":true}]
[null,"V_TSM0615","Sect 3 Q3 L2 C3","The value entered for Section 3 Q3 Line 2, Column 3 must be less than or equal to the value in Section 3 Q3 Line 1, Column 3.",null,"Hard",null,{"$f":"'Sect 3 - TSMs reported by all'!DP_TSML162<='Sect 3 - TSMs reported by all'!DP_TSML159","v":true}]
[null,"V_TSM0616","Sect 3 Q1b Confirm upload of supporting document","If the response to Sect 3 Q1a is 'No', then please complete Sect 3 Q1b. If the response to Q1a is 'Yes', then leave Q1b blank.",null,"Hard",null,{"$f":"OR(AND('Sect 3 - TSMs reported by all'!DP_TSML504=\"Yes\",ISBLANK('Sect 3 - TSMs reported by all'!DP_TSML505)=TRUE),AND('Sect 3 - TSMs reported by all'!DP_TSML504=\"No\",ISBLANK('Sect 3 - TSMs reported by all'!DP_TSML505)=FALSE))","v":true}]
[null,"V_TSM0617","Sect 2 Q1 and Q2a","Section 2 Q2a must be completed if Q1 is Yes. Otherwise this question must be left blank.",null,"Hard",null,{"$f":"OR(AND('Sect 2 - Published TSMs'!DP_TSML492=\"Yes\",ISBLANK('Sect 2 - Published TSMs'!DP_TSML493)=FALSE),AND('Sect 2 - Published TSMs'!DP_TSML492=\"No\",ISBLANK('Sect 2 - Published TSMs'!DP_TSML493)=TRUE))","v":true}]
[null,"V_TSM0618","Sect 2 Q1 and Q2b","Section 2 Q2b must be completed if Q1 is Yes. Otherwise this question must be left blank.",null,"Hard",null,{"$f":"OR(AND('Sect 2 - Published TSMs'!DP_TSML492=\"Yes\",ISBLANK('Sect 2 - Published TSMs'!DP_TSML494)=FALSE),AND('Sect 2 - Published TSMs'!DP_TSML492=\"No\",ISBLANK('Sect 2 - Published TSMs'!DP_TSML494)=TRUE))","v":true}]
[null,"V_TSM0619","Sect 2 Q2bi","Section 2 Q2bi must be completed if Q2b is Yes. Otherwise this question must be left blank.",null,"Hard",null,{"$f":"OR(AND('Sect 2 - Published TSMs'!DP_TSML494=\"Yes\",ISBLANK('Sect 2 - Published TSMs'!DP_TSML495)=FALSE),AND('Sect 2 - Published TSMs'!DP_TSML494<>\"Yes\",ISBLANK('Sect 2 - Published TSMs'!DP_TSML495)=TRUE))","v":false}]
[null,"V_TSM0620","Sect 2 Q2c","Section 2 Q2c must be completed if Q2b is No. Otherwise this question must be left blank.",null,"Hard",null,{"$f":"OR(AND('Sect 2 - Published TSMs'!DP_TSML494=\"No\",ISBLANK('Sect 2 - Published TSMs'!DP_TSML496)=FALSE),AND('Sect 2 - Published TSMs'!DP_TSML494<>\"No\",ISBLANK('Sect 2 - Published TSMs'!DP_TSML496)=TRUE))","v":true}]
[null,"V_TSM0621","Sect 2 Q2ci","Section 2 Q2ci must be completed if Q2b is No. Otherwise this question must be left blank.",null,"Hard",null,{"$f":"OR(AND('Sect 2 - Published TSMs'!DP_TSML494=\"No\",ISBLANK('Sect 2 - Published TSMs'!DP_TSML497)=FALSE),AND('Sect 2 - Published TSMs'!DP_TSML494<>\"No\",ISBLANK('Sect 2 - Published TSMs'!DP_TSML497)=TRUE))","v":true}]
[null,"V_TSM0622","Sect 2 Q1 and Q3a","Section 2 Q3a must be completed if Q1 is No. Otherwise this question must be left blank.",null,"Hard",null,{"$f":"OR(AND('Sect 2 - Published TSMs'!DP_TSML492=\"No\",ISBLANK('Sect 2 - Published TSMs'!DP_TSML498)=FALSE),AND('Sect 2 - Published TSMs'!DP_TSML492=\"Yes\",ISBLANK('Sect 2 - Published TSMs'!DP_TSML498)=TRUE))","v":true}]
[null,"V_TSM0623","Sect 2 Q1 and Q3b","Section 2 Q3b must be completed if Q1 is No. Otherwise this question must be left blank.",null,"Hard",null,{"$f":"OR(AND('Sect 2 - Published TSMs'!DP_TSML492=\"No\",ISBLANK('Sect 2 - Published TSMs'!DP_TSML499)=FALSE),AND('Sect 2 - Published TSMs'!DP_TSML492=\"Yes\",ISBLANK('Sect 2 - Published TSMs'!DP_TSML499)=TRUE))","v":true}]
[null,"V_TSM0624","Sect 2 Q3bi","Section 2 Q3bi must be completed if Q3b is Yes. Otherwise this question must be left blank.",null,"Hard",null,{"$f":"OR(AND('Sect 2 - Published TSMs'!DP_TSML499=\"Yes\",ISBLANK('Sect 2 - Published TSMs'!DP_TSML500)=FALSE),AND('Sect 2 - Published TSMs'!DP_TSML499<>\"Yes\",ISBLANK('Sect 2 - Published TSMs'!DP_TSML500)=TRUE))","v":false}]
[null,"V_TSM0625","Sect 2 Q3bii","Section 2 Q3bii must be completed if Q3b is Yes. Otherwise this question must be left blank.",null,"Hard",null,{"$f":"OR(AND('Sect 2 - Published TSMs'!DP_TSML499=\"Yes\",ISBLANK('Sect 2 - Published TSMs'!DP_TSML501)=FALSE),AND('Sect 2 - Published TSMs'!DP_TSML499<>\"Yes\",ISBLANK('Sect 2 - Published TSMs'!DP_TSML501)=TRUE))","v":true}]
[null,"V_TSM0626","Sect 2 Q3c","Section 2 Q3c must be completed if Q3b is No. Otherwise this question must be left blank.",null,"Hard",null,{"$f":"OR(AND('Sect 2 - Published TSMs'!DP_TSML499=\"No\",ISBLANK('Sect 2 - Published TSMs'!DP_TSML502)=FALSE),AND('Sect 2 - Published TSMs'!DP_TSML499<>\"No\",ISBLANK('Sect 2 - Published TSMs'!DP_TSML502)=TRUE))","v":true}]
[null,"V_TSM0627","Sect 2 Q3ci","Section 2 Q3ci must be completed if Q3b is No. Otherwise this question must be left blank.",null,"Hard",null,{"$f":"OR(AND('Sect 2 - Published TSMs'!DP_TSML499=\"No\",ISBLANK('Sect 2 - Published TSMs'!DP_TSML503)=FALSE),AND('Sect 2 - Published TSMs'!DP_TSML499<>\"No\",ISBLANK('Sect 2 - Published TSMs'!DP_TSML503)=TRUE))","v":true}]
[null,"V_TSM0628","Sect 3 Q2 BS01","The value reported in Sect 3 Q2 BS01 is less than 95%. Please check this figure prior to submission and upload any supporting information you would like the RSH to consider in relation to your reported BS01 TSM",null,"Soft",null,{"$f":"'Sect 3 - TSMs reported by all'!DP_TSML142>=95","v":true}]
[null,"V_TSM0629","Sect 3 Q2 BS02","The value reported in Sect 3 Q2 BS02 is less than 95%. Please check this figure prior to submission and upload any supporting information you would like the RSH to consider in relation to your reported BS02 TSM",null,"Soft",null,{"$f":"'Sect 3 - TSMs reported by all'!DP_TSML145>=95","v":true}]
[null,"V_TSM0630","Sect 3 Q2 BS03","The value reported in Sect 3 Q2 BS03 is less than 95%. Please check this figure prior to submission and upload any supporting information you would like the RSH to consider in relation to your reported BS03 TSM",null,"Soft",null,{"$f":"'Sect 3 - TSMs reported by all'!DP_TSML148>=95","v":true}]
[null,"V_TSM0631","Sect 3 Q2 BS04","The value reported in Sect 3 Q2 BS04 is less than 95%. Please check this figure prior to submission and upload any supporting information you would like the RSH to consider in relation to your reported BS04 TSM",null,"Soft",null,{"$f":"'Sect 3 - TSMs reported by all'!DP_TSML151>=95","v":false}]
[null,"V_TSM0632","Sect 3 Q2 BS05","The value reported in Sect 3 Q2 BS05 is less than 95%. Please check this figure prior to submission and upload any supporting information you would like the RSH to consider in relation to your reported BS05 TSM",null,"Soft",null,{"$f":"'Sect 3 - TSMs reported by all'!DP_TSML154>=95","v":true}]
[null,"V_TSM0633","Sect 2 Q1b","Section 2 Q1b should be completed if If there are any TSMs where it was not possible (or will not be possible) to publish the results. Otherwise this question can be left blank.",null,"Soft",null,{"$f":"ISBLANK('Sect 2 - Published TSMs'!DP_TSML506)=FALSE","v":true}]

{"sheet":"Lists","index":10,"n_rows":14,"n_cols":8,"rows_kept":14,"cut":false,"hidden":true,"merged":[[1,0,1,7],[2,0,2,7]]}
["Lists"]
["These are the list types for the current workbook. Include the values from which you want providers to choose below the name of the list."]
["Blank items will be ignored - if you want to allow a blank entry edit the data dictionary so that the data point allows nulls."]
[]
["Approach","CensusSample","Coverage","Supportingdoc","Supportingdoc2","Weighting","YesNo","ConfirmWeighted"]
["Single point in time","Census","LCRA - section 4","Yes - I have uploaded the supporting documentation",null,"Age of respondent","Yes","Weighted"]
["Phased approach","Sample","LCHO - section 5","No - I have not uploaded the supporting documentation","Yes - I have uploaded a supporting document","Building type","No","Unweighted"]
["Rolling survey",null,"Combined - section 6",null,"No - I have not uploaded a supporting document","Entity"]
[null,null,null,null,null,"Ethnicity of respondent"]
[null,null,null,null,null,"Geographical area"]
[null,null,null,null,null,"Household size"]
[null,null,null,null,null,"Property size"]
[null,null,null,null,null,"Stock type"]
[null,null,null,null,null,"Other (specify in Q15b)"]

{"sheet":"DimensionalMembers","index":11,"n_rows":9,"n_cols":301,"rows_kept":9,"cut":false,"hidden":true,"merged":[]}
["DIM_Year","2022","2023","2024","2025","2026","2027","2028","2029","2030","2031","2032","2033","2034","2035","2036","2037","2038","2039","2040","2041","2042","2043","2044","2045","2046","2047","2048","2049","2050","2051","2052","2053","2054","2055","2056","2057","2058","2059","2060","2061","2062","2063","2064","2065","2066","2067","2068","2069","2070","2071","2072"]
["DIM_LA_Code","Adur - E07000223","Amber Valley - E07000032","Arun - E07000224","Ashfield - E07000170","Ashford - E07000105","Babergh - E07000200","Barking and Dagenham - E09000002","Barnet - E09000003","Barnsley - E08000016","Basildon - E07000066","Basingstoke and Deane - E07000084","Bassetlaw - E07000171","Bath and North East Somerset - E06000022","Bedford - E06000055","Bexley - E09000004","Birmingham - E08000025","Blaby - E07000129","Blackburn with Darwen - E06000008","Blackpool - E06000009","Bolsover - E07000033","Bolton - E08000001","Boston - E07000136","Bournemouth Christchurch and Poole - E06000058","Bracknell Forest - E06000036","Bradford - E08000032","Braintree - E07000067","Breckland - E07000143","Brent - E09000005","Brentwood - E07000068","Brighton and Hove - E06000043","Bristol, City of - E06000023","Broadland - E07000144","Bromley - E09000006","Bromsgrove - E07000234","Broxbourne - E07000095","Broxtowe - E07000172","Buckinghamshire - E06000060","Burnley - E07000117","Bury - E08000002","Calderdale - E08000033","Cambridge - E07000008","Camden - E09000007","Cannock Chase - E07000192","Canterbury - E07000106","Castle Point - E07000069","Central Bedfordshire - E06000056","Charnwood - E07000130","Chelmsford - E07000070","Cheltenham - E07000078","Cherwell - E07000177","Cheshire East - E06000049","Cheshire West and Chester - E06000050","Chesterfield - E07000034","Chichester - E07000225","Chorley - E07000118","City of London - E09000001","Colchester - E07000071","Cornwall - E06000052","Cotswold - E07000079","County Durham - E06000047","Coventry - E08000026","Crawley - E07000226","Croydon - E09000008","Dacorum - E07000096","Darlington - E06000005","Dartford - E07000107","Derby - E06000015","Derbyshire Dales - E07000035","Doncaster - E08000017","Dorset - E06000059","Dover - E07000108","Dudley - E08000027","Ealing - E09000009","East Cambridgeshire - E07000009","East Devon - E07000040","East Hampshire - E07000085","East Hertfordshire - E07000242","East Lindsey - E07000137","East Riding of Yorkshire - E06000011","East Staffordshire - E07000193","East Suffolk - E07000244","Eastbourne - E07000061","Eastleigh - E07000086","Elmbridge - E07000207","Enfield - E09000010","Epping Forest - E07000072","Epsom and Ewell - E07000208","Erewash - E07000036","Exeter - E07000041","Fareham - E07000087","Fenland - E07000010","Folkestone and Hythe - E07000112","Forest of Dean - E07000080","Fylde - E07000119","Gateshead - E08000037","Gedling - E07000173","Gloucester - E07000081","Gosport - E07000088","Gravesham - E07000109","Great Yarmouth - E07000145","Greenwich - E09000011","Guildford - E07000209","Hackney - E09000012","Halton - E06000006","Hammersmith and Fulham - E09000013","Harborough - E07000131","Haringey - E09000014","Harlow - E07000073","Harrow - E09000015","Hart - E07000089","Hartlepool - E06000001","Hastings - E07000062","Havant - E07000090","Havering - E09000016","Herefordshire, County of - E06000019","Hertsmere - E07000098","High Peak - E07000037","Hillingdon - E09000017","Hinckley and Bosworth - E07000132","Horsham - E07000227","Hounslow - E09000018","Huntingdonshire - E07000011","Hyndburn - E07000120","Ipswich - E07000202","Isle of Wight - E06000046","Isles of Scilly - E06000053","Islington - E09000019","Kensington and Chelsea - E09000020","King's Lynn and West Norfolk - E07000146","Kingston upon Hull, City of - E06000010","Kingston upon Thames - E09000021","Kirklees - E08000034","Knowsley - E08000011","Lambeth - E09000022","Lancaster - E07000121","Leeds - E08000035","Leicester - E06000016","Lewes - E07000063","Lewisham - E09000023","Lichfield - E07000194","Lincoln - E07000138","Liverpool - E08000012","Luton - E06000032","Maidstone - E07000110","Maldon - E07000074","Malvern Hills - E07000235","Manchester - E08000003","Mansfield - E07000174","Medway - E06000035","Melton - E07000133","Merton - E09000024","Mid Devon - E07000042","Mid Suffolk - E07000203","Mid Sussex - E07000228","Middlesbrough - E06000002","Milton Keynes - E06000042","Mole Valley - E07000210","New Forest - E07000091","Newark and Sherwood - E07000175","Newcastle upon Tyne - E08000021","Newcastle-under-Lyme - E07000195","Newham - E09000025","North Devon - E07000043","North East Derbyshire - E07000038","North East Lincolnshire - E06000012","North Hertfordshire - E07000099","North Kesteven - E07000139","North Lincolnshire - E06000013","North Norfolk - E07000147","North Northamptonshire - E06000061","North Somerset - E06000024","North Tyneside - E08000022","North Warwickshire - E07000218","North West Leicestershire - E07000134","Northumberland - E06000057","Norwich - E07000148","Nottingham - E06000018","Nuneaton and Bedworth - E07000219","Oadby and Wigston - E07000135","Oldham - E08000004","Oxford - E07000178","Pendle - E07000122","Peterborough - E06000031","Plymouth - E06000026","Portsmouth - E06000044","Preston - E07000123","Reading - E06000038","Redbridge - E09000026","Redcar and Cleveland - E06000003","Redditch - E07000236","Reigate and Banstead - E07000211","Ribble Valley - E07000124","Richmond upon Thames - E09000027","Rochdale - E08000005","Rochford - E07000075","Rossendale - E07000125","Rother - E07000064","Rotherham - E08000018","Rugby - E07000220","Runnymede - E07000212","Rushcliffe - E07000176","Rushmoor - E07000092","Rutland - E06000017","Salford - E08000006","Sandwell - E08000028","Sefton - E08000014","Sevenoaks - E07000111","Sheffield - E08000019","Shropshire - E06000051","Slough - E06000039","Solihull - E08000029","South Cambridgeshire - E07000012","South Derbyshire - E07000039","South Gloucestershire - E06000025","South Hams - E07000044","South Holland - E07000140","South Kesteven - E07000141","South Norfolk - E07000149","South Oxfordshire - E07000179","South Ribble - E07000126","South Staffordshire - E07000196","South Tyneside - E08000023","Southampton - E06000045","Southend-on-Sea - E06000033","Southwark - E09000028","Spelthorne - E07000213","St Albans - E07000240","St. Helens - E08000013","Stafford - E07000197","Staffordshire Moorlands - E07000198","Stevenage - E07000243","Stockport - E08000007","Stockton-on-Tees - E06000004","Stoke-on-Trent - E06000021","Stratford-on-Avon - E07000221","Stroud - E07000082","Sunderland - E08000024","Surrey Heath - E07000214","Sutton - E09000029","Swale - E07000113","Swindon - E06000030","Tameside - E08000008","Tamworth - E07000199","Tandridge - E07000215","Teignbridge - E07000045","Telford and Wrekin - E06000020","Tendring - E07000076","Test Valley - E07000093","Tewkesbury - E07000083","Thanet - E07000114","Three Rivers - E07000102","Thurrock - E06000034","Tonbridge and Malling - E07000115","Torbay - E06000027","Torridge - E07000046","Tower Hamlets - E09000030","Trafford - E08000009","Tunbridge Wells - E07000116","Uttlesford - E07000077","Vale of White Horse - E07000180","Wakefield - E08000036","Walsall - E08000030","Waltham Forest - E09000031","Wandsworth - E09000032","Warrington - E06000007","Warwick - E07000222","Watford - E07000103","Waverley - E07000216","Wealden - E07000065","Welwyn Hatfield - E07000241","West Berkshire - E06000037","West Devon - E07000047","West Lancashire - E07000127","West Lindsey - E07000142","West Northamptonshire - E06000062","West Oxfordshire - E07000181","West Suffolk - E07000245","Westminster - E09000033","Wigan - E08000010","Wiltshire - E06000054","Winchester - E07000094","Windsor and Maidenhead - E06000040","Wirral - E08000015","Woking - E07000217","Wokingham - E06000041","Wolverhampton - E08000031","Worcester - E07000237","Worthing - E07000229","Wychavon - E07000238","Wyre - E07000128","Wyre Forest - E07000239","York - E06000014","Northern Ireland - N92000002","Outside UK - 9300000XX","Scotland - S92000003","Wales - W92000004","Cumberland - E06000063","North Yorkshire - E06000065","Somerset - E06000066","Westmorland and Furness - E06000064"]
["DIM_Counter_Party","abrdn (Standard Life Aberdeen)","Affordable Housing Finance","Allied Irish Banks","Aviva","Aviva (Friends Life)","Babson Capital","Bank of China","Bank of Ireland","Bank of New York Mellon","Bank of Scotland","Barclays","BlackRock","BNP Paribas","CAF","Canada Life","CCLA","Charity Bank","Close Brothers Group","Clydesdale/Yorkshire Bank/Virgin Money","The Co-operative Bank","Credit Suisse","Crown Mortgage Management","Danske","Darlington BS","DB Life Insurance","Deutsche Bank","Dexia","EIB","Federated Prime Rate","Funding for Homes Ltd","GBSH","Goldman Sachs","HACO","HAF","HALOS","Handelsbanken","Harbour","Haven","Helaba","HSBC","HSL","Ignis","Investec Fund Managers","JPMorgan","Kent Reliance BS","Leeds BS","Legal & General","Lloyds","Local authority","M&G (Prudential)","Macquarie","MetLife","Metro Bank","Millbank","Morgan Stanley","MORhomes","MUFG Bank (Mitsubishi)","My Home Finance","National Australia Bank Limited","Nationwide","Newbury BS","Newcastle BS","Norwich & Peterborough BS","Orchardbrook","Own name bond - retail","Own name bond - wholesale","Pricoa/PGIM","Reliance Bank","RBC","RBS/NatWest","Rothesay","RSL Finance","Saltaire Finance (Ara-Venn)","Santander","Scottish Widows","SMBC (Sumitomo Mitsui)","Standard Chartered Bank","Suffolk Building Society (Ipswich)","SWIP AAA fund","THFC","Triodos","Unity Trust Bank","Wells Fargo","Yorkshire BS","ABN - Amro","First Abu Dhabi (FAB)"]
["DIM_Property_Size_4Bed","Non-self-contained/Bedspace","Bedsit","1 Bedroom","2 Bedroom","3 Bedroom","4+ Bedroom"]
["DIM_Property_Size_6Bed","Non-self-contained/Bedspace","Bedsit","1 Bedroom","2 Bedroom","3 Bedroom","4 Bedroom","5 Bedroom","6+ Bedroom"]
["DIM_Relative_Year","Initial year","Initial year + 1","Initial year + 2","Initial year + 3","Initial year + 4","Initial year + 5","Initial year + 6","Initial year + 7","Initial year + 8","Initial year + 9"]
["DIM_Sequence","1","2","3","4","5","6","7","8","9","10","11","12","13","14","15","16","17","18","19","20","21","22","23","24","25","26","27","28","29","30","31","32","33","34","35","36","37","38","39","40","41","42","43","44","45","46","47","48","49","50","51","52","53","54","55","56","57","58","59","60","61","62","63","64","65","66","67","68","69","70","71","72","73","74","75","76","77","78","79","80","81","82","83","84","85","86","87","88","89","90","91","92","93","94","95","96","97","98","99","100","101","102","103","104","105","106","107","108","109","110","111","112","113","114","115","116","117","118","119","120","121","122","123","124","125","126","127","128","129","130","131","132","133","134","135","136","137","138","139","140","141","142","143","144","145","146","147","148","149","150"]
["DIM_Forecast_Year","FY_01","FY_02","FY_03","FY_04","FY_05","FY_06","FY_07","FY_08","FY_09","FY_10","FY_11","FY_12","FY_13","FY_14","FY_15","FY_16","FY_17","FY_18","FY_19","FY_20","FY_21","FY_22","FY_23","FY_24","FY_25","FY_26","FY_27","FY_28","FY_29","FY_30"]
["DIM_FRS_Crit_Factor","Crit factor 01","Crit factor 02","Crit factor 03","Crit factor 04","Crit factor 05"]

{"sheet":"PriorValues","index":12,"n_rows":4,"n_cols":4,"rows_kept":4,"cut":false,"hidden":true,"merged":[[0,0,0,3],[1,0,1,3]]}
["Prior Value Cache"]
["Warning - This is a hidden system sheet, pleae do not modify it or you will break any references to prior period / prior year values"]
[]
[null,"DataPointId","PriorPeriodValue","PriorYearValue"]

{"sheet":"OtherSurveyValues","index":13,"n_rows":4,"n_cols":5,"rows_kept":4,"cut":false,"hidden":true,"merged":[[0,0,0,3],[1,0,1,3]]}
["Other Survey Value Cache"]
["Warning - This is a hidden system sheet, pleae do not modify it or you will break any references to other survey values"]
[]
[null,"DataPointId","SurveyId","TimePeriodId","Value"]